BODY,BODY NAME,SERVICE CODE,ORGANISATIONAL UNIT,ORGANISATIONAL UNIT CODE,EXPENDITURE CATEGORY,EXPENDITURE CODE,DATE (POSTING DATE),TRANSACTION NUMBER,AMOUNT,SUPPLIER NAME,SUPPLIER ID
WARRINGTON BOROUGH COUNCIL,http://opendatacommunities.org/id/unitary-authority/warrington ,FWB,Fostering Placements,30003,Fostering Accommodation,441050,26-Feb-18,1900297136,2429.00,1st Affinity Fostering Service,114585
WARRINGTON BOROUGH COUNCIL,http://opendatacommunities.org/id/unitary-authority/warrington ,FWB,Fostering Placements,30003,Fostering Accommodation,441050,26-Feb-18,1900297099,2888.00,1st Affinity Fostering Service,114585
WARRINGTON BOROUGH COUNCIL,http://opendatacommunities.org/id/unitary-authority/warrington ,FWB,Fostering Placements,30003,Fostering Accommodation,441050,26-Mar-18,1900305101,3580.00,1st Affinity Fostering Service,114585
WARRINGTON BOROUGH COUNCIL,http://opendatacommunities.org/id/unitary-authority/warrington ,FWB,Fostering Placements,30003,Fostering Accommodation,441050,26-Mar-18,1900305069,2888.00,1st Affinity Fostering Service,114585
WARRINGTON BOROUGH COUNCIL,http://opendatacommunities.org/id/unitary-authority/warrington ,FWB,Contracts - SM Commissioning Team 2,55920,Public Health Contract Payments,540000,26-Mar-18,1900304948,1568.00,4 Seasons Medical Centre,101455
WARRINGTON BOROUGH COUNCIL,http://opendatacommunities.org/id/unitary-authority/warrington ,FWB,Accountable Care Partnership,14500,Consult.& Prof. Serv,440000,13-Mar-18,1900300791,2100.00,4 Seasons Medical Centre,101455
WARRINGTON BOROUGH COUNCIL,http://opendatacommunities.org/id/unitary-authority/warrington ,FWB,DSG 2 Year Old Fund,31601,Payment of Grants,470050,02-Mar-18,1900297312,880.00,A & J Tots to Teens Childcare,113264
WARRINGTON BOROUGH COUNCIL,http://opendatacommunities.org/id/unitary-authority/warrington ,FWB,DSG 2 Year Old Fund,31601,Payment of Grants,470050,02-Mar-18,1900297288,528.00,A & J Tots to Teens Childcare,113264
WARRINGTON BOROUGH COUNCIL,http://opendatacommunities.org/id/unitary-authority/warrington ,FWB,DSG Early Years PVI Settings,32417,Private & Voluntary 3 Year Olds,470100,02-Mar-18,1900297414,864.00,A & J Tots to Teens Childcare,113264
WARRINGTON BOROUGH COUNCIL,http://opendatacommunities.org/id/unitary-authority/warrington ,FWB,Care Purchase Central Team,54050,CP-Nursing Care-External,441200,07-Mar-18,1900299618,4136.00,Abbey Lawns Care Home Ltd,101816
WARRINGTON BOROUGH COUNCIL,http://opendatacommunities.org/id/unitary-authority/warrington ,FWB,Care Purchase East Team,54060,CP-LongStayExternal,441150,07-Mar-18,1900299683,1840.00,Abbeydale Residential Home,104446
WARRINGTON BOROUGH COUNCIL,http://opendatacommunities.org/id/unitary-authority/warrington ,FWB,DSG 2 Year Old Fund,31601,Payment of Grants,470050,02-Mar-18,1900297287,5428.00,Abc 123 Day Nursery Ltd,400152
WARRINGTON BOROUGH COUNCIL,http://opendatacommunities.org/id/unitary-authority/warrington ,FWB,DSG Early Years PVI Settings,32417,Private & Voluntary 3 Year Olds,470100,02-Mar-18,1900297363,12997.00,Abc 123 Day Nursery Ltd,400152
WARRINGTON BOROUGH COUNCIL,http://opendatacommunities.org/id/unitary-authority/warrington ,FWB,DSG Early Years PVI Settings,32417,Private & Voluntary 4 Year Olds,470150,02-Mar-18,1900297502,6594.00,Abc 123 Day Nursery Ltd,400152
WARRINGTON BOROUGH COUNCIL,http://opendatacommunities.org/id/unitary-authority/warrington ,FWB,DSG Early Years PVI Settings,32417,Private & Voluntary 3 Year Olds,470100,02-Mar-18,1900297365,1610.00,Abc Pre-School Limited,400009
WARRINGTON BOROUGH COUNCIL,http://opendatacommunities.org/id/unitary-authority/warrington ,CYP,Childrens Other,81004,ICT Comms - Equipment Purchase,450100,06-Mar-18,1900298237,5919.00,Abtec Computer Solutions Ltd,107132
WARRINGTON BOROUGH COUNCIL,http://opendatacommunities.org/id/unitary-authority/warrington ,CYP,Childrens Other,81004,ICT Comms - Equipment Purchase,450100,06-Mar-18,1900298236,17164.00,Abtec Computer Solutions Ltd,107132
WARRINGTON BOROUGH COUNCIL,http://opendatacommunities.org/id/unitary-authority/warrington ,CYP,Childrens Other,81004,ICT Comms - Equipment Purchase,450100,19-Mar-18,1900302756,13184.00,Abtec Computer Solutions Ltd,107132
WARRINGTON BOROUGH COUNCIL,http://opendatacommunities.org/id/unitary-authority/warrington ,CYP,Childrens Other,81004,ICT Comms - Equipment Purchase,450100,20-Mar-18,1900302829,13584.00,Abtec Computer Solutions Ltd,107132
WARRINGTON BOROUGH COUNCIL,http://opendatacommunities.org/id/unitary-authority/warrington ,ENO,Housing Projects,82008,Disabled Persons Grant 1996,554000,20-Mar-18,1900302849,20732.00,Acorn Building Projects Ltd,105557
WARRINGTON BOROUGH COUNCIL,http://opendatacommunities.org/id/unitary-authority/warrington ,ENO,Housing Projects,82008,Disabled Persons Grant 1996,554000,19-Mar-18,1900302816,7978.00,Acorn Building Projects Ltd,105557
WARRINGTON BOROUGH COUNCIL,http://opendatacommunities.org/id/unitary-authority/warrington ,FWB,Fostering Placements,30003,Fostering Accommodation,441050,26-Feb-18,1900297156,3440.00,Acorn House (Fostering Services) Li,116009
WARRINGTON BOROUGH COUNCIL,http://opendatacommunities.org/id/unitary-authority/warrington ,FWB,Fostering Placements,30003,Fostering Accommodation,441050,26-Mar-18,1900305120,3440.00,Acorn House (Fostering Services) Li,116009
WARRINGTON BOROUGH COUNCIL,http://opendatacommunities.org/id/unitary-authority/warrington ,FWB,Care Purchase West Team,54080,CP-LongStayExternal,441150,07-Mar-18,1900299921,1067.00,Adamstan Ltd,106216
WARRINGTON BOROUGH COUNCIL,http://opendatacommunities.org/id/unitary-authority/warrington ,EE0,Park Development Sites,41423,Security Systems,250000,27-Feb-18,1900295537,1045.00,Adt Fire And Security Plc,100549
WARRINGTON BOROUGH COUNCIL,http://opendatacommunities.org/id/unitary-authority/warrington ,FWB,Care Purchase South Team,54070,CP-Nursing Care-External,441200,07-Mar-18,1900299727,1992.00,Alexandra Care Home,100708
WARRINGTON BOROUGH COUNCIL,http://opendatacommunities.org/id/unitary-authority/warrington ,FWB,Care Purchase West Team,54080,CP-Domicil.External,440950,06-Mar-18,1900298736,1018.00,Allied Healthcare Group Ltd,100796
WARRINGTON BOROUGH COUNCIL,http://opendatacommunities.org/id/unitary-authority/warrington ,FWB,Care Purchase West Team,54080,CP-Domicil.External,440950,06-Mar-18,1900298737,1401.00,Allied Healthcare Group Ltd,100796
WARRINGTON BOROUGH COUNCIL,http://opendatacommunities.org/id/unitary-authority/warrington ,FWB,Care Purchase West Team,54080,CP-Domicil.External,440950,14-Mar-18,1900300963,1401.00,Allied Healthcare Group Ltd,100796
WARRINGTON BOROUGH COUNCIL,http://opendatacommunities.org/id/unitary-authority/warrington ,FWB,Care Purchase West Team,54080,CP-Domicil.External,440950,20-Mar-18,1900303481,1401.00,Allied Healthcare Group Ltd,100796
WARRINGTON BOROUGH COUNCIL,http://opendatacommunities.org/id/unitary-authority/warrington ,FWB,Fostering Placements,30003,Fostering Accommodation,441050,26-Feb-18,1900297094,3023.00,Alpha Plus Fostering Ltd,109098
WARRINGTON BOROUGH COUNCIL,http://opendatacommunities.org/id/unitary-authority/warrington ,FWB,Fostering Placements,30003,Fostering Accommodation,441050,26-Feb-18,1900297172,2872.00,Alpha Plus Fostering Ltd,109098
WARRINGTON BOROUGH COUNCIL,http://opendatacommunities.org/id/unitary-authority/warrington ,FWB,Fostering Placements,30003,Fostering Accommodation,441050,26-Feb-18,1900297174,2831.00,Alpha Plus Fostering Ltd,109098
WARRINGTON BOROUGH COUNCIL,http://opendatacommunities.org/id/unitary-authority/warrington ,FWB,Fostering Placements,30003,Fostering Accommodation,441050,26-Mar-18,1900305064,3023.00,Alpha Plus Fostering Ltd,109098
WARRINGTON BOROUGH COUNCIL,http://opendatacommunities.org/id/unitary-authority/warrington ,FWB,Fostering Placements,30003,Fostering Accommodation,441050,26-Mar-18,1900305139,2872.00,Alpha Plus Fostering Ltd,109098
WARRINGTON BOROUGH COUNCIL,http://opendatacommunities.org/id/unitary-authority/warrington ,FWB,Fostering Placements,30003,Fostering Accommodation,441050,26-Mar-18,1900305140,2831.00,Alpha Plus Fostering Ltd,109098
WARRINGTON BOROUGH COUNCIL,http://opendatacommunities.org/id/unitary-authority/warrington ,FWB,Care Purchase West Team,54080,Supported Accommodation,440975,27-Mar-18,1900305844,3192.00,Alternative Futures Group,104468
WARRINGTON BOROUGH COUNCIL,http://opendatacommunities.org/id/unitary-authority/warrington ,FWB,Care Purchase West Team,54080,Supported Accommodation,440975,28-Mar-18,1900306447,3192.00,Alternative Futures Group,104468
WARRINGTON BOROUGH COUNCIL,http://opendatacommunities.org/id/unitary-authority/warrington ,FWB,Care Purchase West Team,54080,Supported Accommodation,440975,28-Mar-18,1900306448,2200.00,Alternative Futures Group,104468
WARRINGTON BOROUGH COUNCIL,http://opendatacommunities.org/id/unitary-authority/warrington ,FWB,Care Purchase West Team,54080,Supported Accommodation,440975,28-Mar-18,1900306459,3192.00,Alternative Futures Group,104468
WARRINGTON BOROUGH COUNCIL,http://opendatacommunities.org/id/unitary-authority/warrington ,FWB,Care Purchase West Team,54080,Supported Accommodation,440975,28-Mar-18,1900306460,2200.00,Alternative Futures Group,104468
WARRINGTON BOROUGH COUNCIL,http://opendatacommunities.org/id/unitary-authority/warrington ,FWB,Care Purchase West Team,54080,Supported Accommodation,440975,28-Mar-18,1900306450,3192.00,Alternative Futures Group,104468
WARRINGTON BOROUGH COUNCIL,http://opendatacommunities.org/id/unitary-authority/warrington ,FWB,Care Purchase West Team,54080,Supported Accommodation,440975,28-Mar-18,1900306451,1532.00,Alternative Futures Group,104468
WARRINGTON BOROUGH COUNCIL,http://opendatacommunities.org/id/unitary-authority/warrington ,FWB,Care Purchase West Team,54080,Supported Accommodation,440975,28-Mar-18,1900306456,3192.00,Alternative Futures Group,104468
WARRINGTON BOROUGH COUNCIL,http://opendatacommunities.org/id/unitary-authority/warrington ,FWB,Care Purchase West Team,54080,Supported Accommodation,440975,28-Mar-18,1900306458,1532.00,Alternative Futures Group,104468
WARRINGTON BOROUGH COUNCIL,http://opendatacommunities.org/id/unitary-authority/warrington ,FWB,Care Purchase West Team,54080,Supported Accommodation,440975,28-Mar-18,1900306449,668.00,Alternative Futures Group,104468
WARRINGTON BOROUGH COUNCIL,http://opendatacommunities.org/id/unitary-authority/warrington ,FWB,Care Purchase West Team,54080,Supported Accommodation,440975,28-Mar-18,1900306457,668.00,Alternative Futures Group,104468
WARRINGTON BOROUGH COUNCIL,http://opendatacommunities.org/id/unitary-authority/warrington ,FWB,Care Purchase West Team,54080,Supported Accommodation,440975,27-Mar-18,1900305846,3192.00,Alternative Futures Group,104468
WARRINGTON BOROUGH COUNCIL,http://opendatacommunities.org/id/unitary-authority/warrington ,FWB,Care Purchase West Team,54080,Supported Accommodation,440975,27-Mar-18,1900305847,2200.00,Alternative Futures Group,104468
WARRINGTON BOROUGH COUNCIL,http://opendatacommunities.org/id/unitary-authority/warrington ,FWB,Care Purchase West Team,54080,Supported Accommodation,440975,27-Mar-18,1900305848,3192.00,Alternative Futures Group,104468
WARRINGTON BOROUGH COUNCIL,http://opendatacommunities.org/id/unitary-authority/warrington ,FWB,Care Purchase West Team,54080,Supported Accommodation,440975,27-Mar-18,1900305849,2200.00,Alternative Futures Group,104468
WARRINGTON BOROUGH COUNCIL,http://opendatacommunities.org/id/unitary-authority/warrington ,FWB,Care Purchase South Team,54070,Supported Accommodation,440975,27-Mar-18,1900305855,5070.00,Alternative Futures Group,104468
WARRINGTON BOROUGH COUNCIL,http://opendatacommunities.org/id/unitary-authority/warrington ,FWB,Care Purchase South Team,54070,Supported Accommodation,440975,27-Mar-18,1900305859,3858.00,Alternative Futures Group,104468
WARRINGTON BOROUGH COUNCIL,http://opendatacommunities.org/id/unitary-authority/warrington ,FWB,Care Purchase South Team,54070,Supported Accommodation,440975,27-Mar-18,1900305858,3357.00,Alternative Futures Group,104468
WARRINGTON BOROUGH COUNCIL,http://opendatacommunities.org/id/unitary-authority/warrington ,FWB,Care Purchase West Team,54080,Supported Accommodation,440975,28-Mar-18,1900306452,3192.00,Alternative Futures Group,104468
WARRINGTON BOROUGH COUNCIL,http://opendatacommunities.org/id/unitary-authority/warrington ,FWB,Care Purchase West Team,54080,Supported Accommodation,440975,28-Mar-18,1900306453,2200.00,Alternative Futures Group,104468
WARRINGTON BOROUGH COUNCIL,http://opendatacommunities.org/id/unitary-authority/warrington ,FWB,Care Purchase West Team,54080,Supported Accommodation,440975,28-Mar-18,1900306454,3192.00,Alternative Futures Group,104468
WARRINGTON BOROUGH COUNCIL,http://opendatacommunities.org/id/unitary-authority/warrington ,FWB,Care Purchase West Team,54080,Supported Accommodation,440975,28-Mar-18,1900306455,2200.00,Alternative Futures Group,104468
WARRINGTON BOROUGH COUNCIL,http://opendatacommunities.org/id/unitary-authority/warrington ,FWB,Care Purchase South Team,54070,Supported Accommodation,440975,27-Mar-18,1900305856,5070.00,Alternative Futures Group,104468
WARRINGTON BOROUGH COUNCIL,http://opendatacommunities.org/id/unitary-authority/warrington ,FWB,Care Purchase South Team,54070,Supported Accommodation,440975,27-Mar-18,1900305860,3858.00,Alternative Futures Group,104468
WARRINGTON BOROUGH COUNCIL,http://opendatacommunities.org/id/unitary-authority/warrington ,FWB,Care Purchase South Team,54070,Supported Accommodation,440975,27-Mar-18,1900305857,3357.00,Alternative Futures Group,104468
WARRINGTON BOROUGH COUNCIL,http://opendatacommunities.org/id/unitary-authority/warrington ,FWB,Care Purchase West Team,54080,Supported Accommodation,440975,27-Mar-18,1900305842,3192.00,Alternative Futures Group,104468
WARRINGTON BOROUGH COUNCIL,http://opendatacommunities.org/id/unitary-authority/warrington ,FWB,Care Purchase West Team,54080,Supported Accommodation,440975,27-Mar-18,1900305843,2200.00,Alternative Futures Group,104468
WARRINGTON BOROUGH COUNCIL,http://opendatacommunities.org/id/unitary-authority/warrington ,FWB,Care Purchase South Team,54070,Supported Accommodation,440975,27-Mar-18,1900305841,5070.00,Alternative Futures Group,104468
WARRINGTON BOROUGH COUNCIL,http://opendatacommunities.org/id/unitary-authority/warrington ,FWB,Care Purchase South Team,54070,Supported Accommodation,440975,27-Mar-18,1900305840,3357.00,Alternative Futures Group,104468
WARRINGTON BOROUGH COUNCIL,http://opendatacommunities.org/id/unitary-authority/warrington ,FWB,Care Purchase South Team,54070,CP Residential EMI,441110,07-Mar-18,1900299373,2204.00,HC-One Limited Callands,109640
WARRINGTON BOROUGH COUNCIL,http://opendatacommunities.org/id/unitary-authority/warrington ,FWB,Care Purchase West Team,54080,CP-Nursing Care-External,441200,07-Mar-18,1900299131,2136.00,HC-One Limited Callands,109640
WARRINGTON BOROUGH COUNCIL,http://opendatacommunities.org/id/unitary-authority/warrington ,FWB,Care Purchase Budget,54490,CP Free Nursing Care External,443500,07-Mar-18,1900299002,620.00,HC-One Limited Callands,109640
WARRINGTON BOROUGH COUNCIL,http://opendatacommunities.org/id/unitary-authority/warrington ,FWB,Care Purchase West Team,54080,CP-Nursing Care-External,441200,07-Mar-18,1900299368,2136.00,HC-One Limited Callands,109640
WARRINGTON BOROUGH COUNCIL,http://opendatacommunities.org/id/unitary-authority/warrington ,FWB,Care Purchase Budget,54490,CP Free Nursing Care External,443500,07-Mar-18,1900299162,620.00,HC-One Limited Callands,109640
WARRINGTON BOROUGH COUNCIL,http://opendatacommunities.org/id/unitary-authority/warrington ,FWB,Care Purchase West Team,54080,CP-Nursing Care-External,441200,07-Mar-18,1900299338,2136.00,HC-One Limited Callands,109640
WARRINGTON BOROUGH COUNCIL,http://opendatacommunities.org/id/unitary-authority/warrington ,FWB,Care Purchase Budget,54490,CP Free Nursing Care External,443500,07-Mar-18,1900299037,620.00,HC-One Limited Callands,109640
WARRINGTON BOROUGH COUNCIL,http://opendatacommunities.org/id/unitary-authority/warrington ,FWB,Care Purchase West Team,54080,CP-LongStayExternal,441150,07-Mar-18,1900299135,1940.00,HC-One Limited Callands,109640
WARRINGTON BOROUGH COUNCIL,http://opendatacommunities.org/id/unitary-authority/warrington ,FWB,Care Purchase West Team,54080,CP-Nursing Care-External,441200,07-Mar-18,1900299222,2136.00,HC-One Limited Callands,109640
WARRINGTON BOROUGH COUNCIL,http://opendatacommunities.org/id/unitary-authority/warrington ,FWB,Care Purchase Budget,54490,CP Free Nursing Care External,443500,07-Mar-18,1900299275,620.00,HC-One Limited Callands,109640
WARRINGTON BOROUGH COUNCIL,http://opendatacommunities.org/id/unitary-authority/warrington ,FWB,Care Purchase West Team,54080,CP Nursing EMI,441105,07-Mar-18,1900299043,2260.00,HC-One Limited Callands,109640
WARRINGTON BOROUGH COUNCIL,http://opendatacommunities.org/id/unitary-authority/warrington ,FWB,Care Purchase Budget,54490,CP Free Nursing Care External,443500,07-Mar-18,1900299096,620.00,HC-One Limited Callands,109640
WARRINGTON BOROUGH COUNCIL,http://opendatacommunities.org/id/unitary-authority/warrington ,FWB,Care Purchase West Team,54080,CP-Nursing Care-External,441200,07-Mar-18,1900299344,2136.00,HC-One Limited Callands,109640
WARRINGTON BOROUGH COUNCIL,http://opendatacommunities.org/id/unitary-authority/warrington ,FWB,Care Purchase Budget,54490,CP Free Nursing Care External,443500,07-Mar-18,1900299140,620.00,HC-One Limited Callands,109640
WARRINGTON BOROUGH COUNCIL,http://opendatacommunities.org/id/unitary-authority/warrington ,FWB,Care Purchase South Team,54070,CP-Nursing Care-External,441200,07-Mar-18,1900299097,2136.00,HC-One Limited Callands,109640
WARRINGTON BOROUGH COUNCIL,http://opendatacommunities.org/id/unitary-authority/warrington ,FWB,Care Purchase Budget,54490,CP Free Nursing Care External,443500,07-Mar-18,1900299098,620.00,HC-One Limited Callands,109640
WARRINGTON BOROUGH COUNCIL,http://opendatacommunities.org/id/unitary-authority/warrington ,FWB,Care Purchase West Team,54080,CP-Nursing Care-External,441200,07-Mar-18,1900299346,2396.00,HC-One Limited Callands,109640
WARRINGTON BOROUGH COUNCIL,http://opendatacommunities.org/id/unitary-authority/warrington ,FWB,Care Purchase Budget,54490,CP Free Nursing Care External,443500,07-Mar-18,1900299102,620.00,HC-One Limited Callands,109640
WARRINGTON BOROUGH COUNCIL,http://opendatacommunities.org/id/unitary-authority/warrington ,FWB,Care Purchase West Team,54080,CP-Nursing Care-External,441200,07-Mar-18,1900299107,2298.00,HC-One Limited Callands,109640
WARRINGTON BOROUGH COUNCIL,http://opendatacommunities.org/id/unitary-authority/warrington ,FWB,Care Purchase Budget,54490,CP Free Nursing Care External,443500,07-Mar-18,1900299047,620.00,HC-One Limited Callands,109640
WARRINGTON BOROUGH COUNCIL,http://opendatacommunities.org/id/unitary-authority/warrington ,FWB,Care Purchase West Team,54080,CP-Nursing Care-External,441200,07-Mar-18,1900299110,2136.00,HC-One Limited Callands,109640
WARRINGTON BOROUGH COUNCIL,http://opendatacommunities.org/id/unitary-authority/warrington ,FWB,Care Purchase Budget,54490,CP Free Nursing Care External,443500,07-Mar-18,1900299152,620.00,HC-One Limited Callands,109640
WARRINGTON BOROUGH COUNCIL,http://opendatacommunities.org/id/unitary-authority/warrington ,FWB,Care Purchase South Team,54070,CP-Nursing Care-External,441200,07-Mar-18,1900299057,2136.00,HC-One Limited Callands,109640
WARRINGTON BOROUGH COUNCIL,http://opendatacommunities.org/id/unitary-authority/warrington ,FWB,Care Purchase Budget,54490,CP Free Nursing Care External,443500,07-Mar-18,1900299115,620.00,HC-One Limited Callands,109640
WARRINGTON BOROUGH COUNCIL,http://opendatacommunities.org/id/unitary-authority/warrington ,FWB,Care Purchase West Team,54080,CP-Nursing Care-External,441200,07-Mar-18,1900299061,2136.00,HC-One Limited Callands,109640
WARRINGTON BOROUGH COUNCIL,http://opendatacommunities.org/id/unitary-authority/warrington ,FWB,Care Purchase Budget,54490,CP Free Nursing Care External,443500,07-Mar-18,1900299122,620.00,HC-One Limited Callands,109640
WARRINGTON BOROUGH COUNCIL,http://opendatacommunities.org/id/unitary-authority/warrington ,FWB,Care Purchase Central Team,54050,CP-Nursing Care-External,441200,07-Mar-18,1900299419,860.00,HC-One Limited Callands,109640
WARRINGTON BOROUGH COUNCIL,http://opendatacommunities.org/id/unitary-authority/warrington ,FWB,Care Purchase West Team,54080,CP-Nursing Care-External,441200,07-Mar-18,1900299123,2136.00,HC-One Limited Callands,109640
WARRINGTON BOROUGH COUNCIL,http://opendatacommunities.org/id/unitary-authority/warrington ,FWB,Care Purchase Budget,54490,CP Free Nursing Care External,443500,07-Mar-18,1900299062,620.00,HC-One Limited Callands,109640
WARRINGTON BOROUGH COUNCIL,http://opendatacommunities.org/id/unitary-authority/warrington ,FWB,Care Purchase Central Team,54050,CP Nursing EMI,441105,07-Mar-18,1900299362,2260.00,HC-One Limited Callands,109640
WARRINGTON BOROUGH COUNCIL,http://opendatacommunities.org/id/unitary-authority/warrington ,FWB,Care Purchase Budget,54490,CP Free Nursing Care External,443500,07-Mar-18,1900299204,620.00,HC-One Limited Callands,109640
WARRINGTON BOROUGH COUNCIL,http://opendatacommunities.org/id/unitary-authority/warrington ,FWB,Care Purchase Central Team,54050,CP-Nursing Care-External,441200,07-Mar-18,1900299366,2280.00,HC-One Limited Callands,109640
WARRINGTON BOROUGH COUNCIL,http://opendatacommunities.org/id/unitary-authority/warrington ,FWB,Care Purchase Budget,54490,CP Free Nursing Care External,443500,07-Mar-18,1900299163,620.00,HC-One Limited Callands,109640
WARRINGTON BOROUGH COUNCIL,http://opendatacommunities.org/id/unitary-authority/warrington ,FWB,Care Purchase Budget,54490,CP Free Nursing Care External,443500,27-Feb-18,1900295532,9990.00,HC-One Limited Callands,109640
WARRINGTON BOROUGH COUNCIL,http://opendatacommunities.org/id/unitary-authority/warrington ,FWB,Care Purchase Budget,54490,CP Free Nursing Care External,443500,27-Feb-18,1900295541,6822.00,HC-One Oval Ltd Birch Court,104572
WARRINGTON BOROUGH COUNCIL,http://opendatacommunities.org/id/unitary-authority/warrington ,FWB,Care Purchase Central Team,54050,CP Residential EMI,441110,07-Mar-18,1900298967,2204.00,HC-One Oval Ltd Birch Court,104572
WARRINGTON BOROUGH COUNCIL,http://opendatacommunities.org/id/unitary-authority/warrington ,FWB,Care Purchase Central Team,54050,CP Residential EMI,441110,07-Mar-18,1900298913,2204.00,HC-One Oval Ltd Birch Court,104572
WARRINGTON BOROUGH COUNCIL,http://opendatacommunities.org/id/unitary-authority/warrington ,FWB,Care Purchase East Team,54060,CP Nursing EMI,441105,07-Mar-18,1900298877,2260.00,HC-One Oval Ltd Birch Court,104572
WARRINGTON BOROUGH COUNCIL,http://opendatacommunities.org/id/unitary-authority/warrington ,FWB,Care Purchase Budget,54490,CP Free Nursing Care External,443500,07-Mar-18,1900298968,620.00,HC-One Oval Ltd Birch Court,104572
WARRINGTON BOROUGH COUNCIL,http://opendatacommunities.org/id/unitary-authority/warrington ,FWB,Care Purchase Central Team,54050,CP Residential EMI,441110,07-Mar-18,1900298917,2204.00,HC-One Oval Ltd Birch Court,104572
WARRINGTON BOROUGH COUNCIL,http://opendatacommunities.org/id/unitary-authority/warrington ,FWB,Care Purchase South Team,54070,CP-Nursing Care-External,441200,07-Mar-18,1900299267,2136.00,HC-One Oval Ltd Birch Court,104572
WARRINGTON BOROUGH COUNCIL,http://opendatacommunities.org/id/unitary-authority/warrington ,FWB,Care Purchase Budget,54490,CP Free Nursing Care External,443500,07-Mar-18,1900299266,620.00,HC-One Oval Ltd Birch Court,104572
WARRINGTON BOROUGH COUNCIL,http://opendatacommunities.org/id/unitary-authority/warrington ,FWB,Care Purchase Central Team,54050,CP-Nursing Care-External,441200,07-Mar-18,1900298880,2136.00,HC-One Oval Ltd Birch Court,104572
WARRINGTON BOROUGH COUNCIL,http://opendatacommunities.org/id/unitary-authority/warrington ,FWB,Care Purchase Budget,54490,CP Free Nursing Care External,443500,07-Mar-18,1900298918,620.00,HC-One Oval Ltd Birch Court,104572
WARRINGTON BOROUGH COUNCIL,http://opendatacommunities.org/id/unitary-authority/warrington ,FWB,Care Purchase East Team,54060,CP Residential EMI,441110,07-Mar-18,1900298971,2204.00,HC-One Oval Ltd Birch Court,104572
WARRINGTON BOROUGH COUNCIL,http://opendatacommunities.org/id/unitary-authority/warrington ,FWB,Care Purchase East Team,54060,CP Residential EMI,441110,07-Mar-18,1900298922,2204.00,HC-One Oval Ltd Birch Court,104572
WARRINGTON BOROUGH COUNCIL,http://opendatacommunities.org/id/unitary-authority/warrington ,FWB,Care Purchase Central Team,54050,CP Nursing EMI,441105,07-Mar-18,1900298976,2260.00,HC-One Oval Ltd Birch Court,104572
WARRINGTON BOROUGH COUNCIL,http://opendatacommunities.org/id/unitary-authority/warrington ,FWB,Care Purchase Budget,54490,CP Free Nursing Care External,443500,07-Mar-18,1900298925,620.00,HC-One Oval Ltd Birch Court,104572
WARRINGTON BOROUGH COUNCIL,http://opendatacommunities.org/id/unitary-authority/warrington ,FWB,Care Purchase East Team,54060,CP Nursing EMI,441105,07-Mar-18,1900298977,2400.00,HC-One Oval Ltd Birch Court,104572
WARRINGTON BOROUGH COUNCIL,http://opendatacommunities.org/id/unitary-authority/warrington ,FWB,Care Purchase Budget,54490,CP Free Nursing Care External,443500,07-Mar-18,1900299178,620.00,HC-One Oval Ltd Birch Court,104572
WARRINGTON BOROUGH COUNCIL,http://opendatacommunities.org/id/unitary-authority/warrington ,FWB,Care Purchase Central Team,54050,CP-Nursing Care-External,441200,07-Mar-18,1900298887,2136.00,HC-One Oval Ltd Birch Court,104572
WARRINGTON BOROUGH COUNCIL,http://opendatacommunities.org/id/unitary-authority/warrington ,FWB,Care Purchase Budget,54490,CP Free Nursing Care External,443500,07-Mar-18,1900298929,620.00,HC-One Oval Ltd Birch Court,104572
WARRINGTON BOROUGH COUNCIL,http://opendatacommunities.org/id/unitary-authority/warrington ,FWB,Care Purchase Central Team,54050,CP Nursing EMI,441105,07-Mar-18,1900299173,2260.00,HC-One Oval Ltd Birch Court,104572
WARRINGTON BOROUGH COUNCIL,http://opendatacommunities.org/id/unitary-authority/warrington ,FWB,Care Purchase Budget,54490,CP Free Nursing Care External,443500,07-Mar-18,1900299274,620.00,HC-One Oval Ltd Birch Court,104572
WARRINGTON BOROUGH COUNCIL,http://opendatacommunities.org/id/unitary-authority/warrington ,FWB,Care Purchase Central Team,54050,CP Nursing EMI,441105,07-Mar-18,1900299302,646.00,HC-One Oval Ltd Birch Court,104572
WARRINGTON BOROUGH COUNCIL,http://opendatacommunities.org/id/unitary-authority/warrington ,FWB,Care Purchase Central Team,54050,CP Residential EMI,441110,07-Mar-18,1900299367,2204.00,HC-One Oval Ltd Birch Court,104572
WARRINGTON BOROUGH COUNCIL,http://opendatacommunities.org/id/unitary-authority/warrington ,FWB,Care Purchase Central Team,54050,CP Nursing EMI,441105,07-Mar-18,1900298938,2260.00,HC-One Oval Ltd Birch Court,104572
WARRINGTON BOROUGH COUNCIL,http://opendatacommunities.org/id/unitary-authority/warrington ,FWB,Care Purchase Budget,54490,CP Free Nursing Care External,443500,07-Mar-18,1900299011,620.00,HC-One Oval Ltd Birch Court,104572
WARRINGTON BOROUGH COUNCIL,http://opendatacommunities.org/id/unitary-authority/warrington ,FWB,Care Purchase South Team,54070,CP-Nursing Care-External,441200,07-Mar-18,1900299168,2136.00,HC-One Oval Ltd Birch Court,104572
WARRINGTON BOROUGH COUNCIL,http://opendatacommunities.org/id/unitary-authority/warrington ,FWB,Care Purchase Budget,54490,CP Free Nursing Care External,443500,07-Mar-18,1900299288,620.00,HC-One Oval Ltd Birch Court,104572
WARRINGTON BOROUGH COUNCIL,http://opendatacommunities.org/id/unitary-authority/warrington ,FWB,Care Purchase Central Team,54050,CP Nursing EMI,441105,07-Mar-18,1900299190,2260.00,HC-One Oval Ltd Birch Court,104572
WARRINGTON BOROUGH COUNCIL,http://opendatacommunities.org/id/unitary-authority/warrington ,FWB,Care Purchase Budget,54490,CP Free Nursing Care External,443500,07-Mar-18,1900299177,620.00,HC-One Oval Ltd Birch Court,104572
WARRINGTON BOROUGH COUNCIL,http://opendatacommunities.org/id/unitary-authority/warrington ,FWB,Care Purchase Central Team,54050,CP-Nursing Care-External,441200,07-Mar-18,1900299242,4043.00,HC-One Oval Ltd Birch Court,104572
WARRINGTON BOROUGH COUNCIL,http://opendatacommunities.org/id/unitary-authority/warrington ,FWB,Care Purchase Budget,54490,CP Free Nursing Care External,443500,07-Mar-18,1900299243,1174.00,HC-One Oval Ltd Birch Court,104572
WARRINGTON BOROUGH COUNCIL,http://opendatacommunities.org/id/unitary-authority/warrington ,FWB,Care Purchase East Team,54060,CP-Nursing Care-External,441200,07-Mar-18,1900299184,2136.00,HC-One Oval Ltd Birch Court,104572
WARRINGTON BOROUGH COUNCIL,http://opendatacommunities.org/id/unitary-authority/warrington ,FWB,Care Purchase Budget,54490,CP Free Nursing Care External,443500,07-Mar-18,1900299187,620.00,HC-One Oval Ltd Birch Court,104572
WARRINGTON BOROUGH COUNCIL,http://opendatacommunities.org/id/unitary-authority/warrington ,FWB,Care Purchase - Hospital Discharge Team,54280,CP-Nursing Care-External,441200,07-Mar-18,1900299188,2136.00,HC-One Oval Ltd Birch Court,104572
WARRINGTON BOROUGH COUNCIL,http://opendatacommunities.org/id/unitary-authority/warrington ,FWB,Care Purchase Central Team,54050,CP-Nursing Care-External,441200,07-Mar-18,1900299149,2136.00,HC-One Oval Ltd Birch Court,104572
WARRINGTON BOROUGH COUNCIL,http://opendatacommunities.org/id/unitary-authority/warrington ,FWB,Care Purchase Budget,54490,CP Free Nursing Care External,443500,07-Mar-18,1900299205,620.00,HC-One Oval Ltd Birch Court,104572
WARRINGTON BOROUGH COUNCIL,http://opendatacommunities.org/id/unitary-authority/warrington ,FWB,Care Purchase East Team,54060,CP-Nursing Care-External,441200,07-Mar-18,1900299402,2136.00,HC-One Oval Ltd Birch Court,104572
WARRINGTON BOROUGH COUNCIL,http://opendatacommunities.org/id/unitary-authority/warrington ,FWB,Care Purchase Budget,54490,CP Free Nursing Care External,443500,07-Mar-18,1900299403,620.00,HC-One Oval Ltd Birch Court,104572
WARRINGTON BOROUGH COUNCIL,http://opendatacommunities.org/id/unitary-authority/warrington ,FWB,Care Purchase Central Team,54050,CP-Nursing Care-External,441200,07-Mar-18,1900299068,2136.00,HC-One Oval Ltd Birch Court,104572
WARRINGTON BOROUGH COUNCIL,http://opendatacommunities.org/id/unitary-authority/warrington ,FWB,Care Purchase Budget,54490,CP Free Nursing Care External,443500,07-Mar-18,1900298989,620.00,HC-One Oval Ltd Birch Court,104572
WARRINGTON BOROUGH COUNCIL,http://opendatacommunities.org/id/unitary-authority/warrington ,FWB,Care Purchase Central Team,54050,CP-Nursing Care-External,441200,07-Mar-18,1900299020,2136.00,HC-One Oval Ltd Birch Court,104572
WARRINGTON BOROUGH COUNCIL,http://opendatacommunities.org/id/unitary-authority/warrington ,FWB,Care Purchase Budget,54490,CP Free Nursing Care External,443500,07-Mar-18,1900299070,620.00,HC-One Oval Ltd Birch Court,104572
WARRINGTON BOROUGH COUNCIL,http://opendatacommunities.org/id/unitary-authority/warrington ,FWB,Care Purchase Central Team,54050,CP-Nursing Care-External,441200,07-Mar-18,1900298944,2136.00,HC-One Oval Ltd Birch Court,104572
WARRINGTON BOROUGH COUNCIL,http://opendatacommunities.org/id/unitary-authority/warrington ,FWB,Care Purchase West Team,54080,Supported Accommodation,440975,27-Mar-18,1900305845,2200.00,Alternative Futures Group,104468
WARRINGTON BOROUGH COUNCIL,http://opendatacommunities.org/id/unitary-authority/warrington ,FWB,Care Purchase East Team,54060,CP-Domicil.External,440950,27-Mar-18,1900305870,527.00,Alternative Futures Group,104468
WARRINGTON BOROUGH COUNCIL,http://opendatacommunities.org/id/unitary-authority/warrington ,FWB,Care Purchase South Team,54070,Supported Accommodation,440975,27-Mar-18,1900305864,923.00,Alternative Futures Group,104468
WARRINGTON BOROUGH COUNCIL,http://opendatacommunities.org/id/unitary-authority/warrington ,FWB,Care Purchase East Team,54060,Supported Accommodation,440975,27-Mar-18,1900305850,7715.00,Alternative Futures Group,104468
WARRINGTON BOROUGH COUNCIL,http://opendatacommunities.org/id/unitary-authority/warrington ,FWB,Care Purchase East Team,54060,Supported Accommodation,440975,27-Mar-18,1900305853,6924.00,Alternative Futures Group,104468
WARRINGTON BOROUGH COUNCIL,http://opendatacommunities.org/id/unitary-authority/warrington ,FWB,Care Purchase South Team,54070,CP-Domicil.External,440950,27-Mar-18,1900305825,15431.00,Alternative Futures Group,104468
WARRINGTON BOROUGH COUNCIL,http://opendatacommunities.org/id/unitary-authority/warrington ,FWB,Care Purchase West Team,54080,Supported Accommodation,440975,27-Mar-18,1900305827,4400.00,Alternative Futures Group,104468
WARRINGTON BOROUGH COUNCIL,http://opendatacommunities.org/id/unitary-authority/warrington ,FWB,Care Purchase West Team,54080,Supported Accommodation,440975,27-Mar-18,1900305828,6384.00,Alternative Futures Group,104468
WARRINGTON BOROUGH COUNCIL,http://opendatacommunities.org/id/unitary-authority/warrington ,FWB,Care Purchase West Team,54080,Supported Accommodation,440975,27-Mar-18,1900305830,4400.00,Alternative Futures Group,104468
WARRINGTON BOROUGH COUNCIL,http://opendatacommunities.org/id/unitary-authority/warrington ,FWB,Care Purchase South Team,54070,Supported Accommodation,440975,27-Mar-18,1900305831,10140.00,Alternative Futures Group,104468
WARRINGTON BOROUGH COUNCIL,http://opendatacommunities.org/id/unitary-authority/warrington ,FWB,Care Purchase South Team,54070,Supported Accommodation,440975,27-Mar-18,1900305832,7715.00,Alternative Futures Group,104468
WARRINGTON BOROUGH COUNCIL,http://opendatacommunities.org/id/unitary-authority/warrington ,FWB,Care Purchase South Team,54070,CP-Domicil.External,440950,27-Mar-18,1900305833,2285.00,Alternative Futures Group,104468
WARRINGTON BOROUGH COUNCIL,http://opendatacommunities.org/id/unitary-authority/warrington ,FWB,Care Purchase South Team,54070,Supported Accommodation,440975,27-Mar-18,1900305834,6713.00,Alternative Futures Group,104468
WARRINGTON BOROUGH COUNCIL,http://opendatacommunities.org/id/unitary-authority/warrington ,FWB,Care Purchase East Team,54060,Supported Accommodation,440975,27-Mar-18,1900305835,5144.00,Alternative Futures Group,104468
WARRINGTON BOROUGH COUNCIL,http://opendatacommunities.org/id/unitary-authority/warrington ,FWB,Care Purchase South Team,54070,CP-Domicil.External,440950,27-Mar-18,1900305837,979.00,Alternative Futures Group,104468
WARRINGTON BOROUGH COUNCIL,http://opendatacommunities.org/id/unitary-authority/warrington ,FWB,Care Purchase East Team,54060,Supported Accommodation,440975,27-Mar-18,1900305838,5144.00,Alternative Futures Group,104468
WARRINGTON BOROUGH COUNCIL,http://opendatacommunities.org/id/unitary-authority/warrington ,FWB,Care Purchase East Team,54060,Supported Accommodation,440975,27-Mar-18,1900305851,3858.00,Alternative Futures Group,104468
WARRINGTON BOROUGH COUNCIL,http://opendatacommunities.org/id/unitary-authority/warrington ,FWB,Care Purchase East Team,54060,Supported Accommodation,440975,27-Mar-18,1900305852,13848.00,Alternative Futures Group,104468
WARRINGTON BOROUGH COUNCIL,http://opendatacommunities.org/id/unitary-authority/warrington ,FWB,Care Purchase West Team,54080,Supported Accommodation,440975,27-Mar-18,1900305829,6384.00,Alternative Futures Group,104468
WARRINGTON BOROUGH COUNCIL,http://opendatacommunities.org/id/unitary-authority/warrington ,FWB,Care Purchase Central Team,54050,CP-Domicil.External,440950,27-Feb-18,1900295572,598.00,Alternative Futures Group,104468
WARRINGTON BOROUGH COUNCIL,http://opendatacommunities.org/id/unitary-authority/warrington ,FWB,SLA - Grant Account,53920,Payment of Grants,470050,21-Mar-18,1900303648,9389.00,Alzheimers Society,106508
WARRINGTON BOROUGH COUNCIL,http://opendatacommunities.org/id/unitary-authority/warrington ,FWB,Residential Placements,30102,Intermediate Care Expenditure,441310,26-Feb-18,1900297138,13916.00,Amberleigh Care Ltd,110844
WARRINGTON BOROUGH COUNCIL,http://opendatacommunities.org/id/unitary-authority/warrington ,FWB,Residential Placements,30102,Intermediate Care Expenditure,441310,26-Mar-18,1900305103,13916.00,Amberleigh Care Ltd,110844
WARRINGTON BOROUGH COUNCIL,http://opendatacommunities.org/id/unitary-authority/warrington ,CYP,Childrens Other,81004,Specific Work,200200,22-Mar-18,1900304289,819.00,Andys Bargain Carpets,100642
WARRINGTON BOROUGH COUNCIL,http://opendatacommunities.org/id/unitary-authority/warrington ,FWB,Care Purchase East Team,54060,CP Residential EMI,441110,07-Mar-18,1900298871,2047.00,Ann Slade Care Home,116133
WARRINGTON BOROUGH COUNCIL,http://opendatacommunities.org/id/unitary-authority/warrington ,FWB,DSG 2 Year Old Fund,31601,Payment of Grants,470050,02-Mar-18,1900297290,1795.00,Appleton Thorn Pre School,400111
WARRINGTON BOROUGH COUNCIL,http://opendatacommunities.org/id/unitary-authority/warrington ,FWB,DSG Early Years PVI Settings,32417,Private & Voluntary 3 Year Olds,470100,02-Mar-18,1900297372,4219.00,Appleton Thorn Pre School,400111
WARRINGTON BOROUGH COUNCIL,http://opendatacommunities.org/id/unitary-authority/warrington ,FWB,DSG Early Years PVI Settings,32417,Private & Voluntary 4 Year Olds,470150,02-Mar-18,1900297507,648.00,Appleton Thorn Pre School,400111
WARRINGTON BOROUGH COUNCIL,http://opendatacommunities.org/id/unitary-authority/warrington ,FWB,Care Purchase Budget,54490,Voids,515150,06-Mar-18,1900298277,3430.00,Arena Housing,114162
WARRINGTON BOROUGH COUNCIL,http://opendatacommunities.org/id/unitary-authority/warrington ,FWB,Care Purchase East Team,54060,CP-Nursing Care-External,441200,07-Mar-18,1900298861,2036.00,Ash Paddock Homes Ltd,115798
WARRINGTON BOROUGH COUNCIL,http://opendatacommunities.org/id/unitary-authority/warrington ,FWB,Care Purchase East Team,54060,Respite Residential EMI,441140,07-Mar-18,1900299893,1674.00,Ashberry Healthcare,101061
WARRINGTON BOROUGH COUNCIL,http://opendatacommunities.org/id/unitary-authority/warrington ,FWB,Care Purchase East Team,54060,Respite Residential EMI,441140,07-Mar-18,1900299883,1172.00,Ashberry Healthcare,101061
WARRINGTON BOROUGH COUNCIL,http://opendatacommunities.org/id/unitary-authority/warrington ,FWB,Care Purchase Central Team,54050,CP Residential EMI,441110,07-Mar-18,1900299862,19757.00,Ashberry Healthcare,101061
WARRINGTON BOROUGH COUNCIL,http://opendatacommunities.org/id/unitary-authority/warrington ,FWB,Care Purchase West Team,54080,CP-LongStayExternal,441150,07-Mar-18,1900299594,1940.00,Ashberry Healthcare,101061
WARRINGTON BOROUGH COUNCIL,http://opendatacommunities.org/id/unitary-authority/warrington ,FWB,Care Purchase West Team,54080,CP-LongStayExternal,441150,07-Mar-18,1900299503,1940.00,Ashberry Healthcare,101061
WARRINGTON BOROUGH COUNCIL,http://opendatacommunities.org/id/unitary-authority/warrington ,FWB,Care Purchase Central Team,54050,CP Residential EMI,441110,07-Mar-18,1900299599,2204.00,Ashberry Healthcare,101061
WARRINGTON BOROUGH COUNCIL,http://opendatacommunities.org/id/unitary-authority/warrington ,FWB,Care Purchase South Team,54070,CP Residential EMI,441110,07-Mar-18,1900299969,2204.00,Ashberry Healthcare,101061
WARRINGTON BOROUGH COUNCIL,http://opendatacommunities.org/id/unitary-authority/warrington ,FWB,Care Purchase West Team,54080,CP Residential EMI,441110,07-Mar-18,1900299682,2204.00,Ashberry Healthcare,101061
WARRINGTON BOROUGH COUNCIL,http://opendatacommunities.org/id/unitary-authority/warrington ,FWB,Care Purchase Central Team,54050,CP Residential EMI,441110,07-Mar-18,1900299603,2204.00,Ashberry Healthcare,101061
WARRINGTON BOROUGH COUNCIL,http://opendatacommunities.org/id/unitary-authority/warrington ,FWB,Care Purchase West Team,54080,CP Residential EMI,441110,07-Mar-18,1900299541,2204.00,Ashberry Healthcare,101061
WARRINGTON BOROUGH COUNCIL,http://opendatacommunities.org/id/unitary-authority/warrington ,FWB,Care Purchase West Team,54080,CP-LongStayExternal,441150,07-Mar-18,1900299611,1940.00,Ashberry Healthcare,101061
WARRINGTON BOROUGH COUNCIL,http://opendatacommunities.org/id/unitary-authority/warrington ,FWB,Care Purchase West Team,54080,CP Residential EMI,441110,07-Mar-18,1900299636,2204.00,Ashberry Healthcare,101061
WARRINGTON BOROUGH COUNCIL,http://opendatacommunities.org/id/unitary-authority/warrington ,FWB,Care Purchase East Team,54060,CP Residential EMI,441110,07-Mar-18,1900299788,2204.00,Ashberry Healthcare,101061
WARRINGTON BOROUGH COUNCIL,http://opendatacommunities.org/id/unitary-authority/warrington ,FWB,Care Purchase West Team,54080,CP Residential EMI,441110,07-Mar-18,1900299740,2204.00,Ashberry Healthcare,101061
WARRINGTON BOROUGH COUNCIL,http://opendatacommunities.org/id/unitary-authority/warrington ,FWB,Care Purchase West Team,54080,CP Residential EMI,441110,07-Mar-18,1900299709,2204.00,Ashberry Healthcare,101061
WARRINGTON BOROUGH COUNCIL,http://opendatacommunities.org/id/unitary-authority/warrington ,FWB,Care Purchase West Team,54080,CP Residential EMI,441110,07-Mar-18,1900299561,2204.00,Ashberry Healthcare,101061
WARRINGTON BOROUGH COUNCIL,http://opendatacommunities.org/id/unitary-authority/warrington ,FWB,Care Purchase West Team,54080,CP Residential EMI,441110,07-Mar-18,1900299755,2204.00,Ashberry Healthcare,101061
WARRINGTON BOROUGH COUNCIL,http://opendatacommunities.org/id/unitary-authority/warrington ,FWB,Care Purchase West Team,54080,CP Residential EMI,441110,07-Mar-18,1900299722,2204.00,Ashberry Healthcare,101061
WARRINGTON BOROUGH COUNCIL,http://opendatacommunities.org/id/unitary-authority/warrington ,FWB,Care Purchase West Team,54080,CP-LongStayExternal,441150,07-Mar-18,1900299725,1940.00,Ashberry Healthcare,101061
WARRINGTON BOROUGH COUNCIL,http://opendatacommunities.org/id/unitary-authority/warrington ,FWB,Care Purchase West Team,54080,CP Residential EMI,441110,07-Mar-18,1900299760,2204.00,Ashberry Healthcare,101061
WARRINGTON BOROUGH COUNCIL,http://opendatacommunities.org/id/unitary-authority/warrington ,FWB,Care Purchase West Team,54080,CP Residential EMI,441110,07-Mar-18,1900299938,2204.00,Ashberry Healthcare,101061
WARRINGTON BOROUGH COUNCIL,http://opendatacommunities.org/id/unitary-authority/warrington ,FWB,Care Purchase West Team,54080,CP Residential EMI,441110,07-Mar-18,1900299940,2204.00,Ashberry Healthcare,101061
WARRINGTON BOROUGH COUNCIL,http://opendatacommunities.org/id/unitary-authority/warrington ,FWB,Care Purchase West Team,54080,CP Residential EMI,441110,07-Mar-18,1900299729,2204.00,Ashberry Healthcare,101061
WARRINGTON BOROUGH COUNCIL,http://opendatacommunities.org/id/unitary-authority/warrington ,FWB,Care Purchase South Team,54070,CP Residential EMI,441110,07-Mar-18,1900299386,2204.00,Ashberry Healthcare Ltd,104776
WARRINGTON BOROUGH COUNCIL,http://opendatacommunities.org/id/unitary-authority/warrington ,FWB,Care Purchase East Team,54060,CP-Nursing Care-External,441200,07-Mar-18,1900298911,2136.00,Ashberry Healthcare Ltd,104776
WARRINGTON BOROUGH COUNCIL,http://opendatacommunities.org/id/unitary-authority/warrington ,FWB,Care Purchase Budget,54490,CP Free Nursing Care External,443500,07-Mar-18,1900299179,620.00,Ashberry Healthcare Ltd,104776
WARRINGTON BOROUGH COUNCIL,http://opendatacommunities.org/id/unitary-authority/warrington ,FWB,Care Purchase Central Team,54050,CP Residential EMI,441110,07-Mar-18,1900299298,2204.00,Ashberry Healthcare Ltd,104776
WARRINGTON BOROUGH COUNCIL,http://opendatacommunities.org/id/unitary-authority/warrington ,FWB,Care Purchase East Team,54060,CP-Nursing Care-External,441200,07-Mar-18,1900298896,2136.00,Ashberry Healthcare Ltd,104776
WARRINGTON BOROUGH COUNCIL,http://opendatacommunities.org/id/unitary-authority/warrington ,FWB,Care Purchase Budget,54490,CP Free Nursing Care External,443500,07-Mar-18,1900298897,620.00,Ashberry Healthcare Ltd,104776
WARRINGTON BOROUGH COUNCIL,http://opendatacommunities.org/id/unitary-authority/warrington ,FWB,Care Purchase East Team,54060,CP Residential EMI,441110,07-Mar-18,1900298970,2204.00,Ashberry Healthcare Ltd,104776
WARRINGTON BOROUGH COUNCIL,http://opendatacommunities.org/id/unitary-authority/warrington ,FWB,Care Purchase East Team,54060,CP Residential EMI,441110,07-Mar-18,1900298923,2204.00,Ashberry Healthcare Ltd,104776
WARRINGTON BOROUGH COUNCIL,http://opendatacommunities.org/id/unitary-authority/warrington ,FWB,Care Purchase East Team,54060,CP-LongStayExternal,441150,07-Mar-18,1900298902,1940.00,Ashberry Healthcare Ltd,104776
WARRINGTON BOROUGH COUNCIL,http://opendatacommunities.org/id/unitary-authority/warrington ,FWB,Care Purchase East Team,54060,CP-LongStayExternal,441150,07-Mar-18,1900298888,1940.00,Ashberry Healthcare Ltd,104776
WARRINGTON BOROUGH COUNCIL,http://opendatacommunities.org/id/unitary-authority/warrington ,FWB,Care Purchase East Team,54060,CP Residential EMI,441110,07-Mar-18,1900299376,2204.00,Ashberry Healthcare Ltd,104776
WARRINGTON BOROUGH COUNCIL,http://opendatacommunities.org/id/unitary-authority/warrington ,FWB,Care Purchase East Team,54060,CP-Nursing Care-External,441200,07-Mar-18,1900298907,2356.00,Ashberry Healthcare Ltd,104776
WARRINGTON BOROUGH COUNCIL,http://opendatacommunities.org/id/unitary-authority/warrington ,FWB,Care Purchase Budget,54490,CP Free Nursing Care External,443500,07-Mar-18,1900299153,620.00,Ashberry Healthcare Ltd,104776
WARRINGTON BOROUGH COUNCIL,http://opendatacommunities.org/id/unitary-authority/warrington ,FWB,Care Purchase East Team,54060,CP Residential EMI,441110,07-Mar-18,1900299065,2204.00,Ashberry Healthcare Ltd,104776
WARRINGTON BOROUGH COUNCIL,http://opendatacommunities.org/id/unitary-authority/warrington ,FWB,Care Purchase East Team,54060,CP Residential EMI,441110,07-Mar-18,1900298983,2204.00,Ashberry Healthcare Ltd,104776
WARRINGTON BOROUGH COUNCIL,http://opendatacommunities.org/id/unitary-authority/warrington ,FWB,Care Purchase Central Team,54050,CP-Nursing Care-External,441200,07-Mar-18,1900299260,2392.00,Ashberry Healthcare Ltd,104776
WARRINGTON BOROUGH COUNCIL,http://opendatacommunities.org/id/unitary-authority/warrington ,FWB,Care Purchase Budget,54490,CP Free Nursing Care External,443500,07-Mar-18,1900299171,620.00,Ashberry Healthcare Ltd,104776
WARRINGTON BOROUGH COUNCIL,http://opendatacommunities.org/id/unitary-authority/warrington ,FWB,Care Purchase East Team,54060,CP-LongStayExternal,441150,07-Mar-18,1900298942,1940.00,Ashberry Healthcare Ltd,104776
WARRINGTON BOROUGH COUNCIL,http://opendatacommunities.org/id/unitary-authority/warrington ,FWB,Care Purchase East Team,54060,CP Residential EMI,441110,07-Mar-18,1900299069,2204.00,Ashberry Healthcare Ltd,104776
WARRINGTON BOROUGH COUNCIL,http://opendatacommunities.org/id/unitary-authority/warrington ,FWB,Care Purchase East Team,54060,CP Residential EMI,441110,07-Mar-18,1900298946,2204.00,Ashberry Healthcare Ltd,104776
WARRINGTON BOROUGH COUNCIL,http://opendatacommunities.org/id/unitary-authority/warrington ,FWB,Care Purchase East Team,54060,CP-LongStayExternal,441150,07-Mar-18,1900298947,1940.00,Ashberry Healthcare Ltd,104776
WARRINGTON BOROUGH COUNCIL,http://opendatacommunities.org/id/unitary-authority/warrington ,FWB,Care Purchase East Team,54060,CP Residential EMI,441110,07-Mar-18,1900298990,2204.00,Ashberry Healthcare Ltd,104776
WARRINGTON BOROUGH COUNCIL,http://opendatacommunities.org/id/unitary-authority/warrington ,FWB,Care Purchase East Team,54060,CP-LongStayExternal,441150,07-Mar-18,1900299262,2108.00,Ashberry Healthcare Ltd,104776
WARRINGTON BOROUGH COUNCIL,http://opendatacommunities.org/id/unitary-authority/warrington ,FWB,Care Purchase East Team,54060,CP-LongStayExternal,441150,07-Mar-18,1900299194,1940.00,Ashberry Healthcare Ltd,104776
WARRINGTON BOROUGH COUNCIL,http://opendatacommunities.org/id/unitary-authority/warrington ,FWB,Care Purchase East Team,54060,CP-LongStayExternal,441150,07-Mar-18,1900299077,1940.00,Ashberry Healthcare Ltd,104776
WARRINGTON BOROUGH COUNCIL,http://opendatacommunities.org/id/unitary-authority/warrington ,FWB,Care Purchase East Team,54060,CP Residential EMI,441110,07-Mar-18,1900298962,2204.00,Ashberry Healthcare Ltd,104776
WARRINGTON BOROUGH COUNCIL,http://opendatacommunities.org/id/unitary-authority/warrington ,FWB,Care Purchase Central Team,54050,CP Residential EMI,441110,07-Mar-18,1700021423,11256.00,Ashberry Healthcare Ltd,104776
WARRINGTON BOROUGH COUNCIL,http://opendatacommunities.org/id/unitary-authority/warrington ,FWB,Care Purchase East Team,54060,CP-Nursing Care-External,441200,07-Mar-18,1900299132,2136.00,Ashberry Healthcare Ltd,104776
WARRINGTON BOROUGH COUNCIL,http://opendatacommunities.org/id/unitary-authority/warrington ,FWB,Care Purchase Budget,54490,CP Free Nursing Care External,443500,07-Mar-18,1900299133,620.00,Ashberry Healthcare Ltd,104776
WARRINGTON BOROUGH COUNCIL,http://opendatacommunities.org/id/unitary-authority/warrington ,FWB,Care Purchase East Team,54060,CP Nursing EMI,441105,07-Mar-18,1900299003,2260.00,Ashberry Healthcare Ltd,104776
WARRINGTON BOROUGH COUNCIL,http://opendatacommunities.org/id/unitary-authority/warrington ,FWB,Care Purchase Budget,54490,CP Free Nursing Care External,443500,07-Mar-18,1900299004,620.00,Ashberry Healthcare Ltd,104776
WARRINGTON BOROUGH COUNCIL,http://opendatacommunities.org/id/unitary-authority/warrington ,FWB,Care Purchase East Team,54060,CP-LongStayExternal,441150,07-Mar-18,1900299089,1940.00,Ashberry Healthcare Ltd,104776
WARRINGTON BOROUGH COUNCIL,http://opendatacommunities.org/id/unitary-authority/warrington ,FWB,Care Purchase East Team,54060,CP Residential EMI,441110,07-Mar-18,1900299090,2204.00,Ashberry Healthcare Ltd,104776
WARRINGTON BOROUGH COUNCIL,http://opendatacommunities.org/id/unitary-authority/warrington ,FWB,Care Purchase East Team,54060,CP-LongStayExternal,441150,07-Mar-18,1900299341,1940.00,Ashberry Healthcare Ltd,104776
WARRINGTON BOROUGH COUNCIL,http://opendatacommunities.org/id/unitary-authority/warrington ,FWB,Care Purchase East Team,54060,CP-Nursing Care-External,441200,07-Mar-18,1900299300,2136.00,Ashberry Healthcare Ltd,104776
WARRINGTON BOROUGH COUNCIL,http://opendatacommunities.org/id/unitary-authority/warrington ,FWB,Care Purchase Budget,54490,CP Free Nursing Care External,443500,07-Mar-18,1900299399,620.00,Ashberry Healthcare Ltd,104776
WARRINGTON BOROUGH COUNCIL,http://opendatacommunities.org/id/unitary-authority/warrington ,FWB,Care Purchase East Team,54060,CP Nursing EMI,441105,07-Mar-18,1900299139,2260.00,Ashberry Healthcare Ltd,104776
WARRINGTON BOROUGH COUNCIL,http://opendatacommunities.org/id/unitary-authority/warrington ,FWB,Care Purchase Budget,54490,CP Free Nursing Care External,443500,07-Mar-18,1900299343,620.00,Ashberry Healthcare Ltd,104776
WARRINGTON BOROUGH COUNCIL,http://opendatacommunities.org/id/unitary-authority/warrington ,FWB,Care Purchase East Team,54060,CP Residential EMI,441110,07-Mar-18,1900299181,2204.00,Ashberry Healthcare Ltd,104776
WARRINGTON BOROUGH COUNCIL,http://opendatacommunities.org/id/unitary-authority/warrington ,FWB,Care Purchase East Team,54060,CP Residential EMI,441110,07-Mar-18,1900299142,2204.00,Ashberry Healthcare Ltd,104776
WARRINGTON BOROUGH COUNCIL,http://opendatacommunities.org/id/unitary-authority/warrington ,FWB,Care Purchase East Team,54060,CP-Nursing Care-External,441200,07-Mar-18,1900299104,2136.00,Ashberry Healthcare Ltd,104776
WARRINGTON BOROUGH COUNCIL,http://opendatacommunities.org/id/unitary-authority/warrington ,FWB,Care Purchase Budget,54490,CP Free Nursing Care External,443500,07-Mar-18,1900299105,620.00,Ashberry Healthcare Ltd,104776
WARRINGTON BOROUGH COUNCIL,http://opendatacommunities.org/id/unitary-authority/warrington ,FWB,Care Purchase East Team,54060,CP-LongStayExternal,441150,07-Mar-18,1900299293,1940.00,Ashberry Healthcare Ltd,104776
WARRINGTON BOROUGH COUNCIL,http://opendatacommunities.org/id/unitary-authority/warrington ,FWB,Care Purchase South Team,54070,CP Nursing EMI,441105,07-Mar-18,1900299349,2880.00,Ashberry Healthcare Ltd,104776
WARRINGTON BOROUGH COUNCIL,http://opendatacommunities.org/id/unitary-authority/warrington ,FWB,Care Purchase West Team,54080,CP Nursing EMI,441105,07-Mar-18,1900299111,2260.00,Ashberry Healthcare Ltd,104776
WARRINGTON BOROUGH COUNCIL,http://opendatacommunities.org/id/unitary-authority/warrington ,FWB,Care Purchase Budget,54490,CP Free Nursing Care External,443500,07-Mar-18,1900299112,620.00,Ashberry Healthcare Ltd,104776
WARRINGTON BOROUGH COUNCIL,http://opendatacommunities.org/id/unitary-authority/warrington ,FWB,Care Purchase East Team,54060,CP-LongStayExternal,441150,07-Mar-18,1900299355,1940.00,Ashberry Healthcare Ltd,104776
WARRINGTON BOROUGH COUNCIL,http://opendatacommunities.org/id/unitary-authority/warrington ,FWB,Care Purchase East Team,54060,CP Residential EMI,441110,07-Mar-18,1900299117,2204.00,Ashberry Healthcare Ltd,104776
WARRINGTON BOROUGH COUNCIL,http://opendatacommunities.org/id/unitary-authority/warrington ,FWB,Care Purchase South Team,54070,CP-LongStayExternal,441150,07-Mar-18,1900299269,1940.00,Ashberry Healthcare Ltd,104776
WARRINGTON BOROUGH COUNCIL,http://opendatacommunities.org/id/unitary-authority/warrington ,FWB,Care Purchase Central Team,54050,CP Nursing EMI,441105,07-Mar-18,1900299158,2260.00,Ashberry Healthcare Ltd,104776
WARRINGTON BOROUGH COUNCIL,http://opendatacommunities.org/id/unitary-authority/warrington ,FWB,Care Purchase Budget,54490,CP Free Nursing Care External,443500,07-Mar-18,1900299159,620.00,Ashberry Healthcare Ltd,104776
WARRINGTON BOROUGH COUNCIL,http://opendatacommunities.org/id/unitary-authority/warrington ,FWB,Care Purchase South Team,54070,CP Nursing EMI,441105,07-Mar-18,1900299279,15287.00,Ashberry Healthcare Ltd,104776
WARRINGTON BOROUGH COUNCIL,http://opendatacommunities.org/id/unitary-authority/warrington ,FWB,Care Purchase Budget,54490,CP Free Nursing Care External,443500,07-Mar-18,1900299411,3854.00,Ashberry Healthcare Ltd,104776
WARRINGTON BOROUGH COUNCIL,http://opendatacommunities.org/id/unitary-authority/warrington ,FWB,Care Purchase East Team,54060,CP-LongStayExternal,441150,07-Mar-18,1900298910,1940.00,Ashberry Healthcare Ltd,104776
WARRINGTON BOROUGH COUNCIL,http://opendatacommunities.org/id/unitary-authority/warrington ,FWB,Care Purchase Budget,54490,CP Free Nursing Care External,443500,26-Mar-18,1900304946,4962.00,Ashberry Healthcare Ltd,104776
WARRINGTON BOROUGH COUNCIL,http://opendatacommunities.org/id/unitary-authority/warrington ,FWB,Care Purchase South Team,54070,CP-LongStayExternal,441150,07-Mar-18,1900299656,2298.00,Ashley House Residential Home,103045
WARRINGTON BOROUGH COUNCIL,http://opendatacommunities.org/id/unitary-authority/warrington ,FWB,Care Purchase West Team,54080,CP-Domicil.External,440950,09-Mar-18,1900300068,8288.00,Aspirations Care Limited,113707
WARRINGTON BOROUGH COUNCIL,http://opendatacommunities.org/id/unitary-authority/warrington ,FWB,Care Purchase West Team,54080,CP-Domicil.External,440950,27-Mar-18,1900305826,8288.00,Aspirations Care Limited,113707
WARRINGTON BOROUGH COUNCIL,http://opendatacommunities.org/id/unitary-authority/warrington ,CYP,Childrens Other,81004,Specific Work,200200,13-Mar-18,1900300801,2842.00,Atlantic Electrical Solutions Ltd,116485
WARRINGTON BOROUGH COUNCIL,http://opendatacommunities.org/id/unitary-authority/warrington ,FWB,Care Purchase South Team,54070,CP-Domicil.External,440950,01-Mar-18,1900297202,30008.00,Autism Care UK Ltd,115964
WARRINGTON BOROUGH COUNCIL,http://opendatacommunities.org/id/unitary-authority/warrington ,FWB,Care Purchase Central Team,54050,CP-LongStayExternal,441150,07-Mar-18,1900298857,9588.00,Autism Care UK North West Ltd,116043
WARRINGTON BOROUGH COUNCIL,http://opendatacommunities.org/id/unitary-authority/warrington ,FWB,Care Purchase Central Team,54050,CP-Domicil.External,440950,05-Mar-18,1900298129,1405.00,Autism Initiatives,104503
WARRINGTON BOROUGH COUNCIL,http://opendatacommunities.org/id/unitary-authority/warrington ,FWB,Care Purchase Central Team,54050,CP-Domicil.External,440950,05-Mar-18,1900298127,1633.00,Autism Initiatives,104503
WARRINGTON BOROUGH COUNCIL,http://opendatacommunities.org/id/unitary-authority/warrington ,FWB,Care Purchase Central Team,54050,CP-Domicil.External,440950,05-Mar-18,1900298128,1579.00,Autism Initiatives,104503
WARRINGTON BOROUGH COUNCIL,http://opendatacommunities.org/id/unitary-authority/warrington ,FWB,Care Purchase Central Team,54050,CP-Domicil.External,440950,05-Mar-18,1900298126,1579.00,Autism Initiatives,104503
WARRINGTON BOROUGH COUNCIL,http://opendatacommunities.org/id/unitary-authority/warrington ,FWB,Care Purchase West Team,54080,CP-Domicil.External,440950,06-Mar-18,1900298324,1006.00,Autism Initiatives,104503
WARRINGTON BOROUGH COUNCIL,http://opendatacommunities.org/id/unitary-authority/warrington ,FWB,Care Purchase West Team,54080,CP-Domicil.External,440950,26-Mar-18,1900305059,7120.00,Autism Initiatives,104503
WARRINGTON BOROUGH COUNCIL,http://opendatacommunities.org/id/unitary-authority/warrington ,FWB,Care Purchase Central Team,54050,Supported Accommodation,440975,07-Mar-18,1900298839,6141.00,Autism Initiatives,104503
WARRINGTON BOROUGH COUNCIL,http://opendatacommunities.org/id/unitary-authority/warrington ,FWB,Care Purchase Central Team,54050,Supported Accommodation,440975,26-Mar-18,1900305060,9303.00,Autism Initiatives,104503
WARRINGTON BOROUGH COUNCIL,http://opendatacommunities.org/id/unitary-authority/warrington ,FWB,Care Purchase West Team,54080,CP-Day Care-External,441100,06-Mar-18,1900298297,2931.00,Autism Initiatives,104503
WARRINGTON BOROUGH COUNCIL,http://opendatacommunities.org/id/unitary-authority/warrington ,FWB,Care Purchase West Team,54080,CP-Day Care-External,441100,07-Mar-18,1900298847,1552.00,Autism Initiatives,104503
WARRINGTON BOROUGH COUNCIL,http://opendatacommunities.org/id/unitary-authority/warrington ,FWB,Care Purchase Central Team,54050,CP-Day Care-External,441100,07-Mar-18,1900298846,2931.00,Autism Initiatives,104503
WARRINGTON BOROUGH COUNCIL,http://opendatacommunities.org/id/unitary-authority/warrington ,FWB,Care Purchase Central Team,54050,CP-Day Care-External,441100,09-Mar-18,1900300074,2931.00,Autism Initiatives,104503
WARRINGTON BOROUGH COUNCIL,http://opendatacommunities.org/id/unitary-authority/warrington ,FWB,Care Purchase West Team,54080,CP-Day Care-External,441100,09-Mar-18,1900300080,2931.00,Autism Initiatives,104503
WARRINGTON BOROUGH COUNCIL,http://opendatacommunities.org/id/unitary-authority/warrington ,FWB,Care Purchase West Team,54080,CP-Day Care-External,441100,09-Mar-18,1900300083,1552.00,Autism Initiatives,104503
WARRINGTON BOROUGH COUNCIL,http://opendatacommunities.org/id/unitary-authority/warrington ,FWB,Care Purchase Central Team,54050,Supported Accommodation,440975,09-Mar-18,1900300076,6141.00,Autism Initiatives,104503
WARRINGTON BOROUGH COUNCIL,http://opendatacommunities.org/id/unitary-authority/warrington ,FWB,Care Purchase West Team,54080,CP-Domicil.External,440950,09-Mar-18,1900300077,7120.00,Autism Initiatives,104503
WARRINGTON BOROUGH COUNCIL,http://opendatacommunities.org/id/unitary-authority/warrington ,FWB,Care Purchase West Team,54080,Supported Accommodation,440975,07-Mar-18,1900298840,3758.00,Autism Initiatives,104503
WARRINGTON BOROUGH COUNCIL,http://opendatacommunities.org/id/unitary-authority/warrington ,FWB,Care Purchase West Team,54080,Supported Accommodation,440975,07-Mar-18,1900298842,1673.00,Autism Initiatives,104503
WARRINGTON BOROUGH COUNCIL,http://opendatacommunities.org/id/unitary-authority/warrington ,FWB,Care Purchase Central Team,54050,CP-Domicil.External,440950,07-Mar-18,1900298844,1127.00,Autism Initiatives,104503
WARRINGTON BOROUGH COUNCIL,http://opendatacommunities.org/id/unitary-authority/warrington ,FWB,Care Purchase East Team,54060,CP-Day Care-External,441100,07-Mar-18,1900298845,585.00,Autism Initiatives,104503
WARRINGTON BOROUGH COUNCIL,http://opendatacommunities.org/id/unitary-authority/warrington ,FWB,Care Purchase Central Team,54050,CP-Domicil.External,440950,09-Mar-18,1900300078,1127.00,Autism Initiatives,104503
WARRINGTON BOROUGH COUNCIL,http://opendatacommunities.org/id/unitary-authority/warrington ,FWB,Care Purchase East Team,54060,CP-Day Care-External,441100,09-Mar-18,1900300079,585.00,Autism Initiatives,104503
WARRINGTON BOROUGH COUNCIL,http://opendatacommunities.org/id/unitary-authority/warrington ,FWB,Care Purchase Central Team,54050,Supported Accommodation,440975,09-Mar-18,1900300073,3758.00,Autism Initiatives,104503
WARRINGTON BOROUGH COUNCIL,http://opendatacommunities.org/id/unitary-authority/warrington ,FWB,Care Purchase Central Team,54050,Supported Accommodation,440975,09-Mar-18,1900300075,1015.00,Autism Initiatives,104503
WARRINGTON BOROUGH COUNCIL,http://opendatacommunities.org/id/unitary-authority/warrington ,FWB,Care Purchase West Team,54080,Supported Accommodation,440975,09-Mar-18,1900300082,3758.00,Autism Initiatives,104503
WARRINGTON BOROUGH COUNCIL,http://opendatacommunities.org/id/unitary-authority/warrington ,FWB,Care Purchase West Team,54080,Supported Accommodation,440975,09-Mar-18,1900300081,1673.00,Autism Initiatives,104503
WARRINGTON BOROUGH COUNCIL,http://opendatacommunities.org/id/unitary-authority/warrington ,FWB,Care Purchase Central Team,54050,Supported Accommodation,440975,07-Mar-18,1900298843,3758.00,Autism Initiatives,104503
WARRINGTON BOROUGH COUNCIL,http://opendatacommunities.org/id/unitary-authority/warrington ,FWB,Care Purchase Central Team,54050,Supported Accommodation,440975,07-Mar-18,1900298841,1015.00,Autism Initiatives,104503
WARRINGTON BOROUGH COUNCIL,http://opendatacommunities.org/id/unitary-authority/warrington ,FWB,Care Purchase East Team,54060,CP-LongStayExternal,441150,07-Mar-18,1900299476,4496.00,Autism Initiatives,104503
WARRINGTON BOROUGH COUNCIL,http://opendatacommunities.org/id/unitary-authority/warrington ,FWB,Care Purchase South Team,54070,CP Nursing EMI,441105,07-Mar-18,1900298870,7612.00,Avandale Lodge Nursing Home,115775
WARRINGTON BOROUGH COUNCIL,http://opendatacommunities.org/id/unitary-authority/warrington ,FWB,Care Purchase West Team,54080,CP Residential EMI,441110,07-Mar-18,1900298864,2100.00,Avery Homes Grove Park Limited,115792
WARRINGTON BOROUGH COUNCIL,http://opendatacommunities.org/id/unitary-authority/warrington ,FWB,Care Purchase West Team,54080,CP-LongStayExternal,441150,07-Mar-18,1900298864,1700.00,Avery Homes Grove Park Limited,115792
WARRINGTON BOROUGH COUNCIL,http://opendatacommunities.org/id/unitary-authority/warrington ,FWB,Care Purchase West Team,54080,CP-LongStayExternal,441150,07-Mar-18,1900299446,1940.00,Barchester Healthcare Brookfield,104548
WARRINGTON BOROUGH COUNCIL,http://opendatacommunities.org/id/unitary-authority/warrington ,FWB,Care Purchase South Team,54070,CP-LongStayExternal,441150,07-Mar-18,1900299882,3986.00,Barchester Healthcare Brookfield,104548
WARRINGTON BOROUGH COUNCIL,http://opendatacommunities.org/id/unitary-authority/warrington ,FWB,Care Purchase South Team,54070,CP-LongStayExternal,441150,07-Mar-18,1900299550,1940.00,Barchester Healthcare Brookfield,104548
WARRINGTON BOROUGH COUNCIL,http://opendatacommunities.org/id/unitary-authority/warrington ,FWB,Care Purchase South Team,54070,CP-LongStayExternal,441150,07-Mar-18,1900299627,1940.00,Barchester Healthcare Brookfield,104548
WARRINGTON BOROUGH COUNCIL,http://opendatacommunities.org/id/unitary-authority/warrington ,FWB,Care Purchase South Team,54070,CP-LongStayExternal,441150,07-Mar-18,1900299860,12840.00,Barchester Healthcare Brookfield,104548
WARRINGTON BOROUGH COUNCIL,http://opendatacommunities.org/id/unitary-authority/warrington ,FWB,Care Purchase South Team,54070,CP-LongStayExternal,441150,07-Mar-18,1900300003,16503.00,Barchester Healthcare Brookfield,104548
WARRINGTON BOROUGH COUNCIL,http://opendatacommunities.org/id/unitary-authority/warrington ,FWB,Care Purchase Budget,54490,CP Free Nursing Care External,443500,19-Mar-18,1900302742,620.00,Barchester Healthcare Cheshire Gran,111378
WARRINGTON BOROUGH COUNCIL,http://opendatacommunities.org/id/unitary-authority/warrington ,FWB,Care Purchase Budget,54490,CP Free Nursing Care External,443500,19-Mar-18,1900302732,620.00,Barchester Healthcare Cheshire Gran,111378
WARRINGTON BOROUGH COUNCIL,http://opendatacommunities.org/id/unitary-authority/warrington ,FWB,Care Purchase Budget,54490,CP Free Nursing Care External,443500,19-Mar-18,1900302743,620.00,Barchester Healthcare Cheshire Gran,111378
WARRINGTON BOROUGH COUNCIL,http://opendatacommunities.org/id/unitary-authority/warrington ,FWB,Care Purchase Budget,54490,CP Free Nursing Care External,443500,19-Mar-18,1900302748,1506.00,Barchester Healthcare Cheshire Gran,111378
WARRINGTON BOROUGH COUNCIL,http://opendatacommunities.org/id/unitary-authority/warrington ,FWB,Care Purchase Budget,54490,CP Free Nursing Care External,443500,19-Mar-18,1900302733,620.00,Barchester Healthcare Cheshire Gran,111378
WARRINGTON BOROUGH COUNCIL,http://opendatacommunities.org/id/unitary-authority/warrington ,FWB,Care Purchase Budget,54490,CP Free Nursing Care External,443500,19-Mar-18,1900302734,620.00,Barchester Healthcare Cheshire Gran,111378
WARRINGTON BOROUGH COUNCIL,http://opendatacommunities.org/id/unitary-authority/warrington ,FWB,Care Purchase Budget,54490,CP Free Nursing Care External,443500,19-Mar-18,1900302735,620.00,Barchester Healthcare Cheshire Gran,111378
WARRINGTON BOROUGH COUNCIL,http://opendatacommunities.org/id/unitary-authority/warrington ,FWB,Care Purchase Budget,54490,CP Free Nursing Care External,443500,19-Mar-18,1900302747,620.00,Barchester Healthcare Cheshire Gran,111378
WARRINGTON BOROUGH COUNCIL,http://opendatacommunities.org/id/unitary-authority/warrington ,FWB,Care Purchase Budget,54490,CP Free Nursing Care External,443500,19-Mar-18,1900302739,620.00,Barchester Healthcare Cheshire Gran,111378
WARRINGTON BOROUGH COUNCIL,http://opendatacommunities.org/id/unitary-authority/warrington ,FWB,Care Purchase Budget,54490,CP Free Nursing Care External,443500,19-Mar-18,1900302740,620.00,Barchester Healthcare Cheshire Gran,111378
WARRINGTON BOROUGH COUNCIL,http://opendatacommunities.org/id/unitary-authority/warrington ,FWB,Care Purchase Budget,54490,CP Free Nursing Care External,443500,19-Mar-18,1900302741,687.00,Barchester Healthcare Cheshire Gran,111378
WARRINGTON BOROUGH COUNCIL,http://opendatacommunities.org/id/unitary-authority/warrington ,FWB,Care Purchase Budget,54490,CP Free Nursing Care External,443500,19-Mar-18,1900302738,620.00,Barchester Healthcare Cheshire Gran,111378
WARRINGTON BOROUGH COUNCIL,http://opendatacommunities.org/id/unitary-authority/warrington ,FWB,Care Purchase Budget,54490,CP Free Nursing Care External,443500,19-Mar-18,1900302746,620.00,Barchester Healthcare Cheshire Gran,111378
WARRINGTON BOROUGH COUNCIL,http://opendatacommunities.org/id/unitary-authority/warrington ,FWB,Care Purchase Budget,54490,CP Free Nursing Care External,443500,19-Mar-18,1900302745,620.00,Barchester Healthcare Cheshire Gran,111378
WARRINGTON BOROUGH COUNCIL,http://opendatacommunities.org/id/unitary-authority/warrington ,FWB,Care Purchase Budget,54490,CP Free Nursing Care External,443500,19-Mar-18,1900302744,620.00,Barchester Healthcare Cheshire Gran,111378
WARRINGTON BOROUGH COUNCIL,http://opendatacommunities.org/id/unitary-authority/warrington ,FWB,Care Purchase Budget,54490,CP Free Nursing Care External,443500,19-Mar-18,1900302737,620.00,Barchester Healthcare Cheshire Gran,111378
WARRINGTON BOROUGH COUNCIL,http://opendatacommunities.org/id/unitary-authority/warrington ,FWB,Care Purchase Budget,54490,CP Free Nursing Care External,443500,19-Mar-18,1900302736,620.00,Barchester Healthcare Cheshire Gran,111378
WARRINGTON BOROUGH COUNCIL,http://opendatacommunities.org/id/unitary-authority/warrington ,FWB,Care Purchase Budget,54490,CP Free Nursing Care External,443500,19-Mar-18,1900302731,598.00,Barchester Healthcare Cheshire Gran,111378
WARRINGTON BOROUGH COUNCIL,http://opendatacommunities.org/id/unitary-authority/warrington ,FWB,Care Purchase South Team,54070,CP-Nursing Care-External,441200,07-Mar-18,1900299988,2500.00,Barchester Healthcare Cheshire Gran,111378
WARRINGTON BOROUGH COUNCIL,http://opendatacommunities.org/id/unitary-authority/warrington ,FWB,Care Purchase South Team,54070,CP Nursing EMI,441105,07-Mar-18,1900299593,2260.00,Barchester Healthcare Cheshire Gran,111378
WARRINGTON BOROUGH COUNCIL,http://opendatacommunities.org/id/unitary-authority/warrington ,FWB,Care Purchase Budget,54490,CP Free Nursing Care External,443500,07-Mar-18,1900299532,620.00,Barchester Healthcare Cheshire Gran,111378
WARRINGTON BOROUGH COUNCIL,http://opendatacommunities.org/id/unitary-authority/warrington ,FWB,Care Purchase South Team,54070,CP-Nursing Care-External,441200,07-Mar-18,1900299853,4176.00,Barchester Healthcare Cheshire Gran,111378
WARRINGTON BOROUGH COUNCIL,http://opendatacommunities.org/id/unitary-authority/warrington ,FWB,Care Purchase Budget,54490,CP Free Nursing Care External,443500,07-Mar-18,1900299898,620.00,Barchester Healthcare Cheshire Gran,111378
WARRINGTON BOROUGH COUNCIL,http://opendatacommunities.org/id/unitary-authority/warrington ,FWB,Care Purchase South Team,54070,CP Nursing EMI,441105,07-Mar-18,1900299746,2260.00,Barchester Healthcare Cheshire Gran,111378
WARRINGTON BOROUGH COUNCIL,http://opendatacommunities.org/id/unitary-authority/warrington ,FWB,Care Purchase Budget,54490,CP Free Nursing Care External,443500,07-Mar-18,1900299747,620.00,Barchester Healthcare Cheshire Gran,111378
WARRINGTON BOROUGH COUNCIL,http://opendatacommunities.org/id/unitary-authority/warrington ,FWB,Care Purchase South Team,54070,CP Residential EMI,441110,07-Mar-18,1900299679,2204.00,Barchester Healthcare Cheshire Gran,111378
WARRINGTON BOROUGH COUNCIL,http://opendatacommunities.org/id/unitary-authority/warrington ,FWB,Care Purchase East Team,54060,CP-Nursing Care-External,441200,07-Mar-18,1900299975,2536.00,Barchester Homes Westvale House,105246
WARRINGTON BOROUGH COUNCIL,http://opendatacommunities.org/id/unitary-authority/warrington ,FWB,Care Purchase Budget,54490,CP Free Nursing Care External,443500,07-Mar-18,1900299897,620.00,Barchester Homes Westvale House,105246
WARRINGTON BOROUGH COUNCIL,http://opendatacommunities.org/id/unitary-authority/warrington ,FWB,Care Purchase West Team,54080,CP-Nursing Care-External,441200,07-Mar-18,1900299484,2176.00,Barchester Homes Westvale House,105246
WARRINGTON BOROUGH COUNCIL,http://opendatacommunities.org/id/unitary-authority/warrington ,FWB,Care Purchase Budget,54490,CP Free Nursing Care External,443500,07-Mar-18,1900299451,620.00,Barchester Homes Westvale House,105246
WARRINGTON BOROUGH COUNCIL,http://opendatacommunities.org/id/unitary-authority/warrington ,FWB,Care Purchase West Team,54080,CP-Nursing Care-External,441200,07-Mar-18,1900299526,2136.00,Barchester Homes Westvale House,105246
WARRINGTON BOROUGH COUNCIL,http://opendatacommunities.org/id/unitary-authority/warrington ,FWB,Care Purchase Budget,54490,CP Free Nursing Care External,443500,07-Mar-18,1900299493,620.00,Barchester Homes Westvale House,105246
WARRINGTON BOROUGH COUNCIL,http://opendatacommunities.org/id/unitary-authority/warrington ,FWB,Care Purchase West Team,54080,CP-Nursing Care-External,441200,07-Mar-18,1900299536,2136.00,Barchester Homes Westvale House,105246
WARRINGTON BOROUGH COUNCIL,http://opendatacommunities.org/id/unitary-authority/warrington ,FWB,Care Purchase Budget,54490,CP Free Nursing Care External,443500,07-Mar-18,1900299597,620.00,Barchester Homes Westvale House,105246
WARRINGTON BOROUGH COUNCIL,http://opendatacommunities.org/id/unitary-authority/warrington ,FWB,Care Purchase West Team,54080,CP-Nursing Care-External,441200,07-Mar-18,1900299604,2136.00,Barchester Homes Westvale House,105246
WARRINGTON BOROUGH COUNCIL,http://opendatacommunities.org/id/unitary-authority/warrington ,FWB,Care Purchase Budget,54490,CP Free Nursing Care External,443500,07-Mar-18,1900299686,620.00,Barchester Homes Westvale House,105246
WARRINGTON BOROUGH COUNCIL,http://opendatacommunities.org/id/unitary-authority/warrington ,FWB,Care Purchase West Team,54080,CP-Nursing Care-External,441200,07-Mar-18,1900299808,2136.00,Barchester Homes Westvale House,105246
WARRINGTON BOROUGH COUNCIL,http://opendatacommunities.org/id/unitary-authority/warrington ,FWB,Care Purchase Budget,54490,CP Free Nursing Care External,443500,07-Mar-18,1900299804,620.00,Barchester Homes Westvale House,105246
WARRINGTON BOROUGH COUNCIL,http://opendatacommunities.org/id/unitary-authority/warrington ,FWB,Care Purchase West Team,54080,CP-Nursing Care-External,441200,07-Mar-18,1900299610,2136.00,Barchester Homes Westvale House,105246
WARRINGTON BOROUGH COUNCIL,http://opendatacommunities.org/id/unitary-authority/warrington ,FWB,Care Purchase Budget,54490,CP Free Nursing Care External,443500,07-Mar-18,1900299634,620.00,Barchester Homes Westvale House,105246
WARRINGTON BOROUGH COUNCIL,http://opendatacommunities.org/id/unitary-authority/warrington ,FWB,Care Purchase West Team,54080,CP-Nursing Care-External,441200,07-Mar-18,1900299809,2136.00,Barchester Homes Westvale House,105246
WARRINGTON BOROUGH COUNCIL,http://opendatacommunities.org/id/unitary-authority/warrington ,FWB,Care Purchase Budget,54490,CP Free Nursing Care External,443500,07-Mar-18,1900298945,620.00,HC-One Oval Ltd Birch Court,104572
WARRINGTON BOROUGH COUNCIL,http://opendatacommunities.org/id/unitary-authority/warrington ,FWB,Care Purchase Central Team,54050,CP-Nursing Care-External,441200,07-Mar-18,1900299071,2136.00,HC-One Oval Ltd Birch Court,104572
WARRINGTON BOROUGH COUNCIL,http://opendatacommunities.org/id/unitary-authority/warrington ,FWB,Care Purchase Budget,54490,CP Free Nursing Care External,443500,07-Mar-18,1900299021,620.00,HC-One Oval Ltd Birch Court,104572
WARRINGTON BOROUGH COUNCIL,http://opendatacommunities.org/id/unitary-authority/warrington ,FWB,Care Purchase South Team,54070,CP-Nursing Care-External,441200,07-Mar-18,1900299297,2136.00,HC-One Oval Ltd Birch Court,104572
WARRINGTON BOROUGH COUNCIL,http://opendatacommunities.org/id/unitary-authority/warrington ,FWB,Care Purchase Budget,54490,CP Free Nursing Care External,443500,07-Mar-18,1900299396,620.00,HC-One Oval Ltd Birch Court,104572
WARRINGTON BOROUGH COUNCIL,http://opendatacommunities.org/id/unitary-authority/warrington ,FWB,Care Purchase West Team,54080,CP Nursing EMI,441105,07-Mar-18,1900299220,2260.00,HC-One Oval Ltd Birch Court,104572
WARRINGTON BOROUGH COUNCIL,http://opendatacommunities.org/id/unitary-authority/warrington ,FWB,Care Purchase Budget,54490,CP Free Nursing Care External,443500,07-Mar-18,1900299198,620.00,HC-One Oval Ltd Birch Court,104572
WARRINGTON BOROUGH COUNCIL,http://opendatacommunities.org/id/unitary-authority/warrington ,FWB,Care Purchase Central Team,54050,CP Residential EMI,441110,07-Mar-18,1900298993,2204.00,HC-One Oval Ltd Birch Court,104572
WARRINGTON BOROUGH COUNCIL,http://opendatacommunities.org/id/unitary-authority/warrington ,FWB,Care Purchase Central Team,54050,CP Residential EMI,441110,07-Mar-18,1900298948,2204.00,HC-One Oval Ltd Birch Court,104572
WARRINGTON BOROUGH COUNCIL,http://opendatacommunities.org/id/unitary-authority/warrington ,FWB,Care Purchase Central Team,54050,CP Residential EMI,441110,07-Mar-18,1900299023,2204.00,HC-One Oval Ltd Birch Court,104572
WARRINGTON BOROUGH COUNCIL,http://opendatacommunities.org/id/unitary-authority/warrington ,FWB,Care Purchase South Team,54070,CP-Nursing Care-External,441200,07-Mar-18,1900299246,1907.00,HC-One Oval Ltd Birch Court,104572
WARRINGTON BOROUGH COUNCIL,http://opendatacommunities.org/id/unitary-authority/warrington ,FWB,Care Purchase Budget,54490,CP Free Nursing Care External,443500,07-Mar-18,1900299245,554.00,HC-One Oval Ltd Birch Court,104572
WARRINGTON BOROUGH COUNCIL,http://opendatacommunities.org/id/unitary-authority/warrington ,FWB,Care Purchase Central Team,54050,CP-Nursing Care-External,441200,07-Mar-18,1900298994,2136.00,HC-One Oval Ltd Birch Court,104572
WARRINGTON BOROUGH COUNCIL,http://opendatacommunities.org/id/unitary-authority/warrington ,FWB,Care Purchase Budget,54490,CP Free Nursing Care External,443500,07-Mar-18,1900299150,620.00,HC-One Oval Ltd Birch Court,104572
WARRINGTON BOROUGH COUNCIL,http://opendatacommunities.org/id/unitary-authority/warrington ,FWB,Care Purchase South Team,54070,CP-Nursing Care-External,441200,07-Mar-18,1900299075,2136.00,HC-One Oval Ltd Birch Court,104572
WARRINGTON BOROUGH COUNCIL,http://opendatacommunities.org/id/unitary-authority/warrington ,FWB,Care Purchase Budget,54490,CP Free Nursing Care External,443500,07-Mar-18,1900299030,620.00,HC-One Oval Ltd Birch Court,104572
WARRINGTON BOROUGH COUNCIL,http://opendatacommunities.org/id/unitary-authority/warrington ,FWB,Care Purchase Central Team,54050,CP-Nursing Care-External,441200,07-Mar-18,1900299261,2136.00,HC-One Oval Ltd Birch Court,104572
WARRINGTON BOROUGH COUNCIL,http://opendatacommunities.org/id/unitary-authority/warrington ,FWB,Care Purchase Budget,54490,CP Free Nursing Care External,443500,07-Mar-18,1900299273,620.00,HC-One Oval Ltd Birch Court,104572
WARRINGTON BOROUGH COUNCIL,http://opendatacommunities.org/id/unitary-authority/warrington ,FWB,Care Purchase Central Team,54050,CP-Nursing Care-External,441200,07-Mar-18,1900299375,2136.00,HC-One Oval Ltd Birch Court,104572
WARRINGTON BOROUGH COUNCIL,http://opendatacommunities.org/id/unitary-authority/warrington ,FWB,Care Purchase Budget,54490,CP Free Nursing Care External,443500,07-Mar-18,1900299191,620.00,HC-One Oval Ltd Birch Court,104572
WARRINGTON BOROUGH COUNCIL,http://opendatacommunities.org/id/unitary-authority/warrington ,FWB,Care Purchase East Team,54060,CP Residential EMI,441110,07-Mar-18,1900299032,2204.00,HC-One Oval Ltd Birch Court,104572
WARRINGTON BOROUGH COUNCIL,http://opendatacommunities.org/id/unitary-authority/warrington ,FWB,Care Purchase Central Team,54050,CP Residential EMI,441110,07-Mar-18,1900299035,2204.00,HC-One Oval Ltd Birch Court,104572
WARRINGTON BOROUGH COUNCIL,http://opendatacommunities.org/id/unitary-authority/warrington ,FWB,Care Purchase Central Team,54050,CP Nursing EMI,441105,07-Mar-18,1900299207,2260.00,HC-One Oval Ltd Birch Court,104572
WARRINGTON BOROUGH COUNCIL,http://opendatacommunities.org/id/unitary-authority/warrington ,FWB,Care Purchase Budget,54490,CP Free Nursing Care External,443500,07-Mar-18,1900299036,620.00,HC-One Oval Ltd Birch Court,104572
WARRINGTON BOROUGH COUNCIL,http://opendatacommunities.org/id/unitary-authority/warrington ,FWB,Care Purchase - Hospital Discharge Team,54280,CP-Nursing Care-External,441200,07-Mar-18,1900299189,2136.00,HC-One Oval Ltd Birch Court,104572
WARRINGTON BOROUGH COUNCIL,http://opendatacommunities.org/id/unitary-authority/warrington ,FWB,Care Purchase Central Team,54050,CP-Nursing Care-External,441200,07-Mar-18,1900299183,2136.00,HC-One Oval Ltd Birch Court,104572
WARRINGTON BOROUGH COUNCIL,http://opendatacommunities.org/id/unitary-authority/warrington ,FWB,Care Purchase Budget,54490,CP Free Nursing Care External,443500,07-Mar-18,1900299307,853.00,HC-One Oval Ltd Birch Court,104572
WARRINGTON BOROUGH COUNCIL,http://opendatacommunities.org/id/unitary-authority/warrington ,FWB,Care Purchase Central Team,54050,CP-Nursing Care-External,441200,07-Mar-18,1900299128,2756.00,HC-One Oval Ltd Birch Court,104572
WARRINGTON BOROUGH COUNCIL,http://opendatacommunities.org/id/unitary-authority/warrington ,FWB,Care Purchase West Team,54080,CP Nursing EMI,441105,07-Mar-18,1900299387,2260.00,HC-One Oval Ltd Birch Court,104572
WARRINGTON BOROUGH COUNCIL,http://opendatacommunities.org/id/unitary-authority/warrington ,FWB,Care Purchase Central Team,54050,CP Nursing EMI,441105,07-Mar-18,1900299281,17676.00,HC-One Oval Ltd Birch Court,104572
WARRINGTON BOROUGH COUNCIL,http://opendatacommunities.org/id/unitary-authority/warrington ,FWB,Care Purchase Central Team,54050,CP Free Nursing Care External,443500,07-Mar-18,1900299281,4851.00,HC-One Oval Ltd Birch Court,104572
WARRINGTON BOROUGH COUNCIL,http://opendatacommunities.org/id/unitary-authority/warrington ,FWB,Care Purchase East Team,54060,CP-Nursing Care-External,441200,07-Mar-18,1700021417,2136.00,HC-One Oval Ltd Birch Court,104572
WARRINGTON BOROUGH COUNCIL,http://opendatacommunities.org/id/unitary-authority/warrington ,FWB,Care Purchase Budget,54490,CP Free Nursing Care External,443500,07-Mar-18,1900299299,620.00,HC-One Oval Ltd Birch Court,104572
WARRINGTON BOROUGH COUNCIL,http://opendatacommunities.org/id/unitary-authority/warrington ,FWB,Care Purchase South Team,54070,CP Residential EMI,441110,07-Mar-18,1900299332,586.00,HC-One Oval Ltd Birch Court,104572
WARRINGTON BOROUGH COUNCIL,http://opendatacommunities.org/id/unitary-authority/warrington ,FWB,Care Purchase Central Team,54050,CP-Nursing Care-External,441200,07-Mar-18,1900299091,2136.00,HC-One Oval Ltd Birch Court,104572
WARRINGTON BOROUGH COUNCIL,http://opendatacommunities.org/id/unitary-authority/warrington ,FWB,Care Purchase Budget,54490,CP Free Nursing Care External,443500,07-Mar-18,1900299092,620.00,HC-One Oval Ltd Birch Court,104572
WARRINGTON BOROUGH COUNCIL,http://opendatacommunities.org/id/unitary-authority/warrington ,FWB,Care Purchase West Team,54080,CP-Nursing Care-External,441200,07-Mar-18,1900299141,2136.00,HC-One Oval Ltd Birch Court,104572
WARRINGTON BOROUGH COUNCIL,http://opendatacommunities.org/id/unitary-authority/warrington ,FWB,Care Purchase Budget,54490,CP Free Nursing Care External,443500,07-Mar-18,1900299099,620.00,HC-One Oval Ltd Birch Court,104572
WARRINGTON BOROUGH COUNCIL,http://opendatacommunities.org/id/unitary-authority/warrington ,FWB,Care Purchase Central Team,54050,CP Nursing EMI,441105,07-Mar-18,1900299046,2260.00,HC-One Oval Ltd Birch Court,104572
WARRINGTON BOROUGH COUNCIL,http://opendatacommunities.org/id/unitary-authority/warrington ,FWB,Care Purchase Budget,54490,CP Free Nursing Care External,443500,07-Mar-18,1900299101,620.00,HC-One Oval Ltd Birch Court,104572
WARRINGTON BOROUGH COUNCIL,http://opendatacommunities.org/id/unitary-authority/warrington ,FWB,Care Purchase Central Team,54050,CP Residential EMI,441110,07-Mar-18,1900299106,2204.00,HC-One Oval Ltd Birch Court,104572
WARRINGTON BOROUGH COUNCIL,http://opendatacommunities.org/id/unitary-authority/warrington ,FWB,Care Purchase Central Team,54050,CP-Nursing Care-External,441200,07-Mar-18,1900299048,2136.00,HC-One Oval Ltd Birch Court,104572
WARRINGTON BOROUGH COUNCIL,http://opendatacommunities.org/id/unitary-authority/warrington ,FWB,Care Purchase Budget,54490,CP Free Nursing Care External,443500,07-Mar-18,1900299049,620.00,HC-One Oval Ltd Birch Court,104572
WARRINGTON BOROUGH COUNCIL,http://opendatacommunities.org/id/unitary-authority/warrington ,FWB,Care Purchase Central Team,54050,CP-Nursing Care-External,441200,07-Mar-18,1900299050,2212.00,HC-One Oval Ltd Birch Court,104572
WARRINGTON BOROUGH COUNCIL,http://opendatacommunities.org/id/unitary-authority/warrington ,FWB,Care Purchase Budget,54490,CP Free Nursing Care External,443500,07-Mar-18,1900299347,620.00,HC-One Oval Ltd Birch Court,104572
WARRINGTON BOROUGH COUNCIL,http://opendatacommunities.org/id/unitary-authority/warrington ,FWB,Care Purchase Central Team,54050,CP-Nursing Care-External,441200,07-Mar-18,1900299305,2136.00,HC-One Oval Ltd Birch Court,104572
WARRINGTON BOROUGH COUNCIL,http://opendatacommunities.org/id/unitary-authority/warrington ,FWB,Care Purchase Budget,54490,CP Free Nursing Care External,443500,07-Mar-18,1900299271,620.00,HC-One Oval Ltd Birch Court,104572
WARRINGTON BOROUGH COUNCIL,http://opendatacommunities.org/id/unitary-authority/warrington ,FWB,Care Purchase Central Team,54050,CP Residential EMI,441110,07-Mar-18,1900299051,2204.00,HC-One Oval Ltd Birch Court,104572
WARRINGTON BOROUGH COUNCIL,http://opendatacommunities.org/id/unitary-authority/warrington ,FWB,Care Purchase Central Team,54050,CP-Nursing Care-External,441200,07-Mar-18,1900299270,2136.00,HC-One Oval Ltd Birch Court,104572
WARRINGTON BOROUGH COUNCIL,http://opendatacommunities.org/id/unitary-authority/warrington ,FWB,Care Purchase Budget,54490,CP Free Nursing Care External,443500,07-Mar-18,1900299230,620.00,HC-One Oval Ltd Birch Court,104572
WARRINGTON BOROUGH COUNCIL,http://opendatacommunities.org/id/unitary-authority/warrington ,FWB,Care Purchase South Team,54070,CP Respite Nursing,441130,07-Mar-18,1900299320,569.00,HC-One Oval Ltd Birch Court,104572
WARRINGTON BOROUGH COUNCIL,http://opendatacommunities.org/id/unitary-authority/warrington ,FWB,Care Purchase Central Team,54050,CP Residential EMI,441110,07-Mar-18,1900299054,2204.00,HC-One Oval Ltd Birch Court,104572
WARRINGTON BOROUGH COUNCIL,http://opendatacommunities.org/id/unitary-authority/warrington ,FWB,Care Purchase Central Team,54050,CP Residential EMI,441110,07-Mar-18,1900299353,2204.00,HC-One Oval Ltd Birch Court,104572
WARRINGTON BOROUGH COUNCIL,http://opendatacommunities.org/id/unitary-authority/warrington ,FWB,Care Purchase East Team,54060,CP Nursing EMI,441105,07-Mar-18,1900299182,2880.00,HC-One Oval Ltd Birch Court,104572
WARRINGTON BOROUGH COUNCIL,http://opendatacommunities.org/id/unitary-authority/warrington ,FWB,Care Purchase Central Team,54050,CP Residential EMI,441110,07-Mar-18,1900299056,2204.00,HC-One Oval Ltd Birch Court,104572
WARRINGTON BOROUGH COUNCIL,http://opendatacommunities.org/id/unitary-authority/warrington ,FWB,Care Purchase West Team,54080,CP Residential EMI,441110,07-Mar-18,1900299319,1674.00,HC-One Oval Ltd Birch Court,104572
WARRINGTON BOROUGH COUNCIL,http://opendatacommunities.org/id/unitary-authority/warrington ,FWB,Care Purchase South Team,54070,CP-Nursing Care-External,441200,07-Mar-18,1900299059,2136.00,HC-One Oval Ltd Birch Court,104572
WARRINGTON BOROUGH COUNCIL,http://opendatacommunities.org/id/unitary-authority/warrington ,FWB,Care Purchase Budget,54490,CP Free Nursing Care External,443500,07-Mar-18,1900299120,620.00,HC-One Oval Ltd Birch Court,104572
WARRINGTON BOROUGH COUNCIL,http://opendatacommunities.org/id/unitary-authority/warrington ,FWB,Care Purchase Central Team,54050,CP Residential EMI,441110,07-Mar-18,1900299060,2204.00,HC-One Oval Ltd Birch Court,104572
WARRINGTON BOROUGH COUNCIL,http://opendatacommunities.org/id/unitary-authority/warrington ,FWB,Care Purchase Central Team,54050,CP Residential EMI,441110,07-Mar-18,1900299358,2204.00,HC-One Oval Ltd Birch Court,104572
WARRINGTON BOROUGH COUNCIL,http://opendatacommunities.org/id/unitary-authority/warrington ,FWB,Care Purchase Central Team,54050,CP Residential EMI,441110,07-Mar-18,1900299359,2204.00,HC-One Oval Ltd Birch Court,104572
WARRINGTON BOROUGH COUNCIL,http://opendatacommunities.org/id/unitary-authority/warrington ,FWB,Care Purchase South Team,54070,CP Nursing EMI,441105,07-Mar-18,1900299360,2260.00,HC-One Oval Ltd Birch Court,104572
WARRINGTON BOROUGH COUNCIL,http://opendatacommunities.org/id/unitary-authority/warrington ,FWB,Care Purchase Budget,54490,CP Free Nursing Care External,443500,07-Mar-18,1900299199,620.00,HC-One Oval Ltd Birch Court,104572
WARRINGTON BOROUGH COUNCIL,http://opendatacommunities.org/id/unitary-authority/warrington ,FWB,Care Purchase East Team,54060,CP Nursing EMI,441105,07-Mar-18,1900299201,2880.00,HC-One Oval Ltd Birch Court,104572
WARRINGTON BOROUGH COUNCIL,http://opendatacommunities.org/id/unitary-authority/warrington ,FWB,Care Purchase East Team,54060,CP Residential EMI,441110,07-Mar-18,1900299426,2125.00,HC-One Oval Ltd Birch Court,104572
WARRINGTON BOROUGH COUNCIL,http://opendatacommunities.org/id/unitary-authority/warrington ,FWB,Care Purchase East Team,54060,CP Residential EMI,441110,07-Mar-18,1900299415,787.00,HC-One Oval Ltd Birch Court,104572
WARRINGTON BOROUGH COUNCIL,http://opendatacommunities.org/id/unitary-authority/warrington ,FWB,Care Purchase Central Team,54050,CP-Nursing Care-External,441200,07-Mar-18,1900299238,915.00,HC-One Oval Ltd Birch Court,104572
WARRINGTON BOROUGH COUNCIL,http://opendatacommunities.org/id/unitary-authority/warrington ,FWB,Care Purchase East Team,54060,CP Residential EMI,441110,07-Mar-18,1900299156,2204.00,HC-One Oval Ltd Birch Court,104572
WARRINGTON BOROUGH COUNCIL,http://opendatacommunities.org/id/unitary-authority/warrington ,FWB,Care Purchase West Team,54080,CP-Nursing Care-External,441200,07-Mar-18,1900299244,3051.00,HC-One Oval Ltd Birch Court,104572
WARRINGTON BOROUGH COUNCIL,http://opendatacommunities.org/id/unitary-authority/warrington ,FWB,Care Purchase Budget,54490,CP Free Nursing Care External,443500,07-Mar-18,1900299285,886.00,HC-One Oval Ltd Birch Court,104572
WARRINGTON BOROUGH COUNCIL,http://opendatacommunities.org/id/unitary-authority/warrington ,FWB,DSG 2 Year Old Fund,31601,Payment of Grants,470050,02-Mar-18,1900297308,1848.00,Heathfield House Day Nursery,400138
WARRINGTON BOROUGH COUNCIL,http://opendatacommunities.org/id/unitary-authority/warrington ,FWB,DSG Early Years PVI Settings,32417,Private & Voluntary 3 Year Olds,470100,02-Mar-18,1900297407,4727.00,Heathfield House Day Nursery,400138
WARRINGTON BOROUGH COUNCIL,http://opendatacommunities.org/id/unitary-authority/warrington ,FWB,DSG Early Years PVI Settings,32417,Private & Voluntary 4 Year Olds,470150,02-Mar-18,1900297538,1512.00,Heathfield House Day Nursery,400138
WARRINGTON BOROUGH COUNCIL,http://opendatacommunities.org/id/unitary-authority/warrington ,FWB,Care Purchase South Team,54070,CP Residential EMI,441110,07-Mar-18,1900299534,2204.00,Heathfield Residental Home,100059
WARRINGTON BOROUGH COUNCIL,http://opendatacommunities.org/id/unitary-authority/warrington ,FWB,Care Purchase South Team,54070,CP Residential EMI,441110,07-Mar-18,1900299933,2204.00,Heathfield Residental Home,100059
WARRINGTON BOROUGH COUNCIL,http://opendatacommunities.org/id/unitary-authority/warrington ,FWB,Care Purchase West Team,54080,CP-LongStayExternal,441150,07-Mar-18,1900299435,1940.00,Heathside Elderly Persons Home,104777
WARRINGTON BOROUGH COUNCIL,http://opendatacommunities.org/id/unitary-authority/warrington ,FWB,Care Purchase West Team,54080,CP Residential EMI,441110,07-Mar-18,1900299473,2204.00,Heathside Elderly Persons Home,104777
WARRINGTON BOROUGH COUNCIL,http://opendatacommunities.org/id/unitary-authority/warrington ,FWB,Care Purchase West Team,54080,CP-LongStayExternal,441150,07-Mar-18,1900299902,1940.00,Heathside Elderly Persons Home,104777
WARRINGTON BOROUGH COUNCIL,http://opendatacommunities.org/id/unitary-authority/warrington ,FWB,Care Purchase West Team,54080,CP-LongStayExternal,441150,07-Mar-18,1900299525,1940.00,Heathside Elderly Persons Home,104777
WARRINGTON BOROUGH COUNCIL,http://opendatacommunities.org/id/unitary-authority/warrington ,FWB,Care Purchase West Team,54080,CP Residential EMI,441110,07-Mar-18,1900299458,2204.00,Heathside Elderly Persons Home,104777
WARRINGTON BOROUGH COUNCIL,http://opendatacommunities.org/id/unitary-authority/warrington ,FWB,Care Purchase West Team,54080,CP Residential EMI,441110,07-Mar-18,1900299537,2204.00,Heathside Elderly Persons Home,104777
WARRINGTON BOROUGH COUNCIL,http://opendatacommunities.org/id/unitary-authority/warrington ,FWB,Care Purchase West Team,54080,CP Residential EMI,441110,07-Mar-18,1900299505,2204.00,Heathside Elderly Persons Home,104777
WARRINGTON BOROUGH COUNCIL,http://opendatacommunities.org/id/unitary-authority/warrington ,FWB,Care Purchase Central Team,54050,CP-LongStayExternal,441150,07-Mar-18,1900299506,1940.00,Heathside Elderly Persons Home,104777
WARRINGTON BOROUGH COUNCIL,http://opendatacommunities.org/id/unitary-authority/warrington ,FWB,Care Purchase South Team,54070,CP Residential EMI,441110,07-Mar-18,1900299791,2204.00,Heathside Elderly Persons Home,104777
WARRINGTON BOROUGH COUNCIL,http://opendatacommunities.org/id/unitary-authority/warrington ,FWB,Care Purchase South Team,54070,CP-LongStayExternal,441150,07-Mar-18,1900299625,1940.00,Heathside Elderly Persons Home,104777
WARRINGTON BOROUGH COUNCIL,http://opendatacommunities.org/id/unitary-authority/warrington ,FWB,Care Purchase West Team,54080,CP-LongStayExternal,441150,07-Mar-18,1900299558,1940.00,Heathside Elderly Persons Home,104777
WARRINGTON BOROUGH COUNCIL,http://opendatacommunities.org/id/unitary-authority/warrington ,FWB,Care Purchase East Team,54060,CP Residential EMI,441110,07-Mar-18,1900299790,2204.00,Heathside Elderly Persons Home,104777
WARRINGTON BOROUGH COUNCIL,http://opendatacommunities.org/id/unitary-authority/warrington ,FWB,Care Purchase Central Team,54050,CP-LongStayExternal,441150,07-Mar-18,1900299929,2080.00,Heathside Elderly Persons Home,104777
WARRINGTON BOROUGH COUNCIL,http://opendatacommunities.org/id/unitary-authority/warrington ,FWB,Care Purchase West Team,54080,CP Residential EMI,441110,07-Mar-18,1900299628,2204.00,Heathside Elderly Persons Home,104777
WARRINGTON BOROUGH COUNCIL,http://opendatacommunities.org/id/unitary-authority/warrington ,FWB,Care Purchase West Team,54080,CP-LongStayExternal,441150,07-Mar-18,1900299925,13441.00,Heathside Elderly Persons Home,104777
WARRINGTON BOROUGH COUNCIL,http://opendatacommunities.org/id/unitary-authority/warrington ,FWB,Care Purchase East Team,54060,CP-LongStayExternal,441150,07-Mar-18,1900299670,1940.00,Heathside Elderly Persons Home,104777
WARRINGTON BOROUGH COUNCIL,http://opendatacommunities.org/id/unitary-authority/warrington ,FWB,Care Purchase West Team,54080,CP-LongStayExternal,441150,07-Mar-18,1900299676,1940.00,Heathside Elderly Persons Home,104777
WARRINGTON BOROUGH COUNCIL,http://opendatacommunities.org/id/unitary-authority/warrington ,FWB,Care Purchase West Team,54080,CP-LongStayExternal,441150,07-Mar-18,1900299994,2080.00,Heathside Elderly Persons Home,104777
WARRINGTON BOROUGH COUNCIL,http://opendatacommunities.org/id/unitary-authority/warrington ,FWB,Care Purchase West Team,54080,CP-LongStayExternal,441150,07-Mar-18,1900299830,1940.00,Heathside Elderly Persons Home,104777
WARRINGTON BOROUGH COUNCIL,http://opendatacommunities.org/id/unitary-authority/warrington ,FWB,Care Purchase West Team,54080,CP Residential EMI,441110,07-Mar-18,1900299793,2204.00,Heathside Elderly Persons Home,104777
WARRINGTON BOROUGH COUNCIL,http://opendatacommunities.org/id/unitary-authority/warrington ,FWB,Care Purchase West Team,54080,Respite Residential EMI,441140,07-Mar-18,1900299995,837.00,Heathside Elderly Persons Home,104777
WARRINGTON BOROUGH COUNCIL,http://opendatacommunities.org/id/unitary-authority/warrington ,FWB,Residential Placements,30102,Intermediate Care Expenditure,441310,26-Feb-18,1900297167,11980.00,Hexagon Care Services Ltd,108065
WARRINGTON BOROUGH COUNCIL,http://opendatacommunities.org/id/unitary-authority/warrington ,FWB,Residential Placements,30102,CP-LongStayExternal,441150,26-Feb-18,1900297132,11400.00,Hexagon Care Services Ltd,108065
WARRINGTON BOROUGH COUNCIL,http://opendatacommunities.org/id/unitary-authority/warrington ,FWB,Residential Placements,30102,CP-LongStayExternal,441150,26-Feb-18,1900297113,10680.00,Hexagon Care Services Ltd,108065
WARRINGTON BOROUGH COUNCIL,http://opendatacommunities.org/id/unitary-authority/warrington ,FWB,Residential Placements,30102,Intermediate Care Expenditure,441310,26-Mar-18,1900305134,11980.00,Hexagon Care Services Ltd,108065
WARRINGTON BOROUGH COUNCIL,http://opendatacommunities.org/id/unitary-authority/warrington ,FWB,Residential Placements,30102,CP-LongStayExternal,441150,26-Mar-18,1900305097,11400.00,Hexagon Care Services Ltd,108065
WARRINGTON BOROUGH COUNCIL,http://opendatacommunities.org/id/unitary-authority/warrington ,FWB,Residential Placements,30102,CP-LongStayExternal,441150,26-Mar-18,1900305084,10680.00,Hexagon Care Services Ltd,108065
WARRINGTON BOROUGH COUNCIL,http://opendatacommunities.org/id/unitary-authority/warrington ,FWB,Residential Placements,30102,CP-LongStayExternal,441150,26-Feb-18,1900297184,13370.00,High Peak School Ltd,116285
WARRINGTON BOROUGH COUNCIL,http://opendatacommunities.org/id/unitary-authority/warrington ,FWB,Residential Placements,30102,CP-LongStayExternal,441150,26-Mar-18,1900305149,13370.00,High Peak School Ltd,116285
WARRINGTON BOROUGH COUNCIL,http://opendatacommunities.org/id/unitary-authority/warrington ,COR,Corporate Planning Items,61020,Apprenticeship Levy,505175,12-Mar-18,1900300685,38402.00,Hm Revenue And Customs,440026
WARRINGTON BOROUGH COUNCIL,http://opendatacommunities.org/id/unitary-authority/warrington ,RSC,Council Tax & Recovery,10320,Court Costs,460100,20-Mar-18,1900302856,2580.00,Hmcs North Cheshire Collections,102261
WARRINGTON BOROUGH COUNCIL,http://opendatacommunities.org/id/unitary-authority/warrington ,FWB,DSG Early Years PVI Settings,32417,Private & Voluntary 3 Year Olds,470100,02-Mar-18,1900297408,11809.00,Holly Grange Montessori Nursery Ltd,400236
WARRINGTON BOROUGH COUNCIL,http://opendatacommunities.org/id/unitary-authority/warrington ,FWB,DSG Early Years PVI Settings,32417,Private & Voluntary 4 Year Olds,470150,02-Mar-18,1900297539,1080.00,Holly Grange Montessori Nursery Ltd,400236
WARRINGTON BOROUGH COUNCIL,http://opendatacommunities.org/id/unitary-authority/warrington ,ENO,Housing Projects,82008,Disabled Persons Grant 1996,554000,27-Mar-18,1900305806,524.00,Home Comforts,102216
WARRINGTON BOROUGH COUNCIL,http://opendatacommunities.org/id/unitary-authority/warrington ,FWB,Care Purchase Central Team,54050,Supported Accommodation,440975,09-Mar-18,1900300063,2370.00,Homelife Leeds Ltd,101794
WARRINGTON BOROUGH COUNCIL,http://opendatacommunities.org/id/unitary-authority/warrington ,FWB,DSG Inter Authority Recoupment,32009,Recoupment Charges,490700,20-Mar-18,1900302832,6000.00,Hope Academy,111362
WARRINGTON BOROUGH COUNCIL,http://opendatacommunities.org/id/unitary-authority/warrington ,FWB,Residential Placements,30102,CP-LongStayExternal,441150,26-Feb-18,1900295362,19500.00,Horizon Care,113468
WARRINGTON BOROUGH COUNCIL,http://opendatacommunities.org/id/unitary-authority/warrington ,FWB,Residential Placements,30102,CP-LongStayExternal,441150,26-Feb-18,1900295361,12400.00,Horizon Care,113468
WARRINGTON BOROUGH COUNCIL,http://opendatacommunities.org/id/unitary-authority/warrington ,FWB,Residential Placements,30102,CP-LongStayExternal,441150,07-Mar-18,1900300023,13729.00,Horizon Care,113468
WARRINGTON BOROUGH COUNCIL,http://opendatacommunities.org/id/unitary-authority/warrington ,FWB,Care Purchase South Team,54070,CP-Domicil.External,440950,09-Mar-18,1900300065,1440.00,Hummingbird Home Care Ltd,116286
WARRINGTON BOROUGH COUNCIL,http://opendatacommunities.org/id/unitary-authority/warrington ,FWB,Care Purchase South Team,54070,CP-Domicil.External,440950,15-Mar-18,1900301629,1440.00,Hummingbird Home Care Ltd,116286
WARRINGTON BOROUGH COUNCIL,http://opendatacommunities.org/id/unitary-authority/warrington ,FWB,Care Purchase South Team,54070,CP-Domicil.External,440950,15-Mar-18,1900301627,560.00,Hummingbird Home Care Ltd,116286
WARRINGTON BOROUGH COUNCIL,http://opendatacommunities.org/id/unitary-authority/warrington ,FWB,Care Purchase South Team,54070,CP-Domicil.External,440950,26-Mar-18,1900305448,1440.00,Hummingbird Home Care Ltd,116286
WARRINGTON BOROUGH COUNCIL,http://opendatacommunities.org/id/unitary-authority/warrington ,FWB,Care Purchase South Team,54070,CP-Domicil.External,440950,26-Mar-18,1900305452,560.00,Hummingbird Home Care Ltd,116286
WARRINGTON BOROUGH COUNCIL,http://opendatacommunities.org/id/unitary-authority/warrington ,FWB,Care Purchase South Team,54070,CP-Domicil.External,440950,09-Mar-18,1900300062,1440.00,Hummingbird Home Care Ltd,116286
WARRINGTON BOROUGH COUNCIL,http://opendatacommunities.org/id/unitary-authority/warrington ,FWB,Care Purchase West Team,54080,CP-LongStayExternal,441150,07-Mar-18,1900299490,6381.00,HWCGS Care Ltd,108619
WARRINGTON BOROUGH COUNCIL,http://opendatacommunities.org/id/unitary-authority/warrington ,FWB,Care Purchase West Team,54080,CP-LongStayExternal,441150,07-Mar-18,1900299460,7244.00,HWCGS Care Ltd,108619
WARRINGTON BOROUGH COUNCIL,http://opendatacommunities.org/id/unitary-authority/warrington ,CYP,Childrens Other,81004,Payment of Grants,470050,26-Feb-18,1900295351,125000.00,Ide Youth Zones,116395
WARRINGTON BOROUGH COUNCIL,http://opendatacommunities.org/id/unitary-authority/warrington ,CYP,Childrens Other,81004,ICT Comms - Equipment Purchase,450100,13-Feb-18,1900292500,3444.00,IDN Supplies Ltd,115679
WARRINGTON BOROUGH COUNCIL,http://opendatacommunities.org/id/unitary-authority/warrington ,CYP,Childrens Other,81004,ICT Comms - Equipment Purchase,450100,02-Mar-18,1900297273,3936.00,IDN Supplies Ltd,115679
WARRINGTON BOROUGH COUNCIL,http://opendatacommunities.org/id/unitary-authority/warrington ,FWB,Care Purchase Central Team,54050,Supported Accommodation,440975,26-Feb-18,1900295470,2671.00,Independent Living Alliance,100726
WARRINGTON BOROUGH COUNCIL,http://opendatacommunities.org/id/unitary-authority/warrington ,FWB,Care Purchase Central Team,54050,Supported Accommodation,440975,26-Feb-18,1900295471,2284.00,Independent Living Alliance,100726
WARRINGTON BOROUGH COUNCIL,http://opendatacommunities.org/id/unitary-authority/warrington ,FWB,Care Purchase Central Team,54050,Supported Accommodation,440975,26-Feb-18,1900295466,3915.00,Independent Living Alliance,100726
WARRINGTON BOROUGH COUNCIL,http://opendatacommunities.org/id/unitary-authority/warrington ,FWB,Care Purchase Central Team,54050,Supported Accommodation,440975,26-Feb-18,1900295469,3176.00,Independent Living Alliance,100726
WARRINGTON BOROUGH COUNCIL,http://opendatacommunities.org/id/unitary-authority/warrington ,FWB,Care Purchase Central Team,54050,Supported Accommodation,440975,26-Feb-18,1900295472,3280.00,Independent Living Alliance,100726
WARRINGTON BOROUGH COUNCIL,http://opendatacommunities.org/id/unitary-authority/warrington ,FWB,Care Purchase Central Team,54050,Supported Accommodation,440975,26-Feb-18,1900295467,4977.00,Independent Living Alliance,100726
WARRINGTON BOROUGH COUNCIL,http://opendatacommunities.org/id/unitary-authority/warrington ,FWB,Care Purchase Central Team,54050,Supported Accommodation,440975,26-Feb-18,1900295473,5002.00,Independent Living Alliance,100726
WARRINGTON BOROUGH COUNCIL,http://opendatacommunities.org/id/unitary-authority/warrington ,FWB,Care Purchase Central Team,54050,Supported Accommodation,440975,26-Feb-18,1900295465,3915.00,Independent Living Alliance,100726
WARRINGTON BOROUGH COUNCIL,http://opendatacommunities.org/id/unitary-authority/warrington ,FWB,Care Purchase Central Team,54050,Supported Accommodation,440975,26-Feb-18,1900295464,2671.00,Independent Living Alliance,100726
WARRINGTON BOROUGH COUNCIL,http://opendatacommunities.org/id/unitary-authority/warrington ,FWB,Care Purchase Central Team,54050,Supported Accommodation,440975,26-Feb-18,1900295503,6051.00,Independent Living Alliance,100726
WARRINGTON BOROUGH COUNCIL,http://opendatacommunities.org/id/unitary-authority/warrington ,FWB,Care Purchase Central Team,54050,Supporting People - External,441250,26-Feb-18,1900295503,618.00,Independent Living Alliance,100726
WARRINGTON BOROUGH COUNCIL,http://opendatacommunities.org/id/unitary-authority/warrington ,FWB,Care Purchase South Team,54070,CP-Domicil.External,440950,26-Feb-18,1900295516,3813.00,Independent Living Alliance,100726
WARRINGTON BOROUGH COUNCIL,http://opendatacommunities.org/id/unitary-authority/warrington ,FWB,Care Purchase Central Team,54050,Supported Accommodation,440975,26-Feb-18,1900295507,1908.00,Independent Living Alliance,100726
WARRINGTON BOROUGH COUNCIL,http://opendatacommunities.org/id/unitary-authority/warrington ,FWB,Care Purchase West Team,54080,Supported Accommodation,440975,26-Feb-18,1900295508,12470.00,Independent Living Alliance,100726
WARRINGTON BOROUGH COUNCIL,http://opendatacommunities.org/id/unitary-authority/warrington ,FWB,Care Purchase Central Team,54050,Supported Accommodation,440975,26-Feb-18,1900295509,1234.00,Independent Living Alliance,100726
WARRINGTON BOROUGH COUNCIL,http://opendatacommunities.org/id/unitary-authority/warrington ,FWB,Care Purchase Central Team,54050,Supported Accommodation,440975,26-Feb-18,1900295521,518.00,Independent Living Alliance,100726
WARRINGTON BOROUGH COUNCIL,http://opendatacommunities.org/id/unitary-authority/warrington ,FWB,Care Purchase Central Team,54050,Supporting People - External,441250,26-Feb-18,1900295509,888.00,Independent Living Alliance,100726
WARRINGTON BOROUGH COUNCIL,http://opendatacommunities.org/id/unitary-authority/warrington ,FWB,Care Purchase South Team,54070,Supported Accommodation,440975,26-Feb-18,1900295517,2564.00,Independent Living Alliance,100726
WARRINGTON BOROUGH COUNCIL,http://opendatacommunities.org/id/unitary-authority/warrington ,FWB,Care Purchase South Team,54070,Supporting People - External,441250,26-Feb-18,1900295517,1363.00,Independent Living Alliance,100726
WARRINGTON BOROUGH COUNCIL,http://opendatacommunities.org/id/unitary-authority/warrington ,FWB,Care Purchase South Team,54070,Supported Accommodation,440975,26-Feb-18,1900295510,2564.00,Independent Living Alliance,100726
WARRINGTON BOROUGH COUNCIL,http://opendatacommunities.org/id/unitary-authority/warrington ,FWB,Care Purchase South Team,54070,Supporting People - External,441250,26-Feb-18,1900295510,1363.00,Independent Living Alliance,100726
WARRINGTON BOROUGH COUNCIL,http://opendatacommunities.org/id/unitary-authority/warrington ,FWB,Care Purchase East Team,54060,CP-Domicil.External,440950,26-Feb-18,1900295511,2357.00,Independent Living Alliance,100726
WARRINGTON BOROUGH COUNCIL,http://opendatacommunities.org/id/unitary-authority/warrington ,FWB,Care Purchase Central Team,54050,Supported Accommodation,440975,26-Feb-18,1900295502,1234.00,Independent Living Alliance,100726
WARRINGTON BOROUGH COUNCIL,http://opendatacommunities.org/id/unitary-authority/warrington ,FWB,Care Purchase Central Team,54050,Supporting People - External,441250,26-Feb-18,1900295502,888.00,Independent Living Alliance,100726
WARRINGTON BOROUGH COUNCIL,http://opendatacommunities.org/id/unitary-authority/warrington ,FWB,Care Purchase Central Team,54050,Supported Accommodation,440975,26-Feb-18,1900295513,518.00,Independent Living Alliance,100726
WARRINGTON BOROUGH COUNCIL,http://opendatacommunities.org/id/unitary-authority/warrington ,FWB,Care Purchase Central Team,54050,Supported Accommodation,440975,26-Feb-18,1900295498,3150.00,Independent Living Alliance,100726
WARRINGTON BOROUGH COUNCIL,http://opendatacommunities.org/id/unitary-authority/warrington ,FWB,Care Purchase Central Team,54050,Supporting People - External,441250,26-Feb-18,1900295498,618.00,Independent Living Alliance,100726
WARRINGTON BOROUGH COUNCIL,http://opendatacommunities.org/id/unitary-authority/warrington ,FWB,Care Purchase Central Team,54050,Supported Accommodation,440975,26-Feb-18,1900295514,1480.00,Independent Living Alliance,100726
WARRINGTON BOROUGH COUNCIL,http://opendatacommunities.org/id/unitary-authority/warrington ,FWB,Care Purchase Central Team,54050,Supporting People - External,441250,26-Feb-18,1900295514,888.00,Independent Living Alliance,100726
WARRINGTON BOROUGH COUNCIL,http://opendatacommunities.org/id/unitary-authority/warrington ,FWB,Care Purchase South Team,54070,Supported Accommodation,440975,26-Feb-18,1900295519,2784.00,Independent Living Alliance,100726
WARRINGTON BOROUGH COUNCIL,http://opendatacommunities.org/id/unitary-authority/warrington ,FWB,Care Purchase South Team,54070,Supporting People - External,441250,26-Feb-18,1900295519,1363.00,Independent Living Alliance,100726
WARRINGTON BOROUGH COUNCIL,http://opendatacommunities.org/id/unitary-authority/warrington ,FWB,Care Purchase Central Team,54050,CP-Domicil.External,440950,26-Feb-18,1900295520,518.00,Independent Living Alliance,100726
WARRINGTON BOROUGH COUNCIL,http://opendatacommunities.org/id/unitary-authority/warrington ,FWB,Care Purchase Central Team,54050,Supported Accommodation,440975,26-Feb-18,1900295505,1234.00,Independent Living Alliance,100726
WARRINGTON BOROUGH COUNCIL,http://opendatacommunities.org/id/unitary-authority/warrington ,FWB,Care Purchase Central Team,54050,Supporting People - External,441250,26-Feb-18,1900295505,888.00,Independent Living Alliance,100726
WARRINGTON BOROUGH COUNCIL,http://opendatacommunities.org/id/unitary-authority/warrington ,FWB,Care Purchase Central Team,54050,Supported Accommodation,440975,26-Feb-18,1900295499,1544.00,Independent Living Alliance,100726
WARRINGTON BOROUGH COUNCIL,http://opendatacommunities.org/id/unitary-authority/warrington ,FWB,Care Purchase Central Team,54050,Supporting People - External,441250,26-Feb-18,1900295499,888.00,Independent Living Alliance,100726
WARRINGTON BOROUGH COUNCIL,http://opendatacommunities.org/id/unitary-authority/warrington ,FWB,Care Purchase South Team,54070,Supported Accommodation,440975,26-Feb-18,1900295506,2227.00,Independent Living Alliance,100726
WARRINGTON BOROUGH COUNCIL,http://opendatacommunities.org/id/unitary-authority/warrington ,FWB,Care Purchase Central Team,54050,Supported Accommodation,440975,27-Feb-18,1900295599,2671.00,Independent Living Alliance,100726
WARRINGTON BOROUGH COUNCIL,http://opendatacommunities.org/id/unitary-authority/warrington ,FWB,Care Purchase East Team,54060,Supported Accommodation,440975,27-Feb-18,1900295598,4672.00,Independent Living Alliance,100726
WARRINGTON BOROUGH COUNCIL,http://opendatacommunities.org/id/unitary-authority/warrington ,FWB,Care Purchase Central Team,54050,Supported Accommodation,440975,27-Feb-18,1900295597,2982.00,Independent Living Alliance,100726
WARRINGTON BOROUGH COUNCIL,http://opendatacommunities.org/id/unitary-authority/warrington ,FWB,Care Purchase Central Team,54050,Supported Accommodation,440975,27-Feb-18,1900296145,12101.00,Independent Living Alliance,100726
WARRINGTON BOROUGH COUNCIL,http://opendatacommunities.org/id/unitary-authority/warrington ,FWB,Care Purchase Central Team,54050,Supporting People - External,441250,27-Feb-18,1900296145,1235.00,Independent Living Alliance,100726
WARRINGTON BOROUGH COUNCIL,http://opendatacommunities.org/id/unitary-authority/warrington ,FWB,Care Purchase South Team,54070,CP-Domicil.External,440950,27-Feb-18,1900296155,7625.00,Independent Living Alliance,100726
WARRINGTON BOROUGH COUNCIL,http://opendatacommunities.org/id/unitary-authority/warrington ,FWB,Care Purchase Central Team,54050,Supported Accommodation,440975,27-Feb-18,1900296148,4179.00,Independent Living Alliance,100726
WARRINGTON BOROUGH COUNCIL,http://opendatacommunities.org/id/unitary-authority/warrington ,FWB,Care Purchase West Team,54080,Supported Accommodation,440975,27-Feb-18,1900296149,24940.00,Independent Living Alliance,100726
WARRINGTON BOROUGH COUNCIL,http://opendatacommunities.org/id/unitary-authority/warrington ,FWB,Care Purchase Central Team,54050,Supported Accommodation,440975,27-Feb-18,1900296150,2467.00,Independent Living Alliance,100726
WARRINGTON BOROUGH COUNCIL,http://opendatacommunities.org/id/unitary-authority/warrington ,FWB,Care Purchase Central Team,54050,Supported Accommodation,440975,27-Feb-18,1900296159,1036.00,Independent Living Alliance,100726
WARRINGTON BOROUGH COUNCIL,http://opendatacommunities.org/id/unitary-authority/warrington ,FWB,Care Purchase Central Team,54050,Supporting People - External,441250,27-Feb-18,1900296150,1776.00,Independent Living Alliance,100726
WARRINGTON BOROUGH COUNCIL,http://opendatacommunities.org/id/unitary-authority/warrington ,FWB,Care Purchase South Team,54070,Supported Accommodation,440975,27-Feb-18,1900296156,5129.00,Independent Living Alliance,100726
WARRINGTON BOROUGH COUNCIL,http://opendatacommunities.org/id/unitary-authority/warrington ,FWB,Care Purchase South Team,54070,Supporting People - External,441250,27-Feb-18,1900296156,2727.00,Independent Living Alliance,100726
WARRINGTON BOROUGH COUNCIL,http://opendatacommunities.org/id/unitary-authority/warrington ,FWB,Care Purchase South Team,54070,Supported Accommodation,440975,27-Feb-18,1900296151,5129.00,Independent Living Alliance,100726
WARRINGTON BOROUGH COUNCIL,http://opendatacommunities.org/id/unitary-authority/warrington ,FWB,Care Purchase South Team,54070,Supporting People - External,441250,27-Feb-18,1900296151,2727.00,Independent Living Alliance,100726
WARRINGTON BOROUGH COUNCIL,http://opendatacommunities.org/id/unitary-authority/warrington ,FWB,Care Purchase East Team,54060,CP-Domicil.External,440950,27-Feb-18,1900296152,4714.00,Independent Living Alliance,100726
WARRINGTON BOROUGH COUNCIL,http://opendatacommunities.org/id/unitary-authority/warrington ,FWB,Care Purchase Central Team,54050,Supported Accommodation,440975,27-Feb-18,1900296144,2467.00,Independent Living Alliance,100726
WARRINGTON BOROUGH COUNCIL,http://opendatacommunities.org/id/unitary-authority/warrington ,FWB,Care Purchase Central Team,54050,Supporting People - External,441250,27-Feb-18,1900296144,1776.00,Independent Living Alliance,100726
WARRINGTON BOROUGH COUNCIL,http://opendatacommunities.org/id/unitary-authority/warrington ,FWB,Care Purchase West Team,54080,Supported Accommodation,440975,27-Feb-18,1900296143,1243.00,Independent Living Alliance,100726
WARRINGTON BOROUGH COUNCIL,http://opendatacommunities.org/id/unitary-authority/warrington ,FWB,Care Purchase Central Team,54050,Supported Accommodation,440975,27-Feb-18,1900296140,6300.00,Independent Living Alliance,100726
WARRINGTON BOROUGH COUNCIL,http://opendatacommunities.org/id/unitary-authority/warrington ,FWB,Care Purchase Central Team,54050,Supporting People - External,441250,27-Feb-18,1900296140,1235.00,Independent Living Alliance,100726
WARRINGTON BOROUGH COUNCIL,http://opendatacommunities.org/id/unitary-authority/warrington ,FWB,Care Purchase Central Team,54050,Supported Accommodation,440975,27-Feb-18,1900296153,2972.00,Independent Living Alliance,100726
WARRINGTON BOROUGH COUNCIL,http://opendatacommunities.org/id/unitary-authority/warrington ,FWB,Care Purchase Central Team,54050,Supporting People - External,441250,27-Feb-18,1900296153,1776.00,Independent Living Alliance,100726
WARRINGTON BOROUGH COUNCIL,http://opendatacommunities.org/id/unitary-authority/warrington ,FWB,Care Purchase South Team,54070,Supported Accommodation,440975,27-Feb-18,1900296157,5750.00,Independent Living Alliance,100726
WARRINGTON BOROUGH COUNCIL,http://opendatacommunities.org/id/unitary-authority/warrington ,FWB,Care Purchase South Team,54070,Supporting People - External,441250,27-Feb-18,1900296157,2727.00,Independent Living Alliance,100726
WARRINGTON BOROUGH COUNCIL,http://opendatacommunities.org/id/unitary-authority/warrington ,FWB,Care Purchase Central Team,54050,CP-Domicil.External,440950,27-Feb-18,1900296158,881.00,Independent Living Alliance,100726
WARRINGTON BOROUGH COUNCIL,http://opendatacommunities.org/id/unitary-authority/warrington ,FWB,Care Purchase Central Team,54050,CP-Domicil.External,440950,27-Feb-18,1900296154,803.00,Independent Living Alliance,100726
WARRINGTON BOROUGH COUNCIL,http://opendatacommunities.org/id/unitary-authority/warrington ,FWB,Care Purchase Central Team,54050,Supported Accommodation,440975,27-Feb-18,1900296146,2467.00,Independent Living Alliance,100726
WARRINGTON BOROUGH COUNCIL,http://opendatacommunities.org/id/unitary-authority/warrington ,FWB,Care Purchase Central Team,54050,Supporting People - External,441250,27-Feb-18,1900296146,1776.00,Independent Living Alliance,100726
WARRINGTON BOROUGH COUNCIL,http://opendatacommunities.org/id/unitary-authority/warrington ,FWB,Care Purchase Central Team,54050,Supported Accommodation,440975,27-Feb-18,1900296141,3063.00,Independent Living Alliance,100726
WARRINGTON BOROUGH COUNCIL,http://opendatacommunities.org/id/unitary-authority/warrington ,FWB,Care Purchase Central Team,54050,Supporting People - External,441250,27-Feb-18,1900296141,1776.00,Independent Living Alliance,100726
WARRINGTON BOROUGH COUNCIL,http://opendatacommunities.org/id/unitary-authority/warrington ,FWB,Care Purchase South Team,54070,Supported Accommodation,440975,27-Feb-18,1900296147,4455.00,Independent Living Alliance,100726
WARRINGTON BOROUGH COUNCIL,http://opendatacommunities.org/id/unitary-authority/warrington ,FWB,Care Purchase Central Team,54050,Supported Accommodation,440975,23-Mar-18,1900304866,6051.00,Independent Living Alliance,100726
WARRINGTON BOROUGH COUNCIL,http://opendatacommunities.org/id/unitary-authority/warrington ,FWB,Care Purchase Central Team,54050,Supporting People - External,441250,23-Mar-18,1900304866,618.00,Independent Living Alliance,100726
WARRINGTON BOROUGH COUNCIL,http://opendatacommunities.org/id/unitary-authority/warrington ,FWB,Care Purchase South Team,54070,CP-Domicil.External,440950,23-Mar-18,1900304875,3813.00,Independent Living Alliance,100726
WARRINGTON BOROUGH COUNCIL,http://opendatacommunities.org/id/unitary-authority/warrington ,FWB,Care Purchase Central Team,54050,Supported Accommodation,440975,23-Mar-18,1900304846,2232.00,Independent Living Alliance,100726
WARRINGTON BOROUGH COUNCIL,http://opendatacommunities.org/id/unitary-authority/warrington ,FWB,Care Purchase West Team,54080,Supported Accommodation,440975,23-Mar-18,1900304847,12470.00,Independent Living Alliance,100726
WARRINGTON BOROUGH COUNCIL,http://opendatacommunities.org/id/unitary-authority/warrington ,FWB,Care Purchase Central Team,54050,Supported Accommodation,440975,23-Mar-18,1900304848,884.00,Independent Living Alliance,100726
WARRINGTON BOROUGH COUNCIL,http://opendatacommunities.org/id/unitary-authority/warrington ,FWB,Care Purchase Central Team,54050,Supported Accommodation,440975,23-Mar-18,1900304849,1233.00,Independent Living Alliance,100726
WARRINGTON BOROUGH COUNCIL,http://opendatacommunities.org/id/unitary-authority/warrington ,FWB,Care Purchase Central Team,54050,Supported Accommodation,440975,23-Mar-18,1900304882,518.00,Independent Living Alliance,100726
WARRINGTON BOROUGH COUNCIL,http://opendatacommunities.org/id/unitary-authority/warrington ,FWB,Care Purchase Central Team,54050,Supporting People - External,441250,23-Mar-18,1900304849,888.00,Independent Living Alliance,100726
WARRINGTON BOROUGH COUNCIL,http://opendatacommunities.org/id/unitary-authority/warrington ,FWB,Care Purchase South Team,54070,Supported Accommodation,440975,23-Mar-18,1900304876,2564.00,Independent Living Alliance,100726
WARRINGTON BOROUGH COUNCIL,http://opendatacommunities.org/id/unitary-authority/warrington ,FWB,Care Purchase South Team,54070,Supporting People - External,441250,23-Mar-18,1900304876,1363.00,Independent Living Alliance,100726
WARRINGTON BOROUGH COUNCIL,http://opendatacommunities.org/id/unitary-authority/warrington ,FWB,Care Purchase South Team,54070,Supported Accommodation,440975,23-Mar-18,1900304850,2564.00,Independent Living Alliance,100726
WARRINGTON BOROUGH COUNCIL,http://opendatacommunities.org/id/unitary-authority/warrington ,FWB,Care Purchase South Team,54070,Supporting People - External,441250,23-Mar-18,1900304850,1363.00,Independent Living Alliance,100726
WARRINGTON BOROUGH COUNCIL,http://opendatacommunities.org/id/unitary-authority/warrington ,FWB,Care Purchase East Team,54060,CP-Domicil.External,440950,23-Mar-18,1900304851,2357.00,Independent Living Alliance,100726
WARRINGTON BOROUGH COUNCIL,http://opendatacommunities.org/id/unitary-authority/warrington ,FWB,Care Purchase Central Team,54050,Supported Accommodation,440975,23-Mar-18,1900304867,4780.00,Independent Living Alliance,100726
WARRINGTON BOROUGH COUNCIL,http://opendatacommunities.org/id/unitary-authority/warrington ,FWB,Care Purchase Central Team,54050,Supported Accommodation,440975,23-Mar-18,1900304865,1233.00,Independent Living Alliance,100726
WARRINGTON BOROUGH COUNCIL,http://opendatacommunities.org/id/unitary-authority/warrington ,FWB,Care Purchase Central Team,54050,Supporting People - External,441250,23-Mar-18,1900304865,888.00,Independent Living Alliance,100726
WARRINGTON BOROUGH COUNCIL,http://opendatacommunities.org/id/unitary-authority/warrington ,FWB,Care Purchase West Team,54080,Supported Accommodation,440975,23-Mar-18,1900304864,622.00,Independent Living Alliance,100726
WARRINGTON BOROUGH COUNCIL,http://opendatacommunities.org/id/unitary-authority/warrington ,FWB,Care Purchase Central Team,54050,Supported Accommodation,440975,23-Mar-18,1900304859,6029.00,Independent Living Alliance,100726
WARRINGTON BOROUGH COUNCIL,http://opendatacommunities.org/id/unitary-authority/warrington ,FWB,Care Purchase Central Team,54050,Supported Accommodation,440975,23-Mar-18,1900304868,1299.00,Independent Living Alliance,100726
WARRINGTON BOROUGH COUNCIL,http://opendatacommunities.org/id/unitary-authority/warrington ,FWB,Care Purchase Central Team,54050,Supported Accommodation,440975,23-Mar-18,1900304878,1040.00,Independent Living Alliance,100726
WARRINGTON BOROUGH COUNCIL,http://opendatacommunities.org/id/unitary-authority/warrington ,FWB,Care Purchase Central Team,54050,Supported Accommodation,440975,23-Mar-18,1900304852,1130.00,Independent Living Alliance,100726
WARRINGTON BOROUGH COUNCIL,http://opendatacommunities.org/id/unitary-authority/warrington ,FWB,Care Purchase Central Team,54050,Supported Accommodation,440975,23-Mar-18,1900304860,3150.00,Independent Living Alliance,100726
WARRINGTON BOROUGH COUNCIL,http://opendatacommunities.org/id/unitary-authority/warrington ,FWB,Care Purchase Central Team,54050,Supporting People - External,441250,23-Mar-18,1900304860,618.00,Independent Living Alliance,100726
WARRINGTON BOROUGH COUNCIL,http://opendatacommunities.org/id/unitary-authority/warrington ,FWB,Care Purchase Central Team,54050,Supported Accommodation,440975,23-Mar-18,1900304869,1596.00,Independent Living Alliance,100726
WARRINGTON BOROUGH COUNCIL,http://opendatacommunities.org/id/unitary-authority/warrington ,FWB,Care Purchase Central Team,54050,Supported Accommodation,440975,23-Mar-18,1900304853,1661.00,Independent Living Alliance,100726
WARRINGTON BOROUGH COUNCIL,http://opendatacommunities.org/id/unitary-authority/warrington ,FWB,Care Purchase Central Team,54050,Supported Accommodation,440975,23-Mar-18,1900304879,884.00,Independent Living Alliance,100726
WARRINGTON BOROUGH COUNCIL,http://opendatacommunities.org/id/unitary-authority/warrington ,FWB,Care Purchase Central Team,54050,Supported Accommodation,440975,23-Mar-18,1900304854,1492.00,Independent Living Alliance,100726
WARRINGTON BOROUGH COUNCIL,http://opendatacommunities.org/id/unitary-authority/warrington ,FWB,Care Purchase Budget,54490,CP Free Nursing Care External,443500,07-Mar-18,1900299964,620.00,Barchester Homes Westvale House,105246
WARRINGTON BOROUGH COUNCIL,http://opendatacommunities.org/id/unitary-authority/warrington ,FWB,Care Purchase West Team,54080,CP-Nursing Care-External,441200,07-Mar-18,1900299843,2136.00,Barchester Homes Westvale House,105246
WARRINGTON BOROUGH COUNCIL,http://opendatacommunities.org/id/unitary-authority/warrington ,FWB,Care Purchase Budget,54490,CP Free Nursing Care External,443500,07-Mar-18,1900299654,620.00,Barchester Homes Westvale House,105246
WARRINGTON BOROUGH COUNCIL,http://opendatacommunities.org/id/unitary-authority/warrington ,FWB,Care Purchase South Team,54070,CP-Nursing Care-External,441200,07-Mar-18,1900299655,2136.00,Barchester Homes Westvale House,105246
WARRINGTON BOROUGH COUNCIL,http://opendatacommunities.org/id/unitary-authority/warrington ,FWB,Care Purchase Budget,54490,CP Free Nursing Care External,443500,07-Mar-18,1900299555,620.00,Barchester Homes Westvale House,105246
WARRINGTON BOROUGH COUNCIL,http://opendatacommunities.org/id/unitary-authority/warrington ,FWB,Care Purchase West Team,54080,CP-Nursing Care-External,441200,07-Mar-18,1900299970,2780.00,Barchester Homes Westvale House,105246
WARRINGTON BOROUGH COUNCIL,http://opendatacommunities.org/id/unitary-authority/warrington ,FWB,Care Purchase Budget,54490,CP Free Nursing Care External,443500,07-Mar-18,1900299972,620.00,Barchester Homes Westvale House,105246
WARRINGTON BOROUGH COUNCIL,http://opendatacommunities.org/id/unitary-authority/warrington ,FWB,Care Purchase West Team,54080,CP-Nursing Care-External,441200,07-Mar-18,1900299948,2136.00,Barchester Homes Westvale House,105246
WARRINGTON BOROUGH COUNCIL,http://opendatacommunities.org/id/unitary-authority/warrington ,FWB,Care Purchase Budget,54490,CP Free Nursing Care External,443500,07-Mar-18,1900299827,620.00,Barchester Homes Westvale House,105246
WARRINGTON BOROUGH COUNCIL,http://opendatacommunities.org/id/unitary-authority/warrington ,FWB,Care Purchase East Team,54060,CP-Nursing Care-External,441200,07-Mar-18,1900299875,4044.00,Barchester Homes Westvale House,105246
WARRINGTON BOROUGH COUNCIL,http://opendatacommunities.org/id/unitary-authority/warrington ,FWB,Care Purchase Budget,54490,CP Free Nursing Care External,443500,07-Mar-18,1900299909,620.00,Barchester Homes Westvale House,105246
WARRINGTON BOROUGH COUNCIL,http://opendatacommunities.org/id/unitary-authority/warrington ,FWB,Care Purchase Budget,54490,CP Free Nursing Care External,443500,19-Mar-18,1900302749,6202.00,Barchester Homes Westvale House,105246
WARRINGTON BOROUGH COUNCIL,http://opendatacommunities.org/id/unitary-authority/warrington ,ENO,Highways Other,82005,Consult.& Prof. Serv,440000,26-Feb-18,1900295322,3125.00,Beachcroft LLP,108402
WARRINGTON BOROUGH COUNCIL,http://opendatacommunities.org/id/unitary-authority/warrington ,FWB,Neighbourhood Co-o Central,51309,Payment of Grants,470050,23-Mar-18,1900304831,770.00,Bewsey Lodge Connect Club Little Li,400467
WARRINGTON BOROUGH COUNCIL,http://opendatacommunities.org/id/unitary-authority/warrington ,FWB,DSG 2 Year Old Fund,31601,Payment of Grants,470050,02-Mar-18,1900297291,1878.00,Birch Grove Day Nursery Ltd,101367
WARRINGTON BOROUGH COUNCIL,http://opendatacommunities.org/id/unitary-authority/warrington ,FWB,DSG Early Years PVI Settings,32417,Private & Voluntary 4 Year Olds,470150,02-Mar-18,1900297509,2556.00,Birch Grove Day Nursery Ltd,101367
WARRINGTON BOROUGH COUNCIL,http://opendatacommunities.org/id/unitary-authority/warrington ,FWB,Contracts - SM Commissioning Team 2,55920,Public Health Contract Payments,540000,26-Mar-18,1900304949,1797.00,Birchwood Medical Centre,100402
WARRINGTON BOROUGH COUNCIL,http://opendatacommunities.org/id/unitary-authority/warrington ,FWB,Contracts - SM Commissioning Team 2,55920,Public Health Contract Payments,540000,26-Mar-18,1900304949,1364.00,Birchwood Medical Centre,100402
WARRINGTON BOROUGH COUNCIL,http://opendatacommunities.org/id/unitary-authority/warrington ,FWB,Contracts - SM Commissioning Team 2,55920,Public Health Contract Payments,540000,26-Mar-18,1900304949,902.00,Birchwood Medical Centre,100402
WARRINGTON BOROUGH COUNCIL,http://opendatacommunities.org/id/unitary-authority/warrington ,FWB,Care Purchase South Team,54070,CP-LongStayExternal,441150,07-Mar-18,1900299698,12356.00,Bondcare (Spinney),102023
WARRINGTON BOROUGH COUNCIL,http://opendatacommunities.org/id/unitary-authority/warrington ,FWB,Care Purchase South Team,54070,CP-LongStayExternal,441150,26-Feb-18,1900295337,1765.00,Bondcare (Spinney),102023
WARRINGTON BOROUGH COUNCIL,http://opendatacommunities.org/id/unitary-authority/warrington ,FWB,Care Purchase South Team,54070,CP-LongStayExternal,441150,26-Feb-18,1900295334,1765.00,Bondcare (Spinney),102023
WARRINGTON BOROUGH COUNCIL,http://opendatacommunities.org/id/unitary-authority/warrington ,FWB,Care Purchase South Team,54070,CP-LongStayExternal,441150,26-Feb-18,1900295349,1765.00,Bondcare (Spinney),102023
WARRINGTON BOROUGH COUNCIL,http://opendatacommunities.org/id/unitary-authority/warrington ,FWB,Care Purchase South Team,54070,CP-LongStayExternal,441150,26-Feb-18,1900295339,1954.00,Bondcare (Spinney),102023
WARRINGTON BOROUGH COUNCIL,http://opendatacommunities.org/id/unitary-authority/warrington ,FWB,Care Purchase South Team,54070,CP-LongStayExternal,441150,26-Feb-18,1900295336,1891.00,Bondcare (Spinney),102023
WARRINGTON BOROUGH COUNCIL,http://opendatacommunities.org/id/unitary-authority/warrington ,FWB,Care Purchase South Team,54070,CP-LongStayExternal,441150,26-Feb-18,1900295340,1765.00,Bondcare (Spinney),102023
WARRINGTON BOROUGH COUNCIL,http://opendatacommunities.org/id/unitary-authority/warrington ,FWB,Care Purchase South Team,54070,CP-LongStayExternal,441150,26-Feb-18,1900295338,1765.00,Bondcare (Spinney),102023
WARRINGTON BOROUGH COUNCIL,http://opendatacommunities.org/id/unitary-authority/warrington ,FWB,Care Purchase South Team,54070,CP-LongStayExternal,441150,26-Feb-18,1900295335,2143.00,Bondcare (Spinney),102023
WARRINGTON BOROUGH COUNCIL,http://opendatacommunities.org/id/unitary-authority/warrington ,FWB,Contracts - SM Commissioning Team 2,55920,Public Health Contract Payments,540000,16-Mar-18,1900302195,2110.00,Boots the Chemist,114103
WARRINGTON BOROUGH COUNCIL,http://opendatacommunities.org/id/unitary-authority/warrington ,FWB,Contracts - SM Commissioning Team 2,55920,Public Health Contract Payments,540000,16-Mar-18,1900302195,1115.00,Boots the Chemist,114103
WARRINGTON BOROUGH COUNCIL,http://opendatacommunities.org/id/unitary-authority/warrington ,FWB,Residential Placements,30102,Intermediate Care Expenditure,441310,26-Feb-18,1900297114,18000.00,Branas Isaf Ltd,115665
WARRINGTON BOROUGH COUNCIL,http://opendatacommunities.org/id/unitary-authority/warrington ,FWB,Residential Placements,30102,Intermediate Care Expenditure,441310,26-Mar-18,1900305085,18000.00,Branas Isaf Ltd,115665
WARRINGTON BOROUGH COUNCIL,http://opendatacommunities.org/id/unitary-authority/warrington ,FWB,DSG Support for SEN,32013,Childrens Activities,492900,01-Mar-18,1900297191,7491.00,Bridgewater Community Healthcare,108932
WARRINGTON BOROUGH COUNCIL,http://opendatacommunities.org/id/unitary-authority/warrington ,FWB,DSG Support for SEN,32013,Childrens Activities,492900,05-Mar-18,1900298130,7491.00,Bridgewater Community Healthcare,108932
WARRINGTON BOROUGH COUNCIL,http://opendatacommunities.org/id/unitary-authority/warrington ,FWB,IC ext allocation,53205,Joint Arrangements,505200,13-Mar-18,1900300843,186445.00,Bridgewater Community Healthcare,108932
WARRINGTON BOROUGH COUNCIL,http://opendatacommunities.org/id/unitary-authority/warrington ,FWB,Care Purchase South Team,54070,CP-Domicil.External,440950,06-Mar-18,1900298567,742.00,Bridgewater Home Care,113753
WARRINGTON BOROUGH COUNCIL,http://opendatacommunities.org/id/unitary-authority/warrington ,FWB,Care Purchase West Team,54080,CP-Domicil.External,440950,06-Mar-18,1900298518,680.00,Bridgewater Home Care,113753
WARRINGTON BOROUGH COUNCIL,http://opendatacommunities.org/id/unitary-authority/warrington ,FWB,Care Purchase South Team,54070,CP-Domicil.External,440950,06-Mar-18,1900298500,609.00,Bridgewater Home Care,113753
WARRINGTON BOROUGH COUNCIL,http://opendatacommunities.org/id/unitary-authority/warrington ,FWB,Care Purchase South Team,54070,CP-Domicil.External,440950,14-Mar-18,1900300926,742.00,Bridgewater Home Care,113753
WARRINGTON BOROUGH COUNCIL,http://opendatacommunities.org/id/unitary-authority/warrington ,FWB,Care Purchase West Team,54080,CP-Domicil.External,440950,14-Mar-18,1900300915,732.00,Bridgewater Home Care,113753
WARRINGTON BOROUGH COUNCIL,http://opendatacommunities.org/id/unitary-authority/warrington ,FWB,Care Purchase South Team,54070,CP-Domicil.External,440950,14-Mar-18,1900300909,609.00,Bridgewater Home Care,113753
WARRINGTON BOROUGH COUNCIL,http://opendatacommunities.org/id/unitary-authority/warrington ,FWB,Care Purchase South Team,54070,CP-Domicil.External,440950,20-Mar-18,1900303275,742.00,Bridgewater Home Care,113753
WARRINGTON BOROUGH COUNCIL,http://opendatacommunities.org/id/unitary-authority/warrington ,FWB,Care Purchase West Team,54080,CP-Domicil.External,440950,20-Mar-18,1900303182,628.00,Bridgewater Home Care,113753
WARRINGTON BOROUGH COUNCIL,http://opendatacommunities.org/id/unitary-authority/warrington ,FWB,Care Purchase South Team,54070,CP-Domicil.External,440950,20-Mar-18,1900303158,609.00,Bridgewater Home Care,113753
WARRINGTON BOROUGH COUNCIL,http://opendatacommunities.org/id/unitary-authority/warrington ,FWB,Care Purchase South Team,54070,CP-Domicil.External,440950,26-Mar-18,1900305700,742.00,Bridgewater Home Care,113753
WARRINGTON BOROUGH COUNCIL,http://opendatacommunities.org/id/unitary-authority/warrington ,FWB,Care Purchase West Team,54080,CP-Domicil.External,440950,26-Mar-18,1900305625,732.00,Bridgewater Home Care,113753
WARRINGTON BOROUGH COUNCIL,http://opendatacommunities.org/id/unitary-authority/warrington ,FWB,Care Purchase South Team,54070,CP-Domicil.External,440950,26-Mar-18,1900305609,609.00,Bridgewater Home Care,113753
WARRINGTON BOROUGH COUNCIL,http://opendatacommunities.org/id/unitary-authority/warrington ,FWB,Residential Placements,30102,CP-LongStayExternal,441150,26-Feb-18,1900297093,15608.00,Bright Futures Care Ltd,114579
WARRINGTON BOROUGH COUNCIL,http://opendatacommunities.org/id/unitary-authority/warrington ,FWB,Care Purchase West Team,54080,CP-LongStayExternal,441150,07-Mar-18,1900299592,10228.00,Bright Futures Care Ltd,114579
WARRINGTON BOROUGH COUNCIL,http://opendatacommunities.org/id/unitary-authority/warrington ,FWB,Care Purchase South Team,54070,CP-LongStayExternal,441150,07-Mar-18,1900299633,8288.00,Bright Futures Care Ltd,114579
WARRINGTON BOROUGH COUNCIL,http://opendatacommunities.org/id/unitary-authority/warrington ,FWB,Residential Placements,30102,CP-LongStayExternal,441150,26-Mar-18,1900305063,15608.00,Bright Futures Care Ltd,114579
WARRINGTON BOROUGH COUNCIL,http://opendatacommunities.org/id/unitary-authority/warrington ,FWB,DSG 2 Year Old Fund,31601,Payment of Grants,470050,02-Mar-18,1900297292,1262.00,Bright Futures Day Nursery,400376
WARRINGTON BOROUGH COUNCIL,http://opendatacommunities.org/id/unitary-authority/warrington ,FWB,DSG Early Years PVI Settings,32417,Private & Voluntary 3 Year Olds,470100,02-Mar-18,1900297375,1090.00,Bright Futures Day Nursery,400376
WARRINGTON BOROUGH COUNCIL,http://opendatacommunities.org/id/unitary-authority/warrington ,FWB,DSG Early Years PVI Settings,32417,Private & Voluntary 3 Year Olds,470100,02-Mar-18,1900297376,2063.00,Bright Horizons Callands,400121
WARRINGTON BOROUGH COUNCIL,http://opendatacommunities.org/id/unitary-authority/warrington ,FWB,DSG Early Years PVI Settings,32417,Private & Voluntary 4 Year Olds,470150,02-Mar-18,1900297512,912.00,Bright Horizons Callands,400121
WARRINGTON BOROUGH COUNCIL,http://opendatacommunities.org/id/unitary-authority/warrington ,FWB,Int Care Premises,53280,Payment of Grants,470050,21-Mar-18,1900303658,10194.00,British Red Cross,440042
WARRINGTON BOROUGH COUNCIL,http://opendatacommunities.org/id/unitary-authority/warrington ,FWB,Contracts - SM Commissioning Team 2,55920,Public Health Contract Payments,540000,26-Mar-18,1900304984,860.00,Brookfield Surgery,108155
WARRINGTON BOROUGH COUNCIL,http://opendatacommunities.org/id/unitary-authority/warrington ,FWB,Care Purchase West Team,54080,CP Nursing EMI,441105,07-Mar-18,1900299492,1824.00,BUPA - Bedford Res,104569
WARRINGTON BOROUGH COUNCIL,http://opendatacommunities.org/id/unitary-authority/warrington ,FWB,Care Purchase West Team,54080,CP-Nursing Care-External,441200,07-Mar-18,1900299811,1992.00,Bupa Care Homes - Broadoak Manor,104546
WARRINGTON BOROUGH COUNCIL,http://opendatacommunities.org/id/unitary-authority/warrington ,FWB,Care Purchase Central Team,54050,CP-Nursing Care-External,441200,07-Mar-18,1900299705,1760.00,BUPA Mill View Care Home,116039
WARRINGTON BOROUGH COUNCIL,http://opendatacommunities.org/id/unitary-authority/warrington ,FWB,DSG 2 Year Old Fund,31601,Payment of Grants,470050,02-Mar-18,1900297293,1633.00,Burnett Nursery,440143
WARRINGTON BOROUGH COUNCIL,http://opendatacommunities.org/id/unitary-authority/warrington ,FWB,DSG Early Years PVI Settings,32417,Private & Voluntary 3 Year Olds,470100,02-Mar-18,1900297377,2217.00,Burnett Nursery,440143
WARRINGTON BOROUGH COUNCIL,http://opendatacommunities.org/id/unitary-authority/warrington ,FWB,DSG Early Years PVI Settings,32417,Private & Voluntary 4 Year Olds,470150,02-Mar-18,1900297513,2189.00,Burnett Nursery,440143
WARRINGTON BOROUGH COUNCIL,http://opendatacommunities.org/id/unitary-authority/warrington ,FWB,Care Purchase South Team,54070,CP Residential EMI,441110,07-Mar-18,1900299662,1840.00,Burrswood House Nursing & Residenti,109619
WARRINGTON BOROUGH COUNCIL,http://opendatacommunities.org/id/unitary-authority/warrington ,FWB,DSG 2 Year Old Fund,31601,Payment of Grants,470050,02-Mar-18,1900297294,1056.00,Busy 0 To 5S (St Nicolas House),400119
WARRINGTON BOROUGH COUNCIL,http://opendatacommunities.org/id/unitary-authority/warrington ,FWB,DSG Early Years PVI Settings,32417,Private & Voluntary 3 Year Olds,470100,02-Mar-18,1900297379,11863.00,Busy 0 To 5S (St Nicolas House),400119
WARRINGTON BOROUGH COUNCIL,http://opendatacommunities.org/id/unitary-authority/warrington ,FWB,Care Purchase Central Team,54050,Supporting People - External,441250,23-Mar-18,1900304854,888.00,Independent Living Alliance,100726
WARRINGTON BOROUGH COUNCIL,http://opendatacommunities.org/id/unitary-authority/warrington ,FWB,Care Purchase South Team,54070,Supported Accommodation,440975,23-Mar-18,1900304880,2875.00,Independent Living Alliance,100726
WARRINGTON BOROUGH COUNCIL,http://opendatacommunities.org/id/unitary-authority/warrington ,FWB,Care Purchase South Team,54070,Supporting People - External,441250,23-Mar-18,1900304880,1363.00,Independent Living Alliance,100726
WARRINGTON BOROUGH COUNCIL,http://opendatacommunities.org/id/unitary-authority/warrington ,FWB,Care Purchase Central Team,54050,CP-Domicil.External,440950,23-Mar-18,1900304881,518.00,Independent Living Alliance,100726
WARRINGTON BOROUGH COUNCIL,http://opendatacommunities.org/id/unitary-authority/warrington ,FWB,Care Purchase East Team,54060,Supported Accommodation,440975,23-Mar-18,1900304873,1428.00,Independent Living Alliance,100726
WARRINGTON BOROUGH COUNCIL,http://opendatacommunities.org/id/unitary-authority/warrington ,FWB,Care Purchase Central Team,54050,Supported Accommodation,440975,23-Mar-18,1900304870,1233.00,Independent Living Alliance,100726
WARRINGTON BOROUGH COUNCIL,http://opendatacommunities.org/id/unitary-authority/warrington ,FWB,Care Purchase Central Team,54050,Supporting People - External,441250,23-Mar-18,1900304870,888.00,Independent Living Alliance,100726
WARRINGTON BOROUGH COUNCIL,http://opendatacommunities.org/id/unitary-authority/warrington ,FWB,Care Purchase Central Team,54050,Supported Accommodation,440975,23-Mar-18,1900304861,1544.00,Independent Living Alliance,100726
WARRINGTON BOROUGH COUNCIL,http://opendatacommunities.org/id/unitary-authority/warrington ,FWB,Care Purchase Central Team,54050,Supporting People - External,441250,23-Mar-18,1900304861,888.00,Independent Living Alliance,100726
WARRINGTON BOROUGH COUNCIL,http://opendatacommunities.org/id/unitary-authority/warrington ,FWB,Care Purchase South Team,54070,Supported Accommodation,440975,23-Mar-18,1900304871,2227.00,Independent Living Alliance,100726
WARRINGTON BOROUGH COUNCIL,http://opendatacommunities.org/id/unitary-authority/warrington ,FWB,Care Purchase Central Team,54050,Supported Accommodation,440975,23-Mar-18,1900304872,988.00,Independent Living Alliance,100726
WARRINGTON BOROUGH COUNCIL,http://opendatacommunities.org/id/unitary-authority/warrington ,FWB,Care Purchase Central Team,54050,Supported Accommodation,440975,23-Mar-18,1900304862,1299.00,Independent Living Alliance,100726
WARRINGTON BOROUGH COUNCIL,http://opendatacommunities.org/id/unitary-authority/warrington ,FWB,Care Purchase Central Team,54050,Supported Accommodation,440975,23-Mar-18,1900304856,518.00,Independent Living Alliance,100726
WARRINGTON BOROUGH COUNCIL,http://opendatacommunities.org/id/unitary-authority/warrington ,FWB,Care Purchase Central Team,54050,Supported Accommodation,440975,23-Mar-18,1900304858,884.00,Independent Living Alliance,100726
WARRINGTON BOROUGH COUNCIL,http://opendatacommunities.org/id/unitary-authority/warrington ,FWB,Leaving Care Placements,31109,CP-LongStayExternal,441150,26-Feb-18,1900295359,1326.00,Inspire Childrens Services,106447
WARRINGTON BOROUGH COUNCIL,http://opendatacommunities.org/id/unitary-authority/warrington ,FWB,Leaving Care Placements,31109,CP-LongStayExternal,441150,26-Feb-18,1900295377,1243.00,Inspire Childrens Services,106447
WARRINGTON BOROUGH COUNCIL,http://opendatacommunities.org/id/unitary-authority/warrington ,FWB,Leaving Care Placements,31109,CP-LongStayExternal,441150,26-Mar-18,1900305155,1077.00,Inspire Childrens Services,106447
WARRINGTON BOROUGH COUNCIL,http://opendatacommunities.org/id/unitary-authority/warrington ,FWB,Leaving Care Placements,31109,CP-LongStayExternal,441150,26-Mar-18,1900305154,2568.00,Inspire Childrens Services,106447
WARRINGTON BOROUGH COUNCIL,http://opendatacommunities.org/id/unitary-authority/warrington ,FWB,Central/East Complex,54020,Legal Costs Incurred,440200,06-Mar-18,1900298266,4747.00,Irwin Mitchell Solicitors LLP,106518
WARRINGTON BOROUGH COUNCIL,http://opendatacommunities.org/id/unitary-authority/warrington ,FWB,Central/East Complex,54020,Legal Costs Incurred,440200,26-Feb-18,1900295348,894.00,Irwin Mitchell Solicitors LLP,106518
WARRINGTON BOROUGH COUNCIL,http://opendatacommunities.org/id/unitary-authority/warrington ,FWB,DSG 2 Year Old Fund,31601,Payment of Grants,470050,02-Mar-18,1900297310,1144.00,Jack & Jill Pre School,400014
WARRINGTON BOROUGH COUNCIL,http://opendatacommunities.org/id/unitary-authority/warrington ,FWB,DSG Early Years PVI Settings,32417,Private & Voluntary 3 Year Olds,470100,02-Mar-18,1900297409,4692.00,Jack & Jill Pre School,400014
WARRINGTON BOROUGH COUNCIL,http://opendatacommunities.org/id/unitary-authority/warrington ,FWB,DSG Early Years PVI Settings,32417,Private & Voluntary 4 Year Olds,470150,02-Mar-18,1900297540,1296.00,Jack & Jill Pre School,400014
WARRINGTON BOROUGH COUNCIL,http://opendatacommunities.org/id/unitary-authority/warrington ,FWB,DSG 2 Year Old Fund,31601,Payment of Grants,470050,02-Mar-18,1900297304,2905.00,Kalgarth Grange Nursery,400096
WARRINGTON BOROUGH COUNCIL,http://opendatacommunities.org/id/unitary-authority/warrington ,FWB,DSG Early Years PVI Settings,32417,Private & Voluntary 3 Year Olds,470100,02-Mar-18,1900297401,14020.00,Kalgarth Grange Nursery,400096
WARRINGTON BOROUGH COUNCIL,http://opendatacommunities.org/id/unitary-authority/warrington ,FWB,DSG Early Years PVI Settings,32417,Private & Voluntary 4 Year Olds,470150,02-Mar-18,1900297531,2112.00,Kalgarth Grange Nursery,400096
WARRINGTON BOROUGH COUNCIL,http://opendatacommunities.org/id/unitary-authority/warrington ,FWB,Care Purchase South Team,54070,CP-LongStayExternal,441150,07-Mar-18,1900299912,11668.00,Keate House Residential Home,104849
WARRINGTON BOROUGH COUNCIL,http://opendatacommunities.org/id/unitary-authority/warrington ,FWB,Care Purchase South Team,54070,CP Residential EMI,441110,07-Mar-18,1900299613,2204.00,Keate House Residential Home,104849
WARRINGTON BOROUGH COUNCIL,http://opendatacommunities.org/id/unitary-authority/warrington ,FWB,Care Purchase South Team,54070,CP Residential EMI,441110,07-Mar-18,1900299650,866.00,Keate House Residential Home,104849
WARRINGTON BOROUGH COUNCIL,http://opendatacommunities.org/id/unitary-authority/warrington ,FWB,Care Purchase South Team,54070,CP-LongStayExternal,441150,07-Mar-18,1900299739,1940.00,Keate House Residential Home,104849
WARRINGTON BOROUGH COUNCIL,http://opendatacommunities.org/id/unitary-authority/warrington ,FWB,Care Purchase South Team,54070,CP-LongStayExternal,441150,07-Mar-18,1900299559,1940.00,Keate House Residential Home,104849
WARRINGTON BOROUGH COUNCIL,http://opendatacommunities.org/id/unitary-authority/warrington ,FWB,Care Purchase South Team,54070,CP-LongStayExternal,441150,07-Mar-18,1900299935,1940.00,Keate House Residential Home,104849
WARRINGTON BOROUGH COUNCIL,http://opendatacommunities.org/id/unitary-authority/warrington ,FWB,Care Purchase South Team,54070,CP-LongStayExternal,441150,07-Mar-18,1900299666,1940.00,Keate House Residential Home,104849
WARRINGTON BOROUGH COUNCIL,http://opendatacommunities.org/id/unitary-authority/warrington ,FWB,Care Purchase South Team,54070,CP-LongStayExternal,441150,07-Mar-18,1900299937,2204.00,Keate House Residential Home,104849
WARRINGTON BOROUGH COUNCIL,http://opendatacommunities.org/id/unitary-authority/warrington ,FWB,Care Purchase South Team,54070,CP Residential EMI,441110,07-Mar-18,1900299852,2204.00,Keate House Residential Home,104849
WARRINGTON BOROUGH COUNCIL,http://opendatacommunities.org/id/unitary-authority/warrington ,FWB,Care Purchase East Team,54060,CP-LongStayExternal,441150,07-Mar-18,1900299815,2140.00,Keate House Residential Home,104849
WARRINGTON BOROUGH COUNCIL,http://opendatacommunities.org/id/unitary-authority/warrington ,FWB,Care Purchase South Team,54070,CP Residential EMI,441110,07-Mar-18,1900299962,2204.00,Keate House Residential Home,104849
WARRINGTON BOROUGH COUNCIL,http://opendatacommunities.org/id/unitary-authority/warrington ,FWB,Care Purchase South Team,54070,CP-LongStayExternal,441150,07-Mar-18,1900299962,706.00,Keate House Residential Home,104849
WARRINGTON BOROUGH COUNCIL,http://opendatacommunities.org/id/unitary-authority/warrington ,FWB,Care Purchase South Team,54070,CP Residential EMI,441110,07-Mar-18,1900299733,2204.00,Keate House Residential Home,104849
WARRINGTON BOROUGH COUNCIL,http://opendatacommunities.org/id/unitary-authority/warrington ,FWB,Care Purchase South Team,54070,CP-LongStayExternal,441150,07-Mar-18,1900299508,1940.00,Keate House Residential Home,104849
WARRINGTON BOROUGH COUNCIL,http://opendatacommunities.org/id/unitary-authority/warrington ,FWB,Care Purchase South Team,54070,CP-LongStayExternal,441150,07-Mar-18,1900300002,2190.00,Keate House Residential Home,104849
WARRINGTON BOROUGH COUNCIL,http://opendatacommunities.org/id/unitary-authority/warrington ,FWB,Care Purchase West Team,54080,CP Nursing EMI,441105,07-Mar-18,1900298869,2725.00,Key Healthcare (St Helens) ltd,115615
WARRINGTON BOROUGH COUNCIL,http://opendatacommunities.org/id/unitary-authority/warrington ,FWB,Care Purchase East Team,54060,CP Nursing EMI,441105,07-Mar-18,1900298866,2725.00,Key Healthcare (St Helens) ltd,115615
WARRINGTON BOROUGH COUNCIL,http://opendatacommunities.org/id/unitary-authority/warrington ,FWB,DSG Early Years PVI Settings,32417,Private & Voluntary 3 Year Olds,470100,02-Mar-18,1900297387,11549.00,Kids on top t/a Cotton Tails Nurser,400137
WARRINGTON BOROUGH COUNCIL,http://opendatacommunities.org/id/unitary-authority/warrington ,FWB,DSG Early Years PVI Settings,32417,Private & Voluntary 4 Year Olds,470150,02-Mar-18,1900297523,2621.00,Kids on top t/a Cotton Tails Nurser,400137
WARRINGTON BOROUGH COUNCIL,http://opendatacommunities.org/id/unitary-authority/warrington ,FWB,DSG 2 Year Old Fund,31601,Payment of Grants,470050,02-Mar-18,1900297317,7790.00,Kids Planet Warrington,105710
WARRINGTON BOROUGH COUNCIL,http://opendatacommunities.org/id/unitary-authority/warrington ,FWB,DSG 2 Year Old Fund,31601,Payment of Grants,470050,02-Mar-18,1900297315,7238.00,Kids Planet Warrington,105710
WARRINGTON BOROUGH COUNCIL,http://opendatacommunities.org/id/unitary-authority/warrington ,FWB,DSG 2 Year Old Fund,31601,Payment of Grants,470050,02-Mar-18,1900297316,792.00,Kids Planet Warrington,105710
WARRINGTON BOROUGH COUNCIL,http://opendatacommunities.org/id/unitary-authority/warrington ,FWB,DSG Early Years PVI Settings,32417,Private & Voluntary 3 Year Olds,470100,02-Mar-18,1900297425,15430.00,Kids Planet Warrington,105710
WARRINGTON BOROUGH COUNCIL,http://opendatacommunities.org/id/unitary-authority/warrington ,FWB,DSG Early Years PVI Settings,32417,Private & Voluntary 3 Year Olds,470100,02-Mar-18,1900297426,12110.00,Kids Planet Warrington,105710
WARRINGTON BOROUGH COUNCIL,http://opendatacommunities.org/id/unitary-authority/warrington ,FWB,DSG Early Years PVI Settings,32417,Private & Voluntary 3 Year Olds,470100,02-Mar-18,1900297424,2313.00,Kids Planet Warrington,105710
WARRINGTON BOROUGH COUNCIL,http://opendatacommunities.org/id/unitary-authority/warrington ,FWB,DSG Early Years PVI Settings,32417,Private & Voluntary 4 Year Olds,470150,02-Mar-18,1900297549,6560.00,Kids Planet Warrington,105710
WARRINGTON BOROUGH COUNCIL,http://opendatacommunities.org/id/unitary-authority/warrington ,FWB,DSG Early Years PVI Settings,32417,Private & Voluntary 4 Year Olds,470150,02-Mar-18,1900297548,2881.00,Kids Planet Warrington,105710
WARRINGTON BOROUGH COUNCIL,http://opendatacommunities.org/id/unitary-authority/warrington ,FWB,DSG Early Years PVI Settings,32417,Private & Voluntary 4 Year Olds,470150,02-Mar-18,1900297550,2693.00,Kids Planet Warrington,105710
WARRINGTON BOROUGH COUNCIL,http://opendatacommunities.org/id/unitary-authority/warrington ,FWB,SEN Grants,32057,Payment of Grants,470050,13-Mar-18,1900300763,1950.00,Kids Planet Warrington,105710
WARRINGTON BOROUGH COUNCIL,http://opendatacommunities.org/id/unitary-authority/warrington ,FWB,SEN Grants,32057,Payment of Grants,470050,13-Mar-18,1900300746,600.00,Kids Planet Warrington,105710
WARRINGTON BOROUGH COUNCIL,http://opendatacommunities.org/id/unitary-authority/warrington ,FWB,SEN Grants,32057,Payment of Grants,470050,13-Mar-18,1900300762,600.00,Kids Planet Warrington,105710
WARRINGTON BOROUGH COUNCIL,http://opendatacommunities.org/id/unitary-authority/warrington ,COR,Debt Management Expenses,62080,Consult.& Prof. Serv,440000,06-Mar-18,1900298292,5900.00,KPMG LLP,115650
WARRINGTON BOROUGH COUNCIL,http://opendatacommunities.org/id/unitary-authority/warrington ,FWB,Care Purchase West Team,54080,CP Nursing EMI,441105,07-Mar-18,1900299848,37352.00,L & M Healthcare (Whittle Hall) Ltd,116214
WARRINGTON BOROUGH COUNCIL,http://opendatacommunities.org/id/unitary-authority/warrington ,FWB,Care Purchase Central Team,54050,CP Nursing EMI,441105,07-Mar-18,1900299968,7820.00,L & M Healthcare (Whittle Hall) Ltd,116214
WARRINGTON BOROUGH COUNCIL,http://opendatacommunities.org/id/unitary-authority/warrington ,FWB,Care Purchase South Team,54070,CP Nursing EMI,441105,07-Mar-18,1900299887,3148.00,L & M Healthcare (Whittle Hall) Ltd,116214
WARRINGTON BOROUGH COUNCIL,http://opendatacommunities.org/id/unitary-authority/warrington ,FWB,Care Purchase South Team,54070,CP-Nursing Care-External,441200,07-Mar-18,1900299887,836.00,L & M Healthcare (Whittle Hall) Ltd,116214
WARRINGTON BOROUGH COUNCIL,http://opendatacommunities.org/id/unitary-authority/warrington ,FWB,Care Purchase Budget,54490,CP Free Nursing Care External,443500,07-Mar-18,1900299997,864.00,L & M Healthcare (Whittle Hall) Ltd,116214
WARRINGTON BOROUGH COUNCIL,http://opendatacommunities.org/id/unitary-authority/warrington ,FWB,Care Purchase West Team,54080,CP-Nursing Care-External,441200,07-Mar-18,1900299981,2736.00,L & M Healthcare (Whittle Hall) Ltd,116214
WARRINGTON BOROUGH COUNCIL,http://opendatacommunities.org/id/unitary-authority/warrington ,FWB,Care Purchase Budget,54490,CP Free Nursing Care External,443500,07-Mar-18,1900299876,620.00,L & M Healthcare (Whittle Hall) Ltd,116214
WARRINGTON BOROUGH COUNCIL,http://opendatacommunities.org/id/unitary-authority/warrington ,FWB,Care Purchase West Team,54080,CP Nursing EMI,441105,07-Mar-18,1900299814,7200.00,L & M Healthcare (Whittle Hall) Ltd,116214
WARRINGTON BOROUGH COUNCIL,http://opendatacommunities.org/id/unitary-authority/warrington ,FWB,Care Purchase Budget,54490,CP Free Nursing Care External,443500,07-Mar-18,1900299823,620.00,L & M Healthcare (Whittle Hall) Ltd,116214
WARRINGTON BOROUGH COUNCIL,http://opendatacommunities.org/id/unitary-authority/warrington ,FWB,Care Purchase West Team,54080,CP-Nursing Care-External,441200,07-Mar-18,1900299978,2736.00,L & M Healthcare (Whittle Hall) Ltd,116214
WARRINGTON BOROUGH COUNCIL,http://opendatacommunities.org/id/unitary-authority/warrington ,FWB,Care Purchase Budget,54490,CP Free Nursing Care External,443500,07-Mar-18,1900299992,620.00,L & M Healthcare (Whittle Hall) Ltd,116214
WARRINGTON BOROUGH COUNCIL,http://opendatacommunities.org/id/unitary-authority/warrington ,FWB,Care Purchase South Team,54070,CP Nursing EMI,441105,07-Mar-18,1900299878,7820.00,L & M Healthcare (Whittle Hall) Ltd,116214
WARRINGTON BOROUGH COUNCIL,http://opendatacommunities.org/id/unitary-authority/warrington ,FWB,Care Purchase West Team,54080,CP Nursing EMI,441105,07-Mar-18,1900299872,2583.00,L & M Healthcare (Whittle Hall) Ltd,116214
WARRINGTON BOROUGH COUNCIL,http://opendatacommunities.org/id/unitary-authority/warrington ,FWB,Care Purchase West Team,54080,CP-Nursing Care-External,441200,07-Mar-18,1900299872,686.00,L & M Healthcare (Whittle Hall) Ltd,116214
WARRINGTON BOROUGH COUNCIL,http://opendatacommunities.org/id/unitary-authority/warrington ,FWB,Care Purchase Budget,54490,CP Free Nursing Care External,443500,07-Mar-18,1900299924,709.00,L & M Healthcare (Whittle Hall) Ltd,116214
WARRINGTON BOROUGH COUNCIL,http://opendatacommunities.org/id/unitary-authority/warrington ,FWB,Care Purchase West Team,54080,CP Nursing EMI,441105,07-Mar-18,1900299850,7820.00,L & M Healthcare (Whittle Hall) Ltd,116214
WARRINGTON BOROUGH COUNCIL,http://opendatacommunities.org/id/unitary-authority/warrington ,FWB,Care Purchase Central Team,54050,CP Nursing EMI,441105,07-Mar-18,1900299983,7820.00,L & M Healthcare (Whittle Hall) Ltd,116214
WARRINGTON BOROUGH COUNCIL,http://opendatacommunities.org/id/unitary-authority/warrington ,FWB,Care Purchase East Team,54060,CP Nursing EMI,441105,07-Mar-18,1900299777,7820.00,L & M Healthcare (Whittle Hall) Ltd,116214
WARRINGTON BOROUGH COUNCIL,http://opendatacommunities.org/id/unitary-authority/warrington ,FWB,Care Purchase Budget,54490,CP Free Nursing Care External,443500,05-Mar-18,1900298172,753.00,L & M Healthcare (Whittle Hall) Ltd,116214
WARRINGTON BOROUGH COUNCIL,http://opendatacommunities.org/id/unitary-authority/warrington ,FWB,Care Purchase Budget,54490,CP Free Nursing Care External,443500,05-Mar-18,1900298171,620.00,L & M Healthcare (Whittle Hall) Ltd,116214
WARRINGTON BOROUGH COUNCIL,http://opendatacommunities.org/id/unitary-authority/warrington ,FWB,DSG Inter Authority Recoupment,32009,Recoupment Charges,490700,20-Mar-18,1900302833,15573.00,Lancashire County Council,410062
WARRINGTON BOROUGH COUNCIL,http://opendatacommunities.org/id/unitary-authority/warrington ,COR,The Base,43850,Gen. Personal Needs,490850,26-Mar-18,1900304906,12477.00,Langtree Property Partners Ltd,114859
WARRINGTON BOROUGH COUNCIL,http://opendatacommunities.org/id/unitary-authority/warrington ,FWB,Contracts - SM Commissioning Team 2,55920,Public Health Contract Payments,540000,26-Mar-18,1900304960,642.00,Latchford Medical Centre,104869
WARRINGTON BOROUGH COUNCIL,http://opendatacommunities.org/id/unitary-authority/warrington ,FWB,Care Purchase Central Team,54050,CP-Nursing Care-External,441200,07-Mar-18,1900299489,2975.00,Leonard Cheshire Disability,100370
WARRINGTON BOROUGH COUNCIL,http://opendatacommunities.org/id/unitary-authority/warrington ,FWB,Foster Allowances,31106,Car Leasing Charges,350000,02-Mar-18,1900297274,3614.00,Lex Autolease Ltd,103319
WARRINGTON BOROUGH COUNCIL,http://opendatacommunities.org/id/unitary-authority/warrington ,FWB,Foster Allowances,31106,Car Leasing Charges,350000,02-Mar-18,1900297606,3614.00,Lex Autolease Ltd,103319
WARRINGTON BOROUGH COUNCIL,http://opendatacommunities.org/id/unitary-authority/warrington ,FWB,Care Purchase South Team,54070,CP-Domicil.External,440950,12-Mar-18,1900300712,3800.00,Lifeways SIL,115859
WARRINGTON BOROUGH COUNCIL,http://opendatacommunities.org/id/unitary-authority/warrington ,FWB,Care Purchase South Team,54070,CP-Domicil.External,440950,12-Mar-18,1900300711,3400.00,Lifeways SIL,115859
WARRINGTON BOROUGH COUNCIL,http://opendatacommunities.org/id/unitary-authority/warrington ,FWB,Care Purchase Central Team,54050,CP-Domicil.External,440950,12-Mar-18,1900300710,3800.00,Lifeways SIL,115859
WARRINGTON BOROUGH COUNCIL,http://opendatacommunities.org/id/unitary-authority/warrington ,FWB,Care Purchase South Team,54070,CP-Domicil.External,440950,12-Mar-18,1900300709,3000.00,Lifeways SIL,115859
WARRINGTON BOROUGH COUNCIL,http://opendatacommunities.org/id/unitary-authority/warrington ,FWB,Care Purchase South Team,54070,CP-Domicil.External,440950,12-Mar-18,1900300713,3400.00,Lifeways SIL,115859
WARRINGTON BOROUGH COUNCIL,http://opendatacommunities.org/id/unitary-authority/warrington ,FWB,Care Purchase West Team,54080,CP Residential EMI,441110,07-Mar-18,1900299846,2204.00,Linear Park (Housing With Care),100897
WARRINGTON BOROUGH COUNCIL,http://opendatacommunities.org/id/unitary-authority/warrington ,FWB,DSG 2 Year Old Fund,31601,Payment of Grants,470050,02-Mar-18,1900297318,4225.00,Little Acorns Day Nursery,400012
WARRINGTON BOROUGH COUNCIL,http://opendatacommunities.org/id/unitary-authority/warrington ,FWB,DSG Early Years PVI Settings,32417,Private & Voluntary 3 Year Olds,470100,02-Mar-18,1900297428,15171.00,Little Acorns Day Nursery,400012
WARRINGTON BOROUGH COUNCIL,http://opendatacommunities.org/id/unitary-authority/warrington ,FWB,DSG Early Years PVI Settings,32417,Private & Voluntary 4 Year Olds,470150,02-Mar-18,1900297551,4545.00,Little Acorns Day Nursery,400012
WARRINGTON BOROUGH COUNCIL,http://opendatacommunities.org/id/unitary-authority/warrington ,FWB,SEN Grants,32057,Payment of Grants,470050,13-Mar-18,1900300747,1200.00,Little Acorns Day Nursery,400012
WARRINGTON BOROUGH COUNCIL,http://opendatacommunities.org/id/unitary-authority/warrington ,FWB,DSG Early Years PVI Settings,32417,Private & Voluntary 3 Year Olds,470100,02-Mar-18,1900297429,3724.00,Little Angels Daycare Warrington Lt,400456
WARRINGTON BOROUGH COUNCIL,http://opendatacommunities.org/id/unitary-authority/warrington ,FWB,DSG Early Years PVI Settings,32417,Private & Voluntary 4 Year Olds,470150,02-Mar-18,1900297552,1637.00,Little Angels Daycare Warrington Lt,400456
WARRINGTON BOROUGH COUNCIL,http://opendatacommunities.org/id/unitary-authority/warrington ,FWB,DSG 2 Year Old Fund,31601,Payment of Grants,470050,02-Mar-18,1900297320,1590.00,Little Bears,115744
WARRINGTON BOROUGH COUNCIL,http://opendatacommunities.org/id/unitary-authority/warrington ,FWB,DSG Early Years PVI Settings,32417,Private & Voluntary 3 Year Olds,470100,02-Mar-18,1900297430,4951.00,Little Bears,115744
WARRINGTON BOROUGH COUNCIL,http://opendatacommunities.org/id/unitary-authority/warrington ,FWB,DSG Early Years PVI Settings,32417,Private & Voluntary 4 Year Olds,470150,02-Mar-18,1900297553,1320.00,Little Bears,115744
WARRINGTON BOROUGH COUNCIL,http://opendatacommunities.org/id/unitary-authority/warrington ,FWB,DSG 2 Year Old Fund,31601,Payment of Grants,470050,02-Mar-18,1900297321,2112.00,Little Browsers Playgroup,400140
WARRINGTON BOROUGH COUNCIL,http://opendatacommunities.org/id/unitary-authority/warrington ,FWB,DSG Early Years PVI Settings,32417,Private & Voluntary 3 Year Olds,470100,02-Mar-18,1900297431,5409.00,Little Browsers Playgroup,400140
WARRINGTON BOROUGH COUNCIL,http://opendatacommunities.org/id/unitary-authority/warrington ,FWB,DSG Early Years PVI Settings,32417,Private & Voluntary 4 Year Olds,470150,02-Mar-18,1900297554,1152.00,Little Browsers Playgroup,400140
WARRINGTON BOROUGH COUNCIL,http://opendatacommunities.org/id/unitary-authority/warrington ,FWB,DSG 2 Year Old Fund,31601,Payment of Grants,470050,02-Mar-18,1900297296,1837.00,Little Learners,112850
WARRINGTON BOROUGH COUNCIL,http://opendatacommunities.org/id/unitary-authority/warrington ,FWB,DSG Early Years PVI Settings,32417,Private & Voluntary 3 Year Olds,470100,02-Mar-18,1900297381,7780.00,Little Learners,112850
WARRINGTON BOROUGH COUNCIL,http://opendatacommunities.org/id/unitary-authority/warrington ,FWB,DSG Early Years PVI Settings,32417,Private & Voluntary 4 Year Olds,470150,02-Mar-18,1900297517,5116.00,Little Learners,112850
WARRINGTON BOROUGH COUNCIL,http://opendatacommunities.org/id/unitary-authority/warrington ,FWB,SEN Grants,32057,Payment of Grants,470050,13-Mar-18,1900300744,750.00,Little Learners,112850
WARRINGTON BOROUGH COUNCIL,http://opendatacommunities.org/id/unitary-authority/warrington ,FWB,DSG 2 Year Old Fund,31601,Payment of Grants,470050,02-Mar-18,1900297322,2993.00,Little Penguins Day Nursery,110768
WARRINGTON BOROUGH COUNCIL,http://opendatacommunities.org/id/unitary-authority/warrington ,FWB,DSG Early Years PVI Settings,32417,Private & Voluntary 3 Year Olds,470100,02-Mar-18,1900297432,5653.00,Little Penguins Day Nursery,110768
WARRINGTON BOROUGH COUNCIL,http://opendatacommunities.org/id/unitary-authority/warrington ,FWB,DSG Early Years PVI Settings,32417,Private & Voluntary 4 Year Olds,470150,02-Mar-18,1900297555,4334.00,Little Penguins Day Nursery,110768
WARRINGTON BOROUGH COUNCIL,http://opendatacommunities.org/id/unitary-authority/warrington ,FWB,DSG 2 Year Old Fund,31601,Payment of Grants,470050,02-Mar-18,1900297323,2963.00,Little Treasures Nursery Ltd,400091
WARRINGTON BOROUGH COUNCIL,http://opendatacommunities.org/id/unitary-authority/warrington ,FWB,DSG Early Years PVI Settings,32417,Private & Voluntary 3 Year Olds,470100,02-Mar-18,1900297433,9446.00,Little Treasures Nursery Ltd,400091
WARRINGTON BOROUGH COUNCIL,http://opendatacommunities.org/id/unitary-authority/warrington ,FWB,DSG Early Years PVI Settings,32417,Private & Voluntary 4 Year Olds,470150,02-Mar-18,1900297556,4363.00,Little Treasures Nursery Ltd,400091
WARRINGTON BOROUGH COUNCIL,http://opendatacommunities.org/id/unitary-authority/warrington ,FWB,Livewire Traded Services,32071,Mainstream Pupil Transport,300800,20-Mar-18,1900302834,37445.00,Livewire,110692
WARRINGTON BOROUGH COUNCIL,http://opendatacommunities.org/id/unitary-authority/warrington ,FWB,DSG 2 Year Old Fund,31601,Payment of Grants,470050,02-Mar-18,1900297324,1144.00,Locking Stumps Day Nursery,400142
WARRINGTON BOROUGH COUNCIL,http://opendatacommunities.org/id/unitary-authority/warrington ,FWB,DSG Early Years PVI Settings,32417,Private & Voluntary 3 Year Olds,470100,02-Mar-18,1900297434,4007.00,Locking Stumps Day Nursery,400142
WARRINGTON BOROUGH COUNCIL,http://opendatacommunities.org/id/unitary-authority/warrington ,FWB,DSG Early Years PVI Settings,32417,Private & Voluntary 4 Year Olds,470150,02-Mar-18,1900297557,657.00,Locking Stumps Day Nursery,400142
WARRINGTON BOROUGH COUNCIL,http://opendatacommunities.org/id/unitary-authority/warrington ,FWB,DSG 2 Year Old Fund,31601,Payment of Grants,470050,02-Mar-18,1900297325,880.00,Locking Stumps Pre School,400008
WARRINGTON BOROUGH COUNCIL,http://opendatacommunities.org/id/unitary-authority/warrington ,FWB,DSG Early Years PVI Settings,32417,Private & Voluntary 3 Year Olds,470100,02-Mar-18,1900297435,2932.00,Locking Stumps Pre School,400008
WARRINGTON BOROUGH COUNCIL,http://opendatacommunities.org/id/unitary-authority/warrington ,FWB,DSG Early Years PVI Settings,32417,Private & Voluntary 4 Year Olds,470150,02-Mar-18,1900297558,1721.00,Locking Stumps Pre School,400008
WARRINGTON BOROUGH COUNCIL,http://opendatacommunities.org/id/unitary-authority/warrington ,RSC,Postal & Courier Services,52130,Postages,450000,07-Feb-18,1900290252,2000.00,Logistex Express Ltd,100946
WARRINGTON BOROUGH COUNCIL,http://opendatacommunities.org/id/unitary-authority/warrington ,RSC,Postal & Courier Services,52130,Postages,450000,21-Mar-18,1900303579,1500.00,Logistex Express Ltd,100946
WARRINGTON BOROUGH COUNCIL,http://opendatacommunities.org/id/unitary-authority/warrington ,FWB,Care Purchase Central Team,54050,CP Nursing EMI,441105,07-Mar-18,1900298912,2260.00,London & Manchester Healthcare Ltd,109185
WARRINGTON BOROUGH COUNCIL,http://opendatacommunities.org/id/unitary-authority/warrington ,FWB,Care Purchase Budget,54490,CP Free Nursing Care External,443500,07-Mar-18,1900298875,620.00,London & Manchester Healthcare Ltd,109185
WARRINGTON BOROUGH COUNCIL,http://opendatacommunities.org/id/unitary-authority/warrington ,FWB,Care Purchase South Team,54070,CP-Nursing Care-External,441200,07-Mar-18,1900299398,2736.00,London & Manchester Healthcare Ltd,109185
WARRINGTON BOROUGH COUNCIL,http://opendatacommunities.org/id/unitary-authority/warrington ,FWB,Care Purchase Budget,54490,CP Free Nursing Care External,443500,07-Mar-18,1900299406,620.00,London & Manchester Healthcare Ltd,109185
WARRINGTON BOROUGH COUNCIL,http://opendatacommunities.org/id/unitary-authority/warrington ,FWB,Care Purchase Central Team,54050,CP Nursing EMI,441105,07-Mar-18,1900298978,2777.00,London & Manchester Healthcare Ltd,109185
WARRINGTON BOROUGH COUNCIL,http://opendatacommunities.org/id/unitary-authority/warrington ,FWB,Care Purchase South Team,54070,CP Nursing EMI,441105,07-Mar-18,1900298904,3262.00,London & Manchester Healthcare Ltd,109185
WARRINGTON BOROUGH COUNCIL,http://opendatacommunities.org/id/unitary-authority/warrington ,FWB,Care Purchase East Team,54060,CP-Nursing Care-External,441200,07-Mar-18,1900299214,2736.00,London & Manchester Healthcare Ltd,109185
WARRINGTON BOROUGH COUNCIL,http://opendatacommunities.org/id/unitary-authority/warrington ,FWB,Care Purchase Budget,54490,CP Free Nursing Care External,443500,07-Mar-18,1900299192,620.00,London & Manchester Healthcare Ltd,109185
WARRINGTON BOROUGH COUNCIL,http://opendatacommunities.org/id/unitary-authority/warrington ,FWB,Care Purchase East Team,54060,CP Nursing EMI,441105,07-Mar-18,1900299161,2880.00,London & Manchester Healthcare Ltd,109185
WARRINGTON BOROUGH COUNCIL,http://opendatacommunities.org/id/unitary-authority/warrington ,FWB,Care Purchase East Team,54060,CP-Nursing Care-External,441200,07-Mar-18,1900299161,600.00,London & Manchester Healthcare Ltd,109185
WARRINGTON BOROUGH COUNCIL,http://opendatacommunities.org/id/unitary-authority/warrington ,FWB,Care Purchase Central Team,54050,CP Nursing EMI,441105,07-Mar-18,1900298986,2880.00,London & Manchester Healthcare Ltd,109185
WARRINGTON BOROUGH COUNCIL,http://opendatacommunities.org/id/unitary-authority/warrington ,FWB,Care Purchase South Team,54070,CP Nursing EMI,441105,07-Mar-18,1900298991,2880.00,London & Manchester Healthcare Ltd,109185
WARRINGTON BOROUGH COUNCIL,http://opendatacommunities.org/id/unitary-authority/warrington ,FWB,Care Purchase South Team,54070,CP Nursing EMI,441105,07-Mar-18,1900299024,2260.00,London & Manchester Healthcare Ltd,109185
WARRINGTON BOROUGH COUNCIL,http://opendatacommunities.org/id/unitary-authority/warrington ,FWB,Care Purchase Budget,54490,CP Free Nursing Care External,443500,07-Mar-18,1900298949,620.00,London & Manchester Healthcare Ltd,109185
WARRINGTON BOROUGH COUNCIL,http://opendatacommunities.org/id/unitary-authority/warrington ,FWB,Care Purchase South Team,54070,CP Nursing EMI,441105,07-Mar-18,1900298996,2260.00,London & Manchester Healthcare Ltd,109185
WARRINGTON BOROUGH COUNCIL,http://opendatacommunities.org/id/unitary-authority/warrington ,FWB,Care Purchase Budget,54490,CP Free Nursing Care External,443500,07-Mar-18,1900299076,620.00,London & Manchester Healthcare Ltd,109185
WARRINGTON BOROUGH COUNCIL,http://opendatacommunities.org/id/unitary-authority/warrington ,FWB,Care Purchase Central Team,54050,CP Nursing EMI,441105,07-Mar-18,1900298958,2260.00,London & Manchester Healthcare Ltd,109185
WARRINGTON BOROUGH COUNCIL,http://opendatacommunities.org/id/unitary-authority/warrington ,FWB,Care Purchase Budget,54490,CP Free Nursing Care External,443500,07-Mar-18,1900299124,620.00,London & Manchester Healthcare Ltd,109185
WARRINGTON BOROUGH COUNCIL,http://opendatacommunities.org/id/unitary-authority/warrington ,FWB,Care Purchase South Team,54070,CP Nursing EMI,441105,07-Mar-18,1900299093,2260.00,London & Manchester Healthcare Ltd,109185
WARRINGTON BOROUGH COUNCIL,http://opendatacommunities.org/id/unitary-authority/warrington ,FWB,Care Purchase Budget,54490,CP Free Nursing Care External,443500,07-Mar-18,1900299094,620.00,London & Manchester Healthcare Ltd,109185
WARRINGTON BOROUGH COUNCIL,http://opendatacommunities.org/id/unitary-authority/warrington ,FWB,Care Purchase South Team,54070,CP Nursing EMI,441105,07-Mar-18,1900299143,2260.00,London & Manchester Healthcare Ltd,109185
WARRINGTON BOROUGH COUNCIL,http://opendatacommunities.org/id/unitary-authority/warrington ,FWB,Care Purchase Budget,54490,CP Free Nursing Care External,443500,07-Mar-18,1900299103,620.00,London & Manchester Healthcare Ltd,109185
WARRINGTON BOROUGH COUNCIL,http://opendatacommunities.org/id/unitary-authority/warrington ,FWB,Care Purchase South Team,54070,CP-Nursing Care-External,441200,07-Mar-18,1900299108,2536.00,London & Manchester Healthcare Ltd,109185
WARRINGTON BOROUGH COUNCIL,http://opendatacommunities.org/id/unitary-authority/warrington ,FWB,Care Purchase Budget,54490,CP Free Nursing Care External,443500,07-Mar-18,1900299348,620.00,London & Manchester Healthcare Ltd,109185
WARRINGTON BOROUGH COUNCIL,http://opendatacommunities.org/id/unitary-authority/warrington ,FWB,Care Purchase Central Team,54050,CP-Nursing Care-External,441200,07-Mar-18,1900299052,3320.00,London & Manchester Healthcare Ltd,109185
WARRINGTON BOROUGH COUNCIL,http://opendatacommunities.org/id/unitary-authority/warrington ,FWB,Care Purchase Central Team,54050,CP Nursing EMI,441105,07-Mar-18,1900299113,2260.00,London & Manchester Healthcare Ltd,109185
WARRINGTON BOROUGH COUNCIL,http://opendatacommunities.org/id/unitary-authority/warrington ,FWB,Care Purchase Budget,54490,CP Free Nursing Care External,443500,07-Mar-18,1900299055,620.00,London & Manchester Healthcare Ltd,109185
WARRINGTON BOROUGH COUNCIL,http://opendatacommunities.org/id/unitary-authority/warrington ,FWB,Care Purchase South Team,54070,CP Nursing EMI,441105,07-Mar-18,1900299121,3130.00,London & Manchester Healthcare Ltd,109185
WARRINGTON BOROUGH COUNCIL,http://opendatacommunities.org/id/unitary-authority/warrington ,FWB,Care Purchase South Team,54070,CP Nursing EMI,441105,07-Mar-18,1900299357,2880.00,London & Manchester Healthcare Ltd,109185
WARRINGTON BOROUGH COUNCIL,http://opendatacommunities.org/id/unitary-authority/warrington ,FWB,Care Purchase Central Team,54050,CP Nursing EMI,441105,07-Mar-18,1900299374,2880.00,London & Manchester Healthcare Ltd,109185
WARRINGTON BOROUGH COUNCIL,http://opendatacommunities.org/id/unitary-authority/warrington ,FWB,Care Purchase Central Team,54050,CP Nursing EMI,441105,07-Mar-18,1900299397,2880.00,London & Manchester Healthcare Ltd,109185
WARRINGTON BOROUGH COUNCIL,http://opendatacommunities.org/id/unitary-authority/warrington ,FWB,Care Purchase Central Team,54050,CP-Nursing Care-External,441200,07-Mar-18,1900299397,600.00,London & Manchester Healthcare Ltd,109185
WARRINGTON BOROUGH COUNCIL,http://opendatacommunities.org/id/unitary-authority/warrington ,FWB,Care Purchase Central Team,54050,CP-Nursing Care-External,441200,07-Mar-18,1900299425,9077.00,London & Manchester Healthcare Ltd,109185
WARRINGTON BOROUGH COUNCIL,http://opendatacommunities.org/id/unitary-authority/warrington ,FWB,Care Purchase South Team,54070,CP Nursing EMI,441105,07-Mar-18,1900299361,2260.00,London & Manchester Healthcare Ltd,109185
WARRINGTON BOROUGH COUNCIL,http://opendatacommunities.org/id/unitary-authority/warrington ,FWB,Care Purchase Budget,54490,CP Free Nursing Care External,443500,07-Mar-18,1900299363,620.00,London & Manchester Healthcare Ltd,109185
WARRINGTON BOROUGH COUNCIL,http://opendatacommunities.org/id/unitary-authority/warrington ,FWB,Care Purchase South Team,54070,CP-Nursing Care-External,441200,07-Mar-18,1900299218,2860.00,London & Manchester Healthcare Ltd,109185
WARRINGTON BOROUGH COUNCIL,http://opendatacommunities.org/id/unitary-authority/warrington ,FWB,Care Purchase Budget,54490,CP Free Nursing Care External,443500,07-Mar-18,1900299257,620.00,London & Manchester Healthcare Ltd,109185
WARRINGTON BOROUGH COUNCIL,http://opendatacommunities.org/id/unitary-authority/warrington ,FWB,Care Purchase South Team,54070,CP Nursing EMI,441105,07-Mar-18,1900299176,2880.00,London & Manchester Healthcare Ltd,109185
WARRINGTON BOROUGH COUNCIL,http://opendatacommunities.org/id/unitary-authority/warrington ,FWB,Care Purchase South Team,54070,CP Nursing EMI,441105,07-Mar-18,1900299166,2260.00,London & Manchester Healthcare Ltd,109185
WARRINGTON BOROUGH COUNCIL,http://opendatacommunities.org/id/unitary-authority/warrington ,FWB,Care Purchase South Team,54070,CP-Nursing Care-External,441200,07-Mar-18,1900299166,600.00,London & Manchester Healthcare Ltd,109185
WARRINGTON BOROUGH COUNCIL,http://opendatacommunities.org/id/unitary-authority/warrington ,FWB,Care Purchase Budget,54490,CP Free Nursing Care External,443500,07-Mar-18,1900299384,620.00,London & Manchester Healthcare Ltd,109185
WARRINGTON BOROUGH COUNCIL,http://opendatacommunities.org/id/unitary-authority/warrington ,FWB,Care Purchase South Team,54070,CP Nursing EMI,441105,07-Mar-18,1900299388,2880.00,London & Manchester Healthcare Ltd,109185
WARRINGTON BOROUGH COUNCIL,http://opendatacommunities.org/id/unitary-authority/warrington ,FWB,Care Purchase South Team,54070,CP-Nursing Care-External,441200,07-Mar-18,1900299388,600.00,London & Manchester Healthcare Ltd,109185
WARRINGTON BOROUGH COUNCIL,http://opendatacommunities.org/id/unitary-authority/warrington ,FWB,Care Purchase South Team,54070,CP Nursing EMI,441105,07-Mar-18,1900299148,2880.00,London & Manchester Healthcare Ltd,109185
WARRINGTON BOROUGH COUNCIL,http://opendatacommunities.org/id/unitary-authority/warrington ,FWB,Care Purchase South Team,54070,CP-Nursing Care-External,441200,07-Mar-18,1900299385,2736.00,London & Manchester Healthcare Ltd,109185
WARRINGTON BOROUGH COUNCIL,http://opendatacommunities.org/id/unitary-authority/warrington ,FWB,Care Purchase Budget,54490,CP Free Nursing Care External,443500,07-Mar-18,1900299172,620.00,London & Manchester Healthcare Ltd,109185
WARRINGTON BOROUGH COUNCIL,http://opendatacommunities.org/id/unitary-authority/warrington ,FWB,Care Purchase Budget,54490,CP Free Nursing Care External,443500,05-Mar-18,1900298175,13888.00,London & Manchester Healthcare Ltd,109185
WARRINGTON BOROUGH COUNCIL,http://opendatacommunities.org/id/unitary-authority/warrington ,FWB,Care Purchase Budget,54490,CP ExternalOther Exp,440800,27-Feb-18,1900295542,70000.00,London & Manchester Healthcare Ltd,109185
WARRINGTON BOROUGH COUNCIL,http://opendatacommunities.org/id/unitary-authority/warrington ,FWB,Care Purchase Budget,54490,CP Free Nursing Care External,443500,26-Feb-18,1900295343,3522.00,London & Manchester Healthcare Ltd,109185
WARRINGTON BOROUGH COUNCIL,http://opendatacommunities.org/id/unitary-authority/warrington ,FWB,Neighbourhood Co-o Central,51309,Payment of Grants,470050,21-Mar-18,1900303580,2000.00,Longford Neighbourhood Service Cent,107743
WARRINGTON BOROUGH COUNCIL,http://opendatacommunities.org/id/unitary-authority/warrington ,FWB,Fostering Placements,30003,Fostering Accommodation,441050,26-Feb-18,1900297147,3100.00,Lorimer Foster Services,101337
WARRINGTON BOROUGH COUNCIL,http://opendatacommunities.org/id/unitary-authority/warrington ,FWB,Fostering Placements,30003,Fostering Accommodation,441050,26-Mar-18,1900305111,3100.00,Lorimer Foster Services,101337
WARRINGTON BOROUGH COUNCIL,http://opendatacommunities.org/id/unitary-authority/warrington ,FWB,DSG Early Years PVI Settings,32417,Private & Voluntary 3 Year Olds,470100,02-Mar-18,1900297438,6245.00,Lynton Private Day Nursery,400003
WARRINGTON BOROUGH COUNCIL,http://opendatacommunities.org/id/unitary-authority/warrington ,FWB,DSG Early Years PVI Settings,32417,Private & Voluntary 4 Year Olds,470150,02-Mar-18,1900297560,564.00,Lynton Private Day Nursery,400003
WARRINGTON BOROUGH COUNCIL,http://opendatacommunities.org/id/unitary-authority/warrington ,EE0,Estates & Valuation,43520,Agency Supply ,180000,28-Feb-18,1900296199,1624.00,Macdonald And Company,100697
WARRINGTON BOROUGH COUNCIL,http://opendatacommunities.org/id/unitary-authority/warrington ,EE0,Estates & Valuation,43520,Agency Supply ,180000,28-Feb-18,1900296198,1642.00,Macdonald And Company,100697
WARRINGTON BOROUGH COUNCIL,http://opendatacommunities.org/id/unitary-authority/warrington ,EE0,Estates & Valuation,43520,Agency Supply ,180000,28-Feb-18,1900296200,1624.00,Macdonald And Company,100697
WARRINGTON BOROUGH COUNCIL,http://opendatacommunities.org/id/unitary-authority/warrington ,EE0,Estates & Valuation,43520,Agency Supply ,180000,28-Feb-18,1900296201,1451.00,Macdonald And Company,100697
WARRINGTON BOROUGH COUNCIL,http://opendatacommunities.org/id/unitary-authority/warrington ,FWB,Care Purchase Budget,54490,CP ExternalOther Exp,440800,01-Mar-18,1900297247,16423.00,Macintyre Care,104907
WARRINGTON BOROUGH COUNCIL,http://opendatacommunities.org/id/unitary-authority/warrington ,FWB,Care Purchase Central Team,54050,CP-LongStayExternal,441150,07-Mar-18,1900299514,5076.00,Macintyre Care,104907
WARRINGTON BOROUGH COUNCIL,http://opendatacommunities.org/id/unitary-authority/warrington ,FWB,Care Purchase Central Team,54050,Supported Accommodation,440975,15-Mar-18,1900301664,4652.00,Macintyre Care,104907
WARRINGTON BOROUGH COUNCIL,http://opendatacommunities.org/id/unitary-authority/warrington ,FWB,Care Purchase Central Team,54050,Supporting People - External,441250,15-Mar-18,1900301664,3478.00,Macintyre Care,104907
WARRINGTON BOROUGH COUNCIL,http://opendatacommunities.org/id/unitary-authority/warrington ,FWB,Care Purchase West Team,54080,Supported Accommodation,440975,15-Mar-18,1900301652,6584.00,Macintyre Care,104907
WARRINGTON BOROUGH COUNCIL,http://opendatacommunities.org/id/unitary-authority/warrington ,FWB,Care Purchase West Team,54080,Supporting People - External,441250,15-Mar-18,1900301652,1546.00,Macintyre Care,104907
WARRINGTON BOROUGH COUNCIL,http://opendatacommunities.org/id/unitary-authority/warrington ,FWB,Care Purchase East Team,54060,Supported Accommodation,440975,15-Mar-18,1900301640,3879.00,Macintyre Care,104907
WARRINGTON BOROUGH COUNCIL,http://opendatacommunities.org/id/unitary-authority/warrington ,FWB,Care Purchase East Team,54060,Supporting People - External,441250,15-Mar-18,1900301640,2208.00,Macintyre Care,104907
WARRINGTON BOROUGH COUNCIL,http://opendatacommunities.org/id/unitary-authority/warrington ,FWB,Care Purchase East Team,54060,Supported Accommodation,440975,15-Mar-18,1900301665,3864.00,Macintyre Care,104907
WARRINGTON BOROUGH COUNCIL,http://opendatacommunities.org/id/unitary-authority/warrington ,FWB,Care Purchase East Team,54060,Supported Accommodation,440975,15-Mar-18,1900301678,5866.00,Macintyre Care,104907
WARRINGTON BOROUGH COUNCIL,http://opendatacommunities.org/id/unitary-authority/warrington ,FWB,Care Purchase East Team,54060,Supporting People - External,441250,15-Mar-18,1900301678,2263.00,Macintyre Care,104907
WARRINGTON BOROUGH COUNCIL,http://opendatacommunities.org/id/unitary-authority/warrington ,FWB,Care Purchase East Team,54060,Supported Accommodation,440975,15-Mar-18,1900301679,5673.00,Macintyre Care,104907
WARRINGTON BOROUGH COUNCIL,http://opendatacommunities.org/id/unitary-authority/warrington ,FWB,Care Purchase East Team,54060,Supporting People - External,441250,15-Mar-18,1900301679,2705.00,Macintyre Care,104907
WARRINGTON BOROUGH COUNCIL,http://opendatacommunities.org/id/unitary-authority/warrington ,FWB,Care Purchase East Team,54060,Supported Accommodation,440975,15-Mar-18,1900301641,6970.00,Macintyre Care,104907
WARRINGTON BOROUGH COUNCIL,http://opendatacommunities.org/id/unitary-authority/warrington ,FWB,Care Purchase East Team,54060,Supporting People - External,441250,15-Mar-18,1900301641,1126.00,Macintyre Care,104907
WARRINGTON BOROUGH COUNCIL,http://opendatacommunities.org/id/unitary-authority/warrington ,FWB,Care Purchase East Team,54060,Supported Accommodation,440975,15-Mar-18,1900301653,3934.00,Macintyre Care,104907
WARRINGTON BOROUGH COUNCIL,http://opendatacommunities.org/id/unitary-authority/warrington ,FWB,Care Purchase East Team,54060,Supporting People - External,441250,15-Mar-18,1900301653,4582.00,Macintyre Care,104907
WARRINGTON BOROUGH COUNCIL,http://opendatacommunities.org/id/unitary-authority/warrington ,FWB,Care Purchase Central Team,54050,Supported Accommodation,440975,15-Mar-18,1900301654,5701.00,Macintyre Care,104907
WARRINGTON BOROUGH COUNCIL,http://opendatacommunities.org/id/unitary-authority/warrington ,FWB,Care Purchase West Team,54080,Supported Accommodation,440975,15-Mar-18,1900301667,6087.00,Macintyre Care,104907
WARRINGTON BOROUGH COUNCIL,http://opendatacommunities.org/id/unitary-authority/warrington ,FWB,Care Purchase West Team,54080,Supporting People - External,441250,15-Mar-18,1900301667,828.00,Macintyre Care,104907
WARRINGTON BOROUGH COUNCIL,http://opendatacommunities.org/id/unitary-authority/warrington ,FWB,Care Purchase East Team,54060,Supported Accommodation,440975,15-Mar-18,1900301655,8019.00,Macintyre Care,104907
WARRINGTON BOROUGH COUNCIL,http://opendatacommunities.org/id/unitary-authority/warrington ,FWB,Care Purchase East Team,54060,Supporting People - External,441250,15-Mar-18,1900301655,2042.00,Macintyre Care,104907
WARRINGTON BOROUGH COUNCIL,http://opendatacommunities.org/id/unitary-authority/warrington ,FWB,Care Purchase Central Team,54050,Supported Accommodation,440975,15-Mar-18,1900301644,5630.00,Macintyre Care,104907
WARRINGTON BOROUGH COUNCIL,http://opendatacommunities.org/id/unitary-authority/warrington ,FWB,Care Purchase East Team,54060,Supported Accommodation,440975,15-Mar-18,1900301635,690.00,Macintyre Care,104907
WARRINGTON BOROUGH COUNCIL,http://opendatacommunities.org/id/unitary-authority/warrington ,FWB,Care Purchase East Team,54060,Supported Accommodation,440975,15-Mar-18,1900301669,580.00,Macintyre Care,104907
WARRINGTON BOROUGH COUNCIL,http://opendatacommunities.org/id/unitary-authority/warrington ,FWB,Care Purchase East Team,54060,Supported Accommodation,440975,15-Mar-18,1900301645,6363.00,Macintyre Care,104907
WARRINGTON BOROUGH COUNCIL,http://opendatacommunities.org/id/unitary-authority/warrington ,FWB,Care Purchase East Team,54060,Supporting People - External,441250,15-Mar-18,1900301645,1546.00,Macintyre Care,104907
WARRINGTON BOROUGH COUNCIL,http://opendatacommunities.org/id/unitary-authority/warrington ,FWB,Care Purchase East Team,54060,Supported Accommodation,440975,15-Mar-18,1900301668,1104.00,Macintyre Care,104907
WARRINGTON BOROUGH COUNCIL,http://opendatacommunities.org/id/unitary-authority/warrington ,FWB,Care Purchase East Team,54060,Supported Accommodation,440975,15-Mar-18,1900301670,1104.00,Macintyre Care,104907
WARRINGTON BOROUGH COUNCIL,http://opendatacommunities.org/id/unitary-authority/warrington ,FWB,Care Purchase East Team,54060,Supported Accommodation,440975,15-Mar-18,1900301671,718.00,Macintyre Care,104907
WARRINGTON BOROUGH COUNCIL,http://opendatacommunities.org/id/unitary-authority/warrington ,FWB,Care Purchase East Team,54060,Supported Accommodation,440975,15-Mar-18,1900301656,1325.00,Macintyre Care,104907
WARRINGTON BOROUGH COUNCIL,http://opendatacommunities.org/id/unitary-authority/warrington ,FWB,Care Purchase Central Team,54050,Supported Accommodation,440975,15-Mar-18,1900301646,5216.00,Macintyre Care,104907
WARRINGTON BOROUGH COUNCIL,http://opendatacommunities.org/id/unitary-authority/warrington ,FWB,Care Purchase East Team,54060,Supported Accommodation,440975,15-Mar-18,1900301657,6253.00,Macintyre Care,104907
WARRINGTON BOROUGH COUNCIL,http://opendatacommunities.org/id/unitary-authority/warrington ,FWB,Care Purchase West Team,54080,Supported Accommodation,440975,15-Mar-18,1900301636,5204.00,Macintyre Care,104907
WARRINGTON BOROUGH COUNCIL,http://opendatacommunities.org/id/unitary-authority/warrington ,FWB,Care Purchase West Team,54080,Supporting People - External,441250,15-Mar-18,1900301636,2374.00,Macintyre Care,104907
WARRINGTON BOROUGH COUNCIL,http://opendatacommunities.org/id/unitary-authority/warrington ,FWB,Care Purchase East Team,54060,Supported Accommodation,440975,15-Mar-18,1900301647,6845.00,Macintyre Care,104907
WARRINGTON BOROUGH COUNCIL,http://opendatacommunities.org/id/unitary-authority/warrington ,FWB,Care Purchase East Team,54060,Supported Accommodation,440975,15-Mar-18,1900301672,828.00,Macintyre Care,104907
WARRINGTON BOROUGH COUNCIL,http://opendatacommunities.org/id/unitary-authority/warrington ,FWB,Care Purchase Central Team,54050,Supported Accommodation,440975,15-Mar-18,1900301659,1463.00,Macintyre Care,104907
WARRINGTON BOROUGH COUNCIL,http://opendatacommunities.org/id/unitary-authority/warrington ,FWB,Care Purchase Central Team,54050,Supported Accommodation,440975,15-Mar-18,1900301673,3643.00,Macintyre Care,104907
WARRINGTON BOROUGH COUNCIL,http://opendatacommunities.org/id/unitary-authority/warrington ,FWB,Care Purchase East Team,54060,Supported Accommodation,440975,15-Mar-18,1900301674,4471.00,Macintyre Care,104907
WARRINGTON BOROUGH COUNCIL,http://opendatacommunities.org/id/unitary-authority/warrington ,FWB,Care Purchase Central Team,54050,Supported Accommodation,440975,15-Mar-18,1900301675,1904.00,Macintyre Care,104907
WARRINGTON BOROUGH COUNCIL,http://opendatacommunities.org/id/unitary-authority/warrington ,FWB,Care Purchase Central Team,54050,Supported Accommodation,440975,15-Mar-18,1900301676,2318.00,Macintyre Care,104907
WARRINGTON BOROUGH COUNCIL,http://opendatacommunities.org/id/unitary-authority/warrington ,FWB,Care Purchase Central Team,54050,Supported Accommodation,440975,15-Mar-18,1900301638,4597.00,Macintyre Care,104907
WARRINGTON BOROUGH COUNCIL,http://opendatacommunities.org/id/unitary-authority/warrington ,FWB,Care Purchase Central Team,54050,Supporting People - External,441250,15-Mar-18,1900301638,607.00,Macintyre Care,104907
WARRINGTON BOROUGH COUNCIL,http://opendatacommunities.org/id/unitary-authority/warrington ,FWB,Care Purchase East Team,54060,Supported Accommodation,440975,15-Mar-18,1900301661,8170.00,Macintyre Care,104907
WARRINGTON BOROUGH COUNCIL,http://opendatacommunities.org/id/unitary-authority/warrington ,FWB,Care Purchase East Team,54060,Supporting People - External,441250,15-Mar-18,1900301661,1104.00,Macintyre Care,104907
WARRINGTON BOROUGH COUNCIL,http://opendatacommunities.org/id/unitary-authority/warrington ,FWB,Care Purchase West Team,54080,Supported Accommodation,440975,15-Mar-18,1900301639,552.00,Macintyre Care,104907
WARRINGTON BOROUGH COUNCIL,http://opendatacommunities.org/id/unitary-authority/warrington ,FWB,Care Purchase Central Team,54050,Supported Accommodation,440975,15-Mar-18,1900301642,635.00,Macintyre Care,104907
WARRINGTON BOROUGH COUNCIL,http://opendatacommunities.org/id/unitary-authority/warrington ,FWB,Care Purchase West Team,54080,Supported Accommodation,440975,15-Mar-18,1900301648,662.00,Macintyre Care,104907
WARRINGTON BOROUGH COUNCIL,http://opendatacommunities.org/id/unitary-authority/warrington ,FWB,Care Purchase East Team,54060,Supported Accommodation,440975,15-Mar-18,1900301677,10255.00,Macintyre Care,104907
WARRINGTON BOROUGH COUNCIL,http://opendatacommunities.org/id/unitary-authority/warrington ,FWB,Care Purchase East Team,54060,Supporting People - External,441250,15-Mar-18,1900301666,718.00,Macintyre Care,104907
WARRINGTON BOROUGH COUNCIL,http://opendatacommunities.org/id/unitary-authority/warrington ,FWB,Care Purchase Central Team,54050,Supported Accommodation,440975,15-Mar-18,1900301649,9454.00,Macintyre Care,104907
WARRINGTON BOROUGH COUNCIL,http://opendatacommunities.org/id/unitary-authority/warrington ,FWB,Care Purchase Central Team,54050,Supported Accommodation,440975,15-Mar-18,1900301663,1822.00,Macintyre Care,104907
WARRINGTON BOROUGH COUNCIL,http://opendatacommunities.org/id/unitary-authority/warrington ,FWB,Care Purchase Central Team,54050,Supported Accommodation,440975,15-Mar-18,1900301643,7578.00,Macintyre Care,104907
WARRINGTON BOROUGH COUNCIL,http://opendatacommunities.org/id/unitary-authority/warrington ,FWB,Care Purchase Central Team,54050,Supporting People - External,441250,15-Mar-18,1900301643,552.00,Macintyre Care,104907
WARRINGTON BOROUGH COUNCIL,http://opendatacommunities.org/id/unitary-authority/warrington ,FWB,Care Purchase Central Team,54050,Supported Accommodation,440975,21-Mar-18,1900304247,4652.00,Macintyre Care,104907
WARRINGTON BOROUGH COUNCIL,http://opendatacommunities.org/id/unitary-authority/warrington ,FWB,Care Purchase Central Team,54050,Supporting People - External,441250,21-Mar-18,1900304247,3478.00,Macintyre Care,104907
WARRINGTON BOROUGH COUNCIL,http://opendatacommunities.org/id/unitary-authority/warrington ,FWB,Care Purchase West Team,54080,Supported Accommodation,440975,21-Mar-18,1900304223,6584.00,Macintyre Care,104907
WARRINGTON BOROUGH COUNCIL,http://opendatacommunities.org/id/unitary-authority/warrington ,FWB,Care Purchase West Team,54080,Supporting People - External,441250,21-Mar-18,1900304223,1546.00,Macintyre Care,104907
WARRINGTON BOROUGH COUNCIL,http://opendatacommunities.org/id/unitary-authority/warrington ,FWB,Care Purchase East Team,54060,Supported Accommodation,440975,21-Mar-18,1900304235,4542.00,Macintyre Care,104907
WARRINGTON BOROUGH COUNCIL,http://opendatacommunities.org/id/unitary-authority/warrington ,FWB,Care Purchase East Team,54060,Supporting People - External,441250,21-Mar-18,1900304235,2208.00,Macintyre Care,104907
WARRINGTON BOROUGH COUNCIL,http://opendatacommunities.org/id/unitary-authority/warrington ,FWB,Care Purchase East Team,54060,Supported Accommodation,440975,21-Mar-18,1900304248,3864.00,Macintyre Care,104907
WARRINGTON BOROUGH COUNCIL,http://opendatacommunities.org/id/unitary-authority/warrington ,FWB,Care Purchase East Team,54060,Supported Accommodation,440975,21-Mar-18,1900304261,5866.00,Macintyre Care,104907
WARRINGTON BOROUGH COUNCIL,http://opendatacommunities.org/id/unitary-authority/warrington ,FWB,Care Purchase East Team,54060,Supporting People - External,441250,21-Mar-18,1900304261,2263.00,Macintyre Care,104907
WARRINGTON BOROUGH COUNCIL,http://opendatacommunities.org/id/unitary-authority/warrington ,FWB,Care Purchase East Team,54060,Supported Accommodation,440975,21-Mar-18,1900304262,5673.00,Macintyre Care,104907
WARRINGTON BOROUGH COUNCIL,http://opendatacommunities.org/id/unitary-authority/warrington ,FWB,Care Purchase East Team,54060,Supporting People - External,441250,21-Mar-18,1900304262,2705.00,Macintyre Care,104907
WARRINGTON BOROUGH COUNCIL,http://opendatacommunities.org/id/unitary-authority/warrington ,FWB,Care Purchase East Team,54060,Supported Accommodation,440975,21-Mar-18,1900304236,6970.00,Macintyre Care,104907
WARRINGTON BOROUGH COUNCIL,http://opendatacommunities.org/id/unitary-authority/warrington ,FWB,Care Purchase East Team,54060,Supporting People - External,441250,21-Mar-18,1900304236,1126.00,Macintyre Care,104907
WARRINGTON BOROUGH COUNCIL,http://opendatacommunities.org/id/unitary-authority/warrington ,FWB,Care Purchase East Team,54060,Supported Accommodation,440975,21-Mar-18,1900304224,3934.00,Macintyre Care,104907
WARRINGTON BOROUGH COUNCIL,http://opendatacommunities.org/id/unitary-authority/warrington ,FWB,Care Purchase East Team,54060,Supporting People - External,441250,21-Mar-18,1900304224,4582.00,Macintyre Care,104907
WARRINGTON BOROUGH COUNCIL,http://opendatacommunities.org/id/unitary-authority/warrington ,FWB,Care Purchase Central Team,54050,Supported Accommodation,440975,21-Mar-18,1900304225,5701.00,Macintyre Care,104907
WARRINGTON BOROUGH COUNCIL,http://opendatacommunities.org/id/unitary-authority/warrington ,FWB,Care Purchase West Team,54080,Supported Accommodation,440975,21-Mar-18,1900304250,6087.00,Macintyre Care,104907
WARRINGTON BOROUGH COUNCIL,http://opendatacommunities.org/id/unitary-authority/warrington ,FWB,Care Purchase West Team,54080,Supporting People - External,441250,21-Mar-18,1900304250,828.00,Macintyre Care,104907
WARRINGTON BOROUGH COUNCIL,http://opendatacommunities.org/id/unitary-authority/warrington ,FWB,Care Purchase East Team,54060,Supported Accommodation,440975,21-Mar-18,1900304226,8019.00,Macintyre Care,104907
WARRINGTON BOROUGH COUNCIL,http://opendatacommunities.org/id/unitary-authority/warrington ,FWB,Care Purchase East Team,54060,Supporting People - External,441250,21-Mar-18,1900304226,2042.00,Macintyre Care,104907
WARRINGTON BOROUGH COUNCIL,http://opendatacommunities.org/id/unitary-authority/warrington ,FWB,Care Purchase Central Team,54050,Supported Accommodation,440975,21-Mar-18,1900304215,5630.00,Macintyre Care,104907
WARRINGTON BOROUGH COUNCIL,http://opendatacommunities.org/id/unitary-authority/warrington ,FWB,Care Purchase East Team,54060,Supported Accommodation,440975,21-Mar-18,1900304230,518.00,Macintyre Care,104907
WARRINGTON BOROUGH COUNCIL,http://opendatacommunities.org/id/unitary-authority/warrington ,FWB,Care Purchase East Team,54060,Supported Accommodation,440975,21-Mar-18,1900304252,580.00,Macintyre Care,104907
WARRINGTON BOROUGH COUNCIL,http://opendatacommunities.org/id/unitary-authority/warrington ,FWB,Care Purchase East Team,54060,Supported Accommodation,440975,21-Mar-18,1900304216,6363.00,Macintyre Care,104907
WARRINGTON BOROUGH COUNCIL,http://opendatacommunities.org/id/unitary-authority/warrington ,FWB,Care Purchase East Team,54060,Supporting People - External,441250,21-Mar-18,1900304216,1546.00,Macintyre Care,104907
WARRINGTON BOROUGH COUNCIL,http://opendatacommunities.org/id/unitary-authority/warrington ,FWB,Care Purchase East Team,54060,Supported Accommodation,440975,21-Mar-18,1900304251,7413.00,Macintyre Care,104907
WARRINGTON BOROUGH COUNCIL,http://opendatacommunities.org/id/unitary-authority/warrington ,FWB,Care Purchase East Team,54060,Supported Accommodation,440975,21-Mar-18,1900304253,1104.00,Macintyre Care,104907
WARRINGTON BOROUGH COUNCIL,http://opendatacommunities.org/id/unitary-authority/warrington ,FWB,Care Purchase East Team,54060,Supported Accommodation,440975,21-Mar-18,1900304254,718.00,Macintyre Care,104907
WARRINGTON BOROUGH COUNCIL,http://opendatacommunities.org/id/unitary-authority/warrington ,FWB,Care Purchase East Team,54060,Supported Accommodation,440975,21-Mar-18,1900304239,1325.00,Macintyre Care,104907
WARRINGTON BOROUGH COUNCIL,http://opendatacommunities.org/id/unitary-authority/warrington ,FWB,Care Purchase Central Team,54050,Supported Accommodation,440975,21-Mar-18,1900304217,5906.00,Macintyre Care,104907
WARRINGTON BOROUGH COUNCIL,http://opendatacommunities.org/id/unitary-authority/warrington ,FWB,Care Purchase Central Team,54050,Supported Accommodation,440975,21-Mar-18,1900304263,2334.00,Macintyre Care,104907
WARRINGTON BOROUGH COUNCIL,http://opendatacommunities.org/id/unitary-authority/warrington ,FWB,Care Purchase East Team,54060,Supported Accommodation,440975,21-Mar-18,1900304240,6253.00,Macintyre Care,104907
WARRINGTON BOROUGH COUNCIL,http://opendatacommunities.org/id/unitary-authority/warrington ,FWB,Care Purchase West Team,54080,Supported Accommodation,440975,21-Mar-18,1900304231,6308.00,Macintyre Care,104907
WARRINGTON BOROUGH COUNCIL,http://opendatacommunities.org/id/unitary-authority/warrington ,FWB,Care Purchase West Team,54080,Supporting People - External,441250,21-Mar-18,1900304231,2374.00,Macintyre Care,104907
WARRINGTON BOROUGH COUNCIL,http://opendatacommunities.org/id/unitary-authority/warrington ,FWB,Care Purchase West Team,54080,Supported Accommodation,440975,21-Mar-18,1900304265,58764.00,Macintyre Care,104907
WARRINGTON BOROUGH COUNCIL,http://opendatacommunities.org/id/unitary-authority/warrington ,FWB,Care Purchase East Team,54060,Supported Accommodation,440975,21-Mar-18,1900304218,6845.00,Macintyre Care,104907
WARRINGTON BOROUGH COUNCIL,http://opendatacommunities.org/id/unitary-authority/warrington ,FWB,Care Purchase East Team,54060,Supported Accommodation,440975,21-Mar-18,1900304255,828.00,Macintyre Care,104907
WARRINGTON BOROUGH COUNCIL,http://opendatacommunities.org/id/unitary-authority/warrington ,FWB,Care Purchase West Team,54080,Supported Accommodation,440975,21-Mar-18,1900304228,8517.00,Macintyre Care,104907
WARRINGTON BOROUGH COUNCIL,http://opendatacommunities.org/id/unitary-authority/warrington ,FWB,Care Purchase West Team,54080,Supported Accommodation,440975,21-Mar-18,1900304237,2760.00,Macintyre Care,104907
WARRINGTON BOROUGH COUNCIL,http://opendatacommunities.org/id/unitary-authority/warrington ,FWB,Care Purchase Central Team,54050,Supported Accommodation,440975,21-Mar-18,1900304242,1463.00,Macintyre Care,104907
WARRINGTON BOROUGH COUNCIL,http://opendatacommunities.org/id/unitary-authority/warrington ,FWB,Care Purchase Central Team,54050,Supported Accommodation,440975,21-Mar-18,1900304256,3643.00,Macintyre Care,104907
WARRINGTON BOROUGH COUNCIL,http://opendatacommunities.org/id/unitary-authority/warrington ,FWB,Care Purchase West Team,54080,Supported Accommodation,440975,21-Mar-18,1900304227,8517.00,Macintyre Care,104907
WARRINGTON BOROUGH COUNCIL,http://opendatacommunities.org/id/unitary-authority/warrington ,FWB,Care Purchase East Team,54060,Supported Accommodation,440975,21-Mar-18,1900304257,4471.00,Macintyre Care,104907
WARRINGTON BOROUGH COUNCIL,http://opendatacommunities.org/id/unitary-authority/warrington ,FWB,Care Purchase Central Team,54050,Supported Accommodation,440975,21-Mar-18,1900304258,1904.00,Macintyre Care,104907
WARRINGTON BOROUGH COUNCIL,http://opendatacommunities.org/id/unitary-authority/warrington ,FWB,Care Purchase Central Team,54050,Supported Accommodation,440975,21-Mar-18,1900304259,2318.00,Macintyre Care,104907
WARRINGTON BOROUGH COUNCIL,http://opendatacommunities.org/id/unitary-authority/warrington ,FWB,Care Purchase Central Team,54050,Supported Accommodation,440975,21-Mar-18,1900304233,4597.00,Macintyre Care,104907
WARRINGTON BOROUGH COUNCIL,http://opendatacommunities.org/id/unitary-authority/warrington ,FWB,Care Purchase Central Team,54050,Supporting People - External,441250,21-Mar-18,1900304233,607.00,Macintyre Care,104907
WARRINGTON BOROUGH COUNCIL,http://opendatacommunities.org/id/unitary-authority/warrington ,FWB,Care Purchase East Team,54060,Supported Accommodation,440975,21-Mar-18,1900304244,8170.00,Macintyre Care,104907
WARRINGTON BOROUGH COUNCIL,http://opendatacommunities.org/id/unitary-authority/warrington ,FWB,Care Purchase East Team,54060,Supporting People - External,441250,21-Mar-18,1900304244,1104.00,Macintyre Care,104907
WARRINGTON BOROUGH COUNCIL,http://opendatacommunities.org/id/unitary-authority/warrington ,FWB,Care Purchase West Team,54080,Supported Accommodation,440975,21-Mar-18,1900304234,552.00,Macintyre Care,104907
WARRINGTON BOROUGH COUNCIL,http://opendatacommunities.org/id/unitary-authority/warrington ,FWB,Care Purchase Central Team,54050,Supported Accommodation,440975,21-Mar-18,1900304238,2042.00,Macintyre Care,104907
WARRINGTON BOROUGH COUNCIL,http://opendatacommunities.org/id/unitary-authority/warrington ,FWB,Care Purchase West Team,54080,Supported Accommodation,440975,21-Mar-18,1900304219,662.00,Macintyre Care,104907
WARRINGTON BOROUGH COUNCIL,http://opendatacommunities.org/id/unitary-authority/warrington ,FWB,Care Purchase East Team,54060,Supported Accommodation,440975,21-Mar-18,1900304260,10255.00,Macintyre Care,104907
WARRINGTON BOROUGH COUNCIL,http://opendatacommunities.org/id/unitary-authority/warrington ,FWB,Care Purchase East Team,54060,Supporting People - External,441250,21-Mar-18,1900304249,718.00,Macintyre Care,104907
WARRINGTON BOROUGH COUNCIL,http://opendatacommunities.org/id/unitary-authority/warrington ,FWB,Care Purchase East Team,54060,Supported Accommodation,440975,21-Mar-18,1900304264,8091.00,Macintyre Care,104907
WARRINGTON BOROUGH COUNCIL,http://opendatacommunities.org/id/unitary-authority/warrington ,FWB,Care Purchase East Team,54060,Supported Accommodation,440975,21-Mar-18,1900304266,12988.00,Macintyre Care,104907
WARRINGTON BOROUGH COUNCIL,http://opendatacommunities.org/id/unitary-authority/warrington ,FWB,Care Purchase Central Team,54050,Supported Accommodation,440975,21-Mar-18,1900304220,9454.00,Macintyre Care,104907
WARRINGTON BOROUGH COUNCIL,http://opendatacommunities.org/id/unitary-authority/warrington ,FWB,Care Purchase Central Team,54050,Supported Accommodation,440975,21-Mar-18,1900304246,1822.00,Macintyre Care,104907
